NUMERO_MANDATO;RIGA_MANDATO;QUIET;IMPORTO_RIGA;IMPORTO_MANDATO;BENEFICIARIO;CIG;TITOLO_PAGAMENTO;DATA_MANDATO;CAPITOLO;ARTICOLO;NUMERO_IMPEGNO;TITOLO;DESCR_TITOLO;LIVELLO_II;DESCR_LIVELLO_II;LIVELLO_III;DESCR_LIVELLO_III;LIVELLO_IV;DESCR_LIVELLO_IV;LIVELLO_V;DESCR_LIVELLO_V;DATA_PAG_EFF;
5;1;0;"128,70";"128,70";PERSONALE DIPENDENTE - SEDE; ;STIPENDI MESE DI: GENNAIO 19;23-01-2019;20;0;433;1;Spese correnti;3;Acquisto di beni e servizi;2;Acquisto di servizi;2;"Organizzazione eventi, pubblicita` e servizi per trasferta";1;Rimborso per viaggio e trasloco;23-01-2019;
6;1;0;"15,87";"15,87";PERSONALE DIPENDENTE - SEDE; ;STIPENDI MESE DI: GENNAIO 19;23-01-2019;20;0;433;1;Spese correnti;3;Acquisto di beni e servizi;2;Acquisto di servizi;2;"Organizzazione eventi, pubblicita` e servizi per trasferta";1;Rimborso per viaggio e trasloco;23-01-2019;
24;1;0;"17,20";"17,20";PERSONALE DIPENDENTE - SEDE; ;STIPENDI MESE DI: GENNAIO 19;23-01-2019;83;0;37;1;Spese correnti;3;Acquisto di beni e servizi;2;Acquisto di servizi;2;"Organizzazione eventi, pubblicita` e servizi per trasferta";2;Indennità di missione e di trasferta;23-01-2019;
50;1;0;"5.333,71";"5.333,71";AMMINISTRATORI COMUNALI; ;STIPENDI MESE DI: GENNAIO 19;23-01-2019;2;0;6;1;Spese correnti;3;Acquisto di beni e servizi;2;Acquisto di servizi;1;Organi e incarichi istituzionali dell'amministrazione;1;Organi istituzionali dell'amministrazione - Indennità;23-01-2019;
53;1;0;"1.396,30";"1.396,30";CENTRO CONTABILE SRL;ZB0223C5F5;ACCONTO Fatt.n. 10057  del 25/07/2018 CANONE NOLEGGIO FOTOCOPIATORI;24-01-2019;235;0;581;1;Spese correnti;3;Acquisto di beni e servizi;2;Acquisto di servizi;5;Utenze e canoni;999;Utenze e canoni per altri servizi n.a.c.;24-01-2019;
54;1;0;"77,19";"77,19";CENTRO CONTABILE SRL;ZB0223C5F5;ACCONTO Fatt.n. 10057  del 25/07/2018 CANONE NOLEGGIO FOTOCOPIATORI;24-01-2019;252;0;582;1;Spese correnti;3;Acquisto di beni e servizi;2;Acquisto di servizi;5;Utenze e canoni;999;Utenze e canoni per altri servizi n.a.c.;24-01-2019;
55;1;0;"1.200,00";"1.200,00";CENTRO CONTABILE SRL;ZB0223C5F5;SALDO Fatt.n. 10073  del 23/10/2018 CONTRATTO DI NOLEGGIO FOTOCOPIATRICI;24-01-2019;252;0;506;1;Spese correnti;3;Acquisto di beni e servizi;2;Acquisto di servizi;5;Utenze e canoni;999;Utenze e canoni per altri servizi n.a.c.;24-01-2019;
56;1;0;"2.158,82";"2.158,82";CENTRO CONTABILE SRL;ZB0223C5F5;ACCONTO Fatt.n. 10073  del 23/10/2018 CONTRATTO DI NOLEGGIO FOTOCOPIATRICI;24-01-2019;235;0;505;1;Spese correnti;3;Acquisto di beni e servizi;2;Acquisto di servizi;5;Utenze e canoni;999;Utenze e canoni per altri servizi n.a.c.;24-01-2019;
57;1;0;"400,00";"400,00";CENTRO CONTABILE SRL;ZB0223C5F5;SALDO Fatt.n. 10073  del 23/10/2018 CONTRATTO DI NOLEGGIO FOTOCOPIATRICI;24-01-2019;34;0;504;1;Spese correnti;3;Acquisto di beni e servizi;2;Acquisto di servizi;5;Utenze e canoni;999;Utenze e canoni per altri servizi n.a.c.;24-01-2019;
58;1;0;"352,58";"352,58";PROMETEO S.R.L.;ZF525A9374;SALDO Fatt.n. 9/2018/PA  del 18/12/2018 SERVIZI INFORMATICI SITO WEB;24-01-2019;39;2;443;1;Spese correnti;3;Acquisto di beni e servizi;2;Acquisto di servizi;19;Servizi informatici e di telecomunicazioni;1;Gestione e manutenzione applicazioni;24-01-2019;
59;1;0;"5.856,00";"5.856,00";OKCS - OVER KANT CONCEPTION STUDIO S.N.C.;Z71239E8C1;SALDO Fatt.n. 1/E  del 18/12/2018 INTERVENTI ALLA TORRE;24-01-2019;785;0;205;2;Spese in conto capitale;2;Investimenti fissi lordi e acquisto di terreni;1;Beni materiali;10;"Beni immobili di valore culturale, storico ed artistico";8;"Musei, teatri e biblioteche di valore culturale, storico ed artistico";24-01-2019;
60;1;0;"4.077,57";"4.077,57";MENEGHIN MAURIZIO;Z24263188D;SALDO Fatt.n. 2  E  del 17/12/2018 SISTEMAZIONE STRAORDINARIA CIMITERI COMUNALI;24-01-2019;898;3;500;2;Spese in conto capitale;2;Investimenti fissi lordi e acquisto di terreni;1;Beni materiali;9;Beni immobili;15;Cimiteri;24-01-2019;
61;1;0;"393,45";"393,45";COLIBRI' SYSTEM S.P.A.;ZE7261709A;SALDO Fatt.n. 18600424  del 20/12/2018 ACQUISTO DI BENI PER BIBLIOTECA COMUNALE;24-01-2019;37;0;481;1;Spese correnti;3;Acquisto di beni e servizi;1;Acquisto di beni;2;Altri beni di consumo;1;"Carta, cancelleria e stampati";24-01-2019;
62;1;0;"819,82";"819,82";ALBERTON FERRAMENTA E CASALINGHI SNC DI ALBERTON P.& C.;Z321EC4B3E;SALDO Fatt.n. 3/PA  del 21/12/2018 FORNITURA MATERIALI DI FERRAMENTA E MINUTERIA VARIA;24-01-2019;589;0;563;1;Spese correnti;3;Acquisto di beni e servizi;1;Acquisto di beni;2;Altri beni di consumo;999;Altri beni e materiali di consumo n.a.c.;24-01-2019;
63;1;0;"92,01";"92,01";COMIN COSTRUZIONI GENERALI S.R.L.;Z4926474C9;SALDO Fatt.n. 0-000090  del 21/12/2018 FORNITURA MATERIALI EDILI;24-01-2019;745;0;514;2;Spese in conto capitale;2;Investimenti fissi lordi e acquisto di terreni;1;Beni materiali;9;Beni immobili;999;Beni immobili n.a.c.;24-01-2019;
64;1;0;"1.579,50";"1.579,50";SOCIETA' SERVIZI SOCIO CULTURALE Coop. Soc. Onlus;ZCB1CCA0C9;SALDO Fatt.n. 614 PAB  del 17/12/2018 AFFIDAMENTO GESTIONE SERVIZIO BIBLIOTECA COMUNALE;24-01-2019;302;1;543;1;Spese correnti;3;Acquisto di beni e servizi;2;Acquisto di servizi;16;Servizi amministrativi;999;Altre spese per servizi amministrativi;24-01-2019;
65;1;0;"244,00";"244,00";SCOMAZZON ANTINFORTUNISTICA DI SCOMAZZON D.& C.snc;ZEE2661FA4;SALDO Fatt.n. 8  del 21/12/2018 FORNITURA VESTIARIO ALTA VISIBILITA' PER PERSONALE OPERAIO;24-01-2019;71;2;534;1;Spese correnti;3;Acquisto di beni e servizi;1;Acquisto di beni;2;Altri beni di consumo;4;Vestiario;24-01-2019;
66;1;0;"5.612,00";"5.612,00";BOXXAPPS S.R.L.;ZF3257CC13;SALDO Fatt.n. 1/180729  del 21/12/2018 SERVIZI INFORMATICI;24-01-2019;39;0;427;1;Spese correnti;3;Acquisto di beni e servizi;2;Acquisto di servizi;19;Servizi informatici e di telecomunicazioni;1;Gestione e manutenzione applicazioni;24-01-2019;
67;1;0;"256,20";"512,40";ELA SISTEMI ELETTRONICI S.R.L.;Z282494363;SALDO Fatt.n. 34/PA  del 24/12/2018 MANUTENZIONE IMPIANTO ALLARME E INCENDIO;24-01-2019;310;1;349;1;Spese correnti;3;Acquisto di beni e servizi;2;Acquisto di servizi;9;Manutenzione ordinaria e riparazioni;4;Manutenzione ordinaria e riparazioni di impianti e macchinari;24-01-2019;
67;2;0;"256,20";"512,40";ELA SISTEMI ELETTRONICI S.R.L.;Z282494363;ACCONTO Fatt.n. 33/PA  del 24/12/2018 MANUTENZIONE IMPIANTO ALLARME/INCENDIO TORRE EZZ.;24-01-2019;310;1;349;1;Spese correnti;3;Acquisto di beni e servizi;2;Acquisto di servizi;9;Manutenzione ordinaria e riparazioni;4;Manutenzione ordinaria e riparazioni di impianti e macchinari;24-01-2019;
68;1;0;"18,30";"18,30";ELA SISTEMI ELETTRONICI S.R.L.;Z282494363;SALDO Fatt.n. 33/PA  del 24/12/2018 MANUTENZIONE IMPIANTO ALLARME/INCENDIO TORRE EZZ.;24-01-2019;313;1;348;1;Spese correnti;3;Acquisto di beni e servizi;2;Acquisto di servizi;9;Manutenzione ordinaria e riparazioni;4;Manutenzione ordinaria e riparazioni di impianti e macchinari;24-01-2019;
69;1;0;"1.403,00";"1.403,00";HALLEY VENETO SRL;Z21262BB94;SALDO Fatt.n. 1/181644  del 27/12/2018 FORNITURA INSTALLAZIONE E CONFIGURAZIONE TERMINALE TREXOM PER TIMBRATURE UFF. COMUNALI;24-01-2019;744;1;483;2;Spese in conto capitale;2;Investimenti fissi lordi e acquisto di terreni;1;Beni materiali;9;Beni immobili;999;Beni immobili n.a.c.;24-01-2019;
70;1;0;"314,24";"314,24";BOXXAPPS S.R.L.;ZF3257CC13;ACCONTO Fatt.n. 1/180812  del 27/12/2018 REDAZIONE DEL DPIA ANNI 2019-2020 SERVIZI INFORMATICI;24-01-2019;39;2;428;1;Spese correnti;3;Acquisto di beni e servizi;2;Acquisto di servizi;19;Servizi informatici e di telecomunicazioni;1;Gestione e manutenzione applicazioni;24-01-2019;
71;1;0;"417,76";"417,76";BOXXAPPS S.R.L.;ZF3257CC13;SALDO Fatt.n. 1/180812  del 27/12/2018 REDAZIONE DEL DPIA ANNI 2019-2020 SERVIZI INFORMATICI;24-01-2019;39;0;427;1;Spese correnti;3;Acquisto di beni e servizi;2;Acquisto di servizi;19;Servizi informatici e di telecomunicazioni;1;Gestione e manutenzione applicazioni;24-01-2019;
72;1;0;"2.045,94";"2.045,94";KD DISINFESTAZIONI & DERATIZZAZIONI S.R.L.;ZDB23E67F6;SALDO Fatt.n. FPA 32/18  del 28/12/2018 INTERVENTI DI DISINFESTAZIONE ZANZARE SUL TERRITORIO COMUNALE;24-01-2019;510;1;269;1;Spese correnti;3;Acquisto di beni e servizi;2;Acquisto di servizi;99;Altri servizi;999;Altri servizi diversi n.a.c.;24-01-2019;
73;1;0;"98,80";"98,80";GRAFICHE E. GASPARI SRL;Z7F266A18A;SALDO Fatt.n. 21433  del 28/12/2018 ACQUISTO DI TESTO PER UFFICI COMUNALI;24-01-2019;37;0;538;1;Spese correnti;3;Acquisto di beni e servizi;1;Acquisto di beni;2;Altri beni di consumo;1;"Carta, cancelleria e stampati";24-01-2019;
74;1;0;"2.153,36";"2.153,36";FASAN ANNA;ZD2207DCA4;SALDO Fatt.n. FATTPA 3_18  del 29/12/2018 ESUMAZIONI SALME CIMITERI COMUNALI;24-01-2019;413;1;565;1;Spese correnti;3;Acquisto di beni e servizi;2;Acquisto di servizi;9;Manutenzione ordinaria e riparazioni;12;Manutenzione ordinaria e riparazioni di terreni e beni materiali non prodotti;24-01-2019;
75;1;0;"118,07";"118,07";ASCO TLC S.P.A.;Z7622402CD;ACCONTO Fatt.n. 09036897  del 31/12/2018 FIBRA OTTICA;24-01-2019;34;0;61;1;Spese correnti;3;Acquisto di beni e servizi;2;Acquisto di servizi;5;Utenze e canoni;999;Utenze e canoni per altri servizi n.a.c.;24-01-2019;
76;1;0;"24,40";"152,93";ASCO TLC S.P.A.;Z7622402CD;SALDO Fatt.n. 09036922  del 31/12/2018 FIBRA OTTICA DICEMBRE 2018;24-01-2019;235;0;518;1;Spese correnti;3;Acquisto di beni e servizi;2;Acquisto di servizi;5;Utenze e canoni;999;Utenze e canoni per altri servizi n.a.c.;24-01-2019;
76;2;0;"58,83";"152,93";ASCO TLC S.P.A.;Z7622402CD;SALDO Fatt.n. 09036897  del 31/12/2018 FIBRA OTTICA;24-01-2019;235;0;518;1;Spese correnti;3;Acquisto di beni e servizi;2;Acquisto di servizi;5;Utenze e canoni;999;Utenze e canoni per altri servizi n.a.c.;24-01-2019;
76;3;0;"69,70";"152,93";ASCO TLC S.P.A.;Z7622402CD;ACCONTO Fatt.n. 09036851  del 31/12/2018 FIBRA OTTICA DICEMBRE 2018;24-01-2019;235;0;518;1;Spese correnti;3;Acquisto di beni e servizi;2;Acquisto di servizi;5;Utenze e canoni;999;Utenze e canoni per altri servizi n.a.c.;24-01-2019;
77;1;0;"400,00";"400,00";ASCO TLC S.P.A.;Z7622402CD;SALDO Fatt.n. 09036851  del 31/12/2018 FIBRA OTTICA DICEMBRE 2018;24-01-2019;561;3;517;1;Spese correnti;3;Acquisto di beni e servizi;2;Acquisto di servizi;13;Servizi ausiliari per il funzionamento dell'ente;999;Altri servizi ausiliari n.a.c.;24-01-2019;
78;1;0;"3.590,00";"3.590,00";ILONA MARZYNSKA;ZD121DECDA;SALDO Fatt.n. FATTPA_3/2018  del 14/12/2018 ACCONTO ONORARIO_PROGETTO DI SISTEMAZIONE DEGLI SPAZI PUBBLICI DI COLLEGAMENTO TRA VILLA RUBELLI ED IL COMPLESSO MONUMENTALE DEL CASTELLARO-SAN ZENONE DEGLI EZZELINI;24-01-2019;785;0;604;2;Spese in conto capitale;2;Investimenti fissi lordi e acquisto di terreni;1;Beni materiali;10;"Beni immobili di valore culturale, storico ed artistico";8;"Musei, teatri e biblioteche di valore culturale, storico ed artistico";24-01-2019;
79;1;0;"62.664,64";"62.664,64";TRENTIN ASFALTI S.R.L.;Z48262EE4A;SALDO Fatt.n. 21EL  del 31/12/2018 LAVORI DI ASFALTATURA STRADE COMUNALI;24-01-2019;1007;0;547;2;Spese in conto capitale;2;Investimenti fissi lordi e acquisto di terreni;1;Beni materiali;9;Beni immobili;12;Infrastrutture stradali;24-01-2019;
80;1;0;"4.868,01";"4.868,01";CASA DI RIPOSO 'AITA'; ;SALDO Fatt.n. 714/C  del 27/12/2018 FORNITURA PASTI MENSA SCUOLE - DICEMBRE 2018;24-01-2019;274;1;54;1;Spese correnti;3;Acquisto di beni e servizi;2;Acquisto di servizi;15;Contratti di servizio pubblico;6;Contratti di servizio per le mense scolastiche;24-01-2019;
81;1;0;"12.410,72";"12.410,72";Mobilità di Marca S.P.A.;7168087C82;SALDO Fatt.n. 000287  del 30/11/2018 SERVIZIO TRASPORTO SCOLASTICO - OTTOBRE 2018;24-01-2019;275;1;301;1;Spese correnti;3;Acquisto di beni e servizi;2;Acquisto di servizi;15;Contratti di servizio pubblico;2;Contratti di servizio di trasporto scolastico;24-01-2019;
82;1;0;"12.410,72";"12.410,72";Mobilità di Marca S.P.A.;7168087C82;SALDO Fatt.n. 000288  del 30/11/2018 SERVIZIO TRASPORTO SCOLASTICO - NOVEMBRE 2018;24-01-2019;275;1;301;1;Spese correnti;3;Acquisto di beni e servizi;2;Acquisto di servizi;15;Contratti di servizio pubblico;2;Contratti di servizio di trasporto scolastico;24-01-2019;
83;1;0;"26,99";"202,77";TELECOM ITALIA S.P.A.;ZB722530A8;SALDO Fatt.n. 8E01037210  del 06/12/2018 UTENZE TELEFONICHE  SCUOLE: OTT. - NOV 2018;24-01-2019;235;0;96;1;Spese correnti;3;Acquisto di beni e servizi;2;Acquisto di servizi;5;Utenze e canoni;1;Telefonia fissa;24-01-2019;
83;2;0;"52,43";"202,77";TELECOM ITALIA S.P.A.;ZB722530A8;SALDO Fatt.n. 8E01038123  del 06/12/2018 UTENZE TELEFONICHE SCUOLE: OTTOBRE - NOVEMBRE 2018;24-01-2019;235;0;96;1;Spese correnti;3;Acquisto di beni e servizi;2;Acquisto di servizi;5;Utenze e canoni;1;Telefonia fissa;24-01-2019;
83;3;0;"52,43";"202,77";TELECOM ITALIA S.P.A.;ZB722530A8;SALDO Fatt.n. 8E01037279  del 06/12/2018 UTENZE TELEFONICHE SCUOLE: OTT. - NOV. 2018;24-01-2019;235;0;96;1;Spese correnti;3;Acquisto di beni e servizi;2;Acquisto di servizi;5;Utenze e canoni;1;Telefonia fissa;24-01-2019;
83;4;0;"70,92";"202,77";TELECOM ITALIA S.P.A.;ZB722530A8;SALDO Fatt.n. 8E01038384  del 06/12/2018 UTENZE TELEFONICHE SCUOLE: OTTOBRE - NOVEMBRE 2018;24-01-2019;235;0;96;1;Spese correnti;3;Acquisto di beni e servizi;2;Acquisto di servizi;5;Utenze e canoni;1;Telefonia fissa;24-01-2019;
84;1;0;"26,21";"388,07";TELECOM ITALIA S.P.A.;ZB722530A8;SALDO Fatt.n. 8E01035485  del 06/12/2018 UTENZE TELEFONICHE MUNICIPIO: OTTOBRE - NOVEMBRE 2018;24-01-2019;34;0;95;1;Spese correnti;3;Acquisto di beni e servizi;2;Acquisto di servizi;5;Utenze e canoni;1;Telefonia fissa;24-01-2019;
84;2;0;"26,21";"388,07";TELECOM ITALIA S.P.A.;ZB722530A8;SALDO Fatt.n. 8E01039048  del 06/12/2018 UTENZE TELEFONICHE MUNICIPIO: OTTOBRE - NOVEMBRE 2018;24-01-2019;34;0;95;1;Spese correnti;3;Acquisto di beni e servizi;2;Acquisto di servizi;5;Utenze e canoni;1;Telefonia fissa;24-01-2019;
84;3;0;"26,21";"388,07";TELECOM ITALIA S.P.A.;ZB722530A8;SALDO Fatt.n. 8E01037968  del 06/12/2018 UTENZE TELEFONICHE MUNICIPIO: OTT - NOV. 2018;24-01-2019;34;0;95;1;Spese correnti;3;Acquisto di beni e servizi;2;Acquisto di servizi;5;Utenze e canoni;1;Telefonia fissa;24-01-2019;
84;4;0;"26,21";"388,07";TELECOM ITALIA S.P.A.;ZB722530A8;SALDO Fatt.n. 8E01036923  del 06/12/2018 UTENZE TELEFONICHE MUNICIPIO: OTT. - NOV. 2018;24-01-2019;34;0;95;1;Spese correnti;3;Acquisto di beni e servizi;2;Acquisto di servizi;5;Utenze e canoni;1;Telefonia fissa;24-01-2019;
84;5;0;"26,63";"388,07";TELECOM ITALIA S.P.A.;ZB722530A8;SALDO Fatt.n. 8E01037969  del 06/12/2018 UTENZE TELEFONICHE MUNICIPIO: OTT. NOV. 2018;24-01-2019;34;0;95;1;Spese correnti;3;Acquisto di beni e servizi;2;Acquisto di servizi;5;Utenze e canoni;1;Telefonia fissa;24-01-2019;
84;6;0;"29,79";"388,07";TELECOM ITALIA S.P.A.;ZB722530A8;SALDO Fatt.n. 8E01036561  del 06/12/2018 UTENZE TELEFONICHE MUNICIPIO: OTTOBRE - NOVEMBRE 2018;24-01-2019;34;0;95;1;Spese correnti;3;Acquisto di beni e servizi;2;Acquisto di servizi;5;Utenze e canoni;1;Telefonia fissa;24-01-2019;
84;7;0;"52,43";"388,07";TELECOM ITALIA S.P.A.;ZB722530A8;SALDO Fatt.n. 8E01036911  del 06/12/2018 UTENZE TELEFONICHE MUNICIPIO: OTTOBRE - NOVEMBRE 2018;24-01-2019;34;0;95;1;Spese correnti;3;Acquisto di beni e servizi;2;Acquisto di servizi;5;Utenze e canoni;1;Telefonia fissa;24-01-2019;
84;8;0;"52,43";"388,07";TELECOM ITALIA S.P.A.;ZB722530A8;SALDO Fatt.n. 8E01038065  del 06/12/2018 UTENZE TELEFONICHE MUNICIPO: OTT. - NOV 2018;24-01-2019;34;0;95;1;Spese correnti;3;Acquisto di beni e servizi;2;Acquisto di servizi;5;Utenze e canoni;1;Telefonia fissa;24-01-2019;
84;9;0;"121,95";"388,07";TELECOM ITALIA S.P.A.;ZB722530A8;SALDO Fatt.n. 8E01038784  del 06/12/2018 UTENZE TELEFONICHE MUNICIPIO: OTTOBRE - NOVEMBRE 2018;24-01-2019;34;0;95;1;Spese correnti;3;Acquisto di beni e servizi;2;Acquisto di servizi;5;Utenze e canoni;1;Telefonia fissa;24-01-2019;
85;1;0;"30,95";"2.520,92";ENEL ENERGIA S.P.A.;7134285639;SALDO Fatt.n. 004812233689  del 05/12/2018 ILLUMINAZIONE PUBBLICA - NOVEMBRE 2018;24-01-2019;600;0;121;1;Spese correnti;3;Acquisto di beni e servizi;2;Acquisto di servizi;5;Utenze e canoni;4;Energia elettrica;24-01-2019;
85;2;0;"56,88";"2.520,92";ENEL ENERGIA S.P.A.;7134285639;SALDO Fatt.n. 004812233677  del 05/12/2018 ILLUMINAZIONE PUBBLICA: NOVEMBRE 2018;24-01-2019;600;0;121;1;Spese correnti;3;Acquisto di beni e servizi;2;Acquisto di servizi;5;Utenze e canoni;4;Energia elettrica;24-01-2019;
85;3;0;"74,19";"2.520,92";ENEL ENERGIA S.P.A.;7134285639;SALDO Fatt.n. 004812233682  del 05/12/2018 ILLUMINAZIONE PUBBLICA: NOVEMBRE 2018;24-01-2019;600;0;121;1;Spese correnti;3;Acquisto di beni e servizi;2;Acquisto di servizi;5;Utenze e canoni;4;Energia elettrica;24-01-2019;
85;4;0;"83,12";"2.520,92";ENEL ENERGIA S.P.A.;7134285639;SALDO Fatt.n. 004812233681  del 05/12/2018 ILLUMINAZIONE PUBBLICA: NOVEMBRE 2018;24-01-2019;600;0;121;1;Spese correnti;3;Acquisto di beni e servizi;2;Acquisto di servizi;5;Utenze e canoni;4;Energia elettrica;24-01-2019;
85;5;0;"194,97";"2.520,92";ENEL ENERGIA S.P.A.;7134285639;SALDO Fatt.n. 004812233694  del 05/12/2018 ILLUMINAZIONE IMPIANTI SPORTIVI: NOVEMBRE 2018;24-01-2019;600;0;121;1;Spese correnti;3;Acquisto di beni e servizi;2;Acquisto di servizi;5;Utenze e canoni;4;Energia elettrica;24-01-2019;
85;6;0;"295,25";"2.520,92";ENEL ENERGIA S.P.A.;7134285639;SALDO Fatt.n. 004812233692  del 05/12/2018 ILLUMINAZIONE PUBBLICA : NOVEMBRE 2018;24-01-2019;600;0;121;1;Spese correnti;3;Acquisto di beni e servizi;2;Acquisto di servizi;5;Utenze e canoni;4;Energia elettrica;24-01-2019;
85;7;0;"325,40";"2.520,92";ENEL ENERGIA S.P.A.;7134285639;SALDO Fatt.n. 004812233696  del 05/12/2018 ILLUMINAZIONE PUBBLICA: NOVEMBRE 2018;24-01-2019;600;0;121;1;Spese correnti;3;Acquisto di beni e servizi;2;Acquisto di servizi;5;Utenze e canoni;4;Energia elettrica;24-01-2019;
85;8;0;"343,03";"2.520,92";ENEL ENERGIA S.P.A.;7134285639;SALDO Fatt.n. 004812233686  del 05/12/2018 ILLUMINAZIONE PUBBLICA: NOVEMBRE 2018;24-01-2019;600;0;121;1;Spese correnti;3;Acquisto di beni e servizi;2;Acquisto di servizi;5;Utenze e canoni;4;Energia elettrica;24-01-2019;
85;9;0;"433,15";"2.520,92";ENEL ENERGIA S.P.A.;7134285639;SALDO Fatt.n. 004812233666  del 05/12/2018 ILLUMINAZIONE PUBBLICA: NOVEMBRE 2018;24-01-2019;600;0;121;1;Spese correnti;3;Acquisto di beni e servizi;2;Acquisto di servizi;5;Utenze e canoni;4;Energia elettrica;24-01-2019;
85;10;0;"683,98";"2.520,92";ENEL ENERGIA S.P.A.;7134285639;SALDO Fatt.n. 004812233667  del 05/12/2018 ILLUMINAZIONE PUBBLICA;24-01-2019;600;0;121;1;Spese correnti;3;Acquisto di beni e servizi;2;Acquisto di servizi;5;Utenze e canoni;4;Energia elettrica;24-01-2019;
86;1;0;"35,75";"2.060,16";ENEL ENERGIA S.P.A.;7134285639;SALDO Fatt.n. 004812233705  del 05/12/2018 ILLUMINAZIONE PUBBLICA: NOVEMBRE 2018;24-01-2019;600;0;121;1;Spese correnti;3;Acquisto di beni e servizi;2;Acquisto di servizi;5;Utenze e canoni;4;Energia elettrica;24-01-2019;
86;2;0;"52,96";"2.060,16";ENEL ENERGIA S.P.A.;7134285639;SALDO Fatt.n. 004812233687  del 05/12/2018 ILLUMINAZIONE PUBBLICA: NOVEMBRE 2018;24-01-2019;600;0;121;1;Spese correnti;3;Acquisto di beni e servizi;2;Acquisto di servizi;5;Utenze e canoni;4;Energia elettrica;24-01-2019;
86;3;0;"71,15";"2.060,16";ENEL ENERGIA S.P.A.;7134285639;SALDO Fatt.n. 004812233669  del 05/12/2018 ILLUMINAZIONE PUBBLICA: NOVEMBRE 2018;24-01-2019;600;0;121;1;Spese correnti;3;Acquisto di beni e servizi;2;Acquisto di servizi;5;Utenze e canoni;4;Energia elettrica;24-01-2019;
86;4;0;"89,15";"2.060,16";ENEL ENERGIA S.P.A.;7134285639;SALDO Fatt.n. 004812233663  del 05/12/2018 ILLUMINAZIONE PUBBLICA: NOVEMBRE 2018;24-01-2019;600;0;121;1;Spese correnti;3;Acquisto di beni e servizi;2;Acquisto di servizi;5;Utenze e canoni;4;Energia elettrica;24-01-2019;
86;5;0;"106,58";"2.060,16";ENEL ENERGIA S.P.A.;7134285639;SALDO Fatt.n. 004812233703  del 05/12/2018 ILLUMINAZIONE PUBBLICA: NOVEMBRE 2018;24-01-2019;600;0;121;1;Spese correnti;3;Acquisto di beni e servizi;2;Acquisto di servizi;5;Utenze e canoni;4;Energia elettrica;24-01-2019;
86;6;0;"166,85";"2.060,16";ENEL ENERGIA S.P.A.;7134285639;SALDO Fatt.n. 004812233662  del 05/12/2018 ILLUMINAZIONE PUBBLICA: NOVEMBRE 2018;24-01-2019;600;0;121;1;Spese correnti;3;Acquisto di beni e servizi;2;Acquisto di servizi;5;Utenze e canoni;4;Energia elettrica;24-01-2019;
86;7;0;"231,60";"2.060,16";ENEL ENERGIA S.P.A.;7134285639;SALDO Fatt.n. 004812233664  del 05/12/2018 ILLUMINAZIONE PUBBLICA: NOVEMBRE 2018;24-01-2019;600;0;121;1;Spese correnti;3;Acquisto di beni e servizi;2;Acquisto di servizi;5;Utenze e canoni;4;Energia elettrica;24-01-2019;
86;8;0;"335,48";"2.060,16";ENEL ENERGIA S.P.A.;7134285639;SALDO Fatt.n. 004812233706  del 05/12/2018 ILLUMINAZIONE PUBBLICA: NOVEMBRE 2018;24-01-2019;600;0;121;1;Spese correnti;3;Acquisto di beni e servizi;2;Acquisto di servizi;5;Utenze e canoni;4;Energia elettrica;24-01-2019;
86;9;0;"402,86";"2.060,16";ENEL ENERGIA S.P.A.;7134285639;SALDO Fatt.n. 004812233675  del 05/12/2018 ILLUMINAZIONE PUBBLICA: NOVEMBE 2018;24-01-2019;600;0;121;1;Spese correnti;3;Acquisto di beni e servizi;2;Acquisto di servizi;5;Utenze e canoni;4;Energia elettrica;24-01-2019;
86;10;0;"567,78";"2.060,16";ENEL ENERGIA S.P.A.;7134285639;SALDO Fatt.n. 004812233702  del 05/12/2018 ILLUMINAZIONE CENTRO POLIV.:NOVEMBRE 2018;24-01-2019;600;0;121;1;Spese correnti;3;Acquisto di beni e servizi;2;Acquisto di servizi;5;Utenze e canoni;4;Energia elettrica;24-01-2019;
87;1;0;"27,34";"3.163,15";ENEL ENERGIA S.P.A.;7134285639;SALDO Fatt.n. 004812233704  del 05/12/2018 ENERGIA ELETTRICA: NOVEMBRE 2018;24-01-2019;600;0;121;1;Spese correnti;3;Acquisto di beni e servizi;2;Acquisto di servizi;5;Utenze e canoni;4;Energia elettrica;24-01-2019;
87;2;0;"58,19";"3.163,15";ENEL ENERGIA S.P.A.;7134285639;SALDO Fatt.n. 004812233673  del 05/12/2018 ENERGIA ELETTRICA: NOVEMBRE 2018;24-01-2019;600;0;121;1;Spese correnti;3;Acquisto di beni e servizi;2;Acquisto di servizi;5;Utenze e canoni;4;Energia elettrica;24-01-2019;
87;3;0;"70,17";"3.163,15";ENEL ENERGIA S.P.A.;7134285639;SALDO Fatt.n. 004812233670  del 05/12/2018 ENERGIA ELETTRICA: NOVEMBRE 2018;24-01-2019;600;0;121;1;Spese correnti;3;Acquisto di beni e servizi;2;Acquisto di servizi;5;Utenze e canoni;4;Energia elettrica;24-01-2019;
87;4;0;"85,58";"3.163,15";ENEL ENERGIA S.P.A.;7134285639;SALDO Fatt.n. 004812233695  del 05/12/2018 ENERGIA ELETTRICA: NOVEMBRE 2018;24-01-2019;600;0;121;1;Spese correnti;3;Acquisto di beni e servizi;2;Acquisto di servizi;5;Utenze e canoni;4;Energia elettrica;24-01-2019;
87;5;0;"157,08";"3.163,15";ENEL ENERGIA S.P.A.;7134285639;SALDO Fatt.n. 004812233700  del 05/12/2018 ENERGIA ELETTRICA: NOVEMBRE 2018;24-01-2019;600;0;121;1;Spese correnti;3;Acquisto di beni e servizi;2;Acquisto di servizi;5;Utenze e canoni;4;Energia elettrica;24-01-2019;
87;6;0;"215,60";"3.163,15";ENEL ENERGIA S.P.A.;7134285639;SALDO Fatt.n. 004812233684  del 05/12/2018 ENERGIA ELETTRICA: NOVEMBRE 2018;24-01-2019;600;0;121;1;Spese correnti;3;Acquisto di beni e servizi;2;Acquisto di servizi;5;Utenze e canoni;4;Energia elettrica;24-01-2019;
87;7;0;"264,07";"3.163,15";ENEL ENERGIA S.P.A.;7134285639;SALDO Fatt.n. 004812233707  del 05/12/2018 ENERGIA ELETTRICA: NOVEMBRE 2018;24-01-2019;600;0;121;1;Spese correnti;3;Acquisto di beni e servizi;2;Acquisto di servizi;5;Utenze e canoni;4;Energia elettrica;24-01-2019;
87;8;0;"293,34";"3.163,15";ENEL ENERGIA S.P.A.;7134285639;SALDO Fatt.n. 004812233685  del 05/12/2018 ILLUMINAZIONE PUBBLICA: NOVEMBRE 2018;24-01-2019;600;0;121;1;Spese correnti;3;Acquisto di beni e servizi;2;Acquisto di servizi;5;Utenze e canoni;4;Energia elettrica;24-01-2019;
87;9;0;"554,67";"3.163,15";ENEL ENERGIA S.P.A.;7134285639;SALDO Fatt.n. 004812233678  del 05/12/2018 ENERGIA ELETTRICA: NOVEMBRE 2018;24-01-2019;600;0;121;1;Spese correnti;3;Acquisto di beni e servizi;2;Acquisto di servizi;5;Utenze e canoni;4;Energia elettrica;24-01-2019;
87;10;0;"1.437,11";"3.163,15";ENEL ENERGIA S.P.A.;7134285639;SALDO Fatt.n. 004812233665  del 05/12/2018 ENERGIA ELETTRICA: NOVEMBRE 2018;24-01-2019;600;0;121;1;Spese correnti;3;Acquisto di beni e servizi;2;Acquisto di servizi;5;Utenze e canoni;4;Energia elettrica;24-01-2019;
88;1;0;"687,25";"687,25";A.S. DI ANDREATTA GIUSEPPE & C. S.R.L.;ZF826155CF;SALDO Fatt.n. PA-0152  del 31/12/2018 MANUTEZIONE IMPIANTI ELETTRICI EDIFICI COMUNALI;24-01-2019;744;1;474;2;Spese in conto capitale;2;Investimenti fissi lordi e acquisto di terreni;1;Beni materiali;9;Beni immobili;19;Fabbricati ad uso strumentale;24-01-2019;
89;1;0;"631,58";"631,58";PEDERIVA GIUSEPPE;ZAF20A9EF3;SALDO Fatt.n. 00004E  del 30/11/2018 MANUTENZIONE STRAORDINARIA SEDE MUNICIPALE;25-01-2019;744;1;452;2;Spese in conto capitale;2;Investimenti fissi lordi e acquisto di terreni;1;Beni materiali;9;Beni immobili;999;Beni immobili n.a.c.;25-01-2019;
91;1;0;"21,00";"21,00";BERTONCELLO PAOLA ECONOMO COMUNALE; ;Rimborso bolletta N.    39 del  21-12-18 Stampa a colori pergamene da consegnare durante il Concerto di Fine Anno 2018.;25-01-2019;3;1;544;1;Spese correnti;3;Acquisto di beni e servizi;1;Acquisto di beni;2;Altri beni di consumo;9;Beni per attività di rappresentanza;25-01-2019;
92;1;0;"13,80";"13,80";BERTONCELLO PAOLA ECONOMO COMUNALE; ;Rimborso bolletta N.    30 del  15-10-18 Spedizione posta raccomandate urgenti al ministero della Giustizia - prot. n. 13428 e n. 13447  del 15/10/2018.;25-01-2019;37;0;416;1;Spese correnti;3;Acquisto di beni e servizi;1;Acquisto di beni;2;Altri beni di consumo;1;"Carta, cancelleria e stampati";25-01-2019;
93;1;0;"6,50";"6,50";BERTONCELLO PAOLA ECONOMO COMUNALE; ;Rimborso bolletta N.    31 del  18-10-18 Spedizione raccomandata urgente A.R. al candidato procedura mobilita' settore sociale - prot. n. 13774 del 17/10/2018.;25-01-2019;37;0;417;1;Spese correnti;3;Acquisto di beni e servizi;1;Acquisto di beni;2;Altri beni di consumo;1;"Carta, cancelleria e stampati";25-01-2019;
94;1;0;"6,00";"6,00";BERTONCELLO PAOLA ECONOMO COMUNALE; ;Rimborso bolletta N.    32 del  23-10-18 Acquisto n. 150 ricevute di ritorno mod. 231/O per raccomandate in partenza uffici vari.;25-01-2019;37;0;423;1;Spese correnti;3;Acquisto di beni e servizi;1;Acquisto di beni;2;Altri beni di consumo;1;"Carta, cancelleria e stampati";25-01-2019;
95;1;0;"127,68";"127,68";BERTONCELLO PAOLA ECONOMO COMUNALE; ;Rimborso bolletta N.    33 del  13-11-18 Acquisto timbri vari per ufficio ragioneria.;25-01-2019;37;0;450;1;Spese correnti;3;Acquisto di beni e servizi;1;Acquisto di beni;2;Altri beni di consumo;1;"Carta, cancelleria e stampati";25-01-2019;
96;1;0;"14,40";"14,40";BERTONCELLO PAOLA ECONOMO COMUNALE; ;Rimborso bolletta N.    36 del  20-11-18 Acquisto n. 300 ricevute di ritorno mod. 231/O per raccomandate in partenza uffici vari e n. 1 rotolo numeri adesivi raccomandate.;25-01-2019;37;0;457;1;Spese correnti;3;Acquisto di beni e servizi;1;Acquisto di beni;2;Altri beni di consumo;1;"Carta, cancelleria e stampati";25-01-2019;
97;1;0;"19,80";"19,80";BERTONCELLO PAOLA ECONOMO COMUNALE; ;Rimborso bolletta N.    37 del  11-12-18 Spedizione raccomandate 1 con A/R per ufficio segreteria - prot. n. 16489 e n. 16492/2018.;25-01-2019;37;0;489;1;Spese correnti;3;Acquisto di beni e servizi;1;Acquisto di beni;2;Altri beni di consumo;1;"Carta, cancelleria e stampati";25-01-2019;
98;1;0;"59,70";"59,70";BERTONCELLO PAOLA ECONOMO COMUNALE; ;Rimborso bolletta N.    38 del  19-12-18 Acquisto n. 3 adattatori da display port a VGA per l'installazione dei nuovi computer acquistati.;25-01-2019;37;0;536;1;Spese correnti;3;Acquisto di beni e servizi;1;Acquisto di beni;2;Altri beni di consumo;6;Materiale informatico;25-01-2019;
99;1;0;"16,00";"16,00";BERTONCELLO PAOLA ECONOMO COMUNALE; ;Rimborso bolletta N.    35 del  19-11-18 Copie chiavi particolari porte scuola elementare di Liedolo.;25-01-2019;235;1;453;1;Spese correnti;3;Acquisto di beni e servizi;2;Acquisto di servizi;9;Manutenzione ordinaria e riparazioni;11;Manutenzione ordinaria e riparazioni di altri beni materiali;25-01-2019;
100;1;0;"12,00";"12,00";BERTONCELLO PAOLA ECONOMO COMUNALE; ;Rimborso bolletta N.    34 del  19-11-18 Acquisto componenti elettrici per quadro piazza.;25-01-2019;591;0;452;1;Spese correnti;3;Acquisto di beni e servizi;1;Acquisto di beni;2;Altri beni di consumo;999;Altri beni e materiali di consumo n.a.c.;25-01-2019;
101;1;0;"99,52";"99,52";BERTONCELLO PAOLA ECONOMO COMUNALE; ;RESA DEL CONTO DELL'ECONOMO COMUNALE PER L'ANNO 2018: versamento somma ad integrazione conto economale per spese bolli e tenuta conto.;28-01-2019;46;0;40;1;Spese correnti;3;Acquisto di beni e servizi;2;Acquisto di servizi;17;Servizi finanziari;2;Oneri per servizio di tesoreria;28-01-2019;
102;1;0;"32,42";"32,42";TELECOM ITALIA S.P.A.;ZB722530A8;SALDO Fatt.n. 8E01036785  del 06/12/2018 UTENZE TELEFONICHE VILLA RUBELLI: OTTOBRE - NOVEMBRE 2018;29-01-2019;310;0;98;1;Spese correnti;3;Acquisto di beni e servizi;2;Acquisto di servizi;5;Utenze e canoni;1;Telefonia fissa;29-01-2019;
103;1;0;"10,05";"3.093,19";ENEL ENERGIA S.P.A.;7134285639;SALDO Fatt.n. 004812345327  del 12/12/2018 ILLUMINAZIONE PUBBLICA: NOVEMBRE 2018;29-01-2019;600;0;121;1;Spese correnti;3;Acquisto di beni e servizi;2;Acquisto di servizi;5;Utenze e canoni;4;Energia elettrica;29-01-2019;
103;2;0;"29,08";"3.093,19";ENEL ENERGIA S.P.A.;7134285639;SALDO Fatt.n. 004812233671  del 05/12/2018 ENERGIA ELETTRICA: NOVEMBRE 2018;29-01-2019;600;0;121;1;Spese correnti;3;Acquisto di beni e servizi;2;Acquisto di servizi;5;Utenze e canoni;4;Energia elettrica;29-01-2019;
103;3;0;"29,76";"3.093,19";ENEL ENERGIA S.P.A.;7134285639;SALDO Fatt.n. 004812345329  del 12/12/2018 ILLUMINAZIONE PUBBLICA: NOVEMBRE 2018;29-01-2019;600;0;121;1;Spese correnti;3;Acquisto di beni e servizi;2;Acquisto di servizi;5;Utenze e canoni;4;Energia elettrica;29-01-2019;
103;4;0;"47,81";"3.093,19";ENEL ENERGIA S.P.A.;7134285639;SALDO Fatt.n. 004812233676  del 05/12/2018 ENERGIA ELETTRICA: NOVEMBRE 2018;29-01-2019;600;0;121;1;Spese correnti;3;Acquisto di beni e servizi;2;Acquisto di servizi;5;Utenze e canoni;4;Energia elettrica;29-01-2019;
103;5;0;"59,88";"3.093,19";ENEL ENERGIA S.P.A.;7134285639;SALDO Fatt.n. 004812345325  del 12/12/2018 ILLUMINAZIONE PUBBLICA: NOVEMBRE 2018;29-01-2019;600;0;121;1;Spese correnti;3;Acquisto di beni e servizi;2;Acquisto di servizi;5;Utenze e canoni;4;Energia elettrica;29-01-2019;
103;6;0;"95,15";"3.093,19";ENEL ENERGIA S.P.A.;7134285639;SALDO Fatt.n. 004812233679  del 05/12/2018 ENERGIA ELETTRICA: NOVEMBRE 2018;29-01-2019;600;0;121;1;Spese correnti;3;Acquisto di beni e servizi;2;Acquisto di servizi;5;Utenze e canoni;4;Energia elettrica;29-01-2019;
103;7;0;"193,77";"3.093,19";ENEL ENERGIA S.P.A.;7134285639;SALDO Fatt.n. 004812233690  del 05/12/2018 ENERGIA ELETTRICA: NOVEMBRE 2018;29-01-2019;600;0;121;1;Spese correnti;3;Acquisto di beni e servizi;2;Acquisto di servizi;5;Utenze e canoni;4;Energia elettrica;29-01-2019;
103;8;0;"316,85";"3.093,19";ENEL ENERGIA S.P.A.;7134285639;SALDO Fatt.n. 004812233697  del 05/12/2018 ENERGIA ELETTRICA CIMITERO: NOVEMBRE 2018;29-01-2019;600;0;121;1;Spese correnti;3;Acquisto di beni e servizi;2;Acquisto di servizi;5;Utenze e canoni;4;Energia elettrica;29-01-2019;
103;9;0;"337,37";"3.093,19";ENEL ENERGIA S.P.A.;7134285639;SALDO Fatt.n. 004812345331  del 12/12/2018 ILLUMINAZIONE PUBBLICA SCUOLE: NOVEMBRE 2018;29-01-2019;600;0;121;1;Spese correnti;3;Acquisto di beni e servizi;2;Acquisto di servizi;5;Utenze e canoni;4;Energia elettrica;29-01-2019;
103;10;0;"378,76";"3.093,19";ENEL ENERGIA S.P.A.;7134285639;SALDO Fatt.n. 004812233701  del 05/12/2018 ENERGIA ELETTRICA: NOVEMBRE 2018;29-01-2019;600;0;121;1;Spese correnti;3;Acquisto di beni e servizi;2;Acquisto di servizi;5;Utenze e canoni;4;Energia elettrica;29-01-2019;
103;11;0;"723,03";"3.093,19";ENEL ENERGIA S.P.A.;7134285639;SALDO Fatt.n. 004812345330  del 12/12/2018 ILLUMINAZIONE PUBBLICA: NOVEMBRE 2018;29-01-2019;600;0;121;1;Spese correnti;3;Acquisto di beni e servizi;2;Acquisto di servizi;5;Utenze e canoni;4;Energia elettrica;29-01-2019;
103;12;0;"871,68";"3.093,19";ENEL ENERGIA S.P.A.;7134285639;SALDO Fatt.n. 004812233672  del 05/12/2018 ENERGIA ELETTRICA: NOVEMBRE 2018;29-01-2019;600;0;121;1;Spese correnti;3;Acquisto di beni e servizi;2;Acquisto di servizi;5;Utenze e canoni;4;Energia elettrica;29-01-2019;
104;1;0;"10,05";"1.091,46";ENEL ENERGIA S.P.A.;7134285639;SALDO Fatt.n. 004812345328  del 12/12/2018 ILLUMINAZIONE PUBBLICA: NOVEMBRE 2018;29-01-2019;600;0;121;1;Spese correnti;3;Acquisto di beni e servizi;2;Acquisto di servizi;5;Utenze e canoni;4;Energia elettrica;29-01-2019;
104;2;0;"20,00";"1.091,46";ENEL ENERGIA S.P.A.;7134285639;SALDO Fatt.n. 004812345332  del 12/12/2018 ILLUMINAZIONE PUBBLICA: NOVEMBRE 2018;29-01-2019;600;0;121;1;Spese correnti;3;Acquisto di beni e servizi;2;Acquisto di servizi;5;Utenze e canoni;4;Energia elettrica;29-01-2019;
104;3;0;"24,42";"1.091,46";ENEL ENERGIA S.P.A.;7134285639;SALDO Fatt.n. 004812345322  del 12/12/2018 ILLUMINAZIONE PUBBLICA: NOVEMBRE 2018;29-01-2019;600;0;121;1;Spese correnti;3;Acquisto di beni e servizi;2;Acquisto di servizi;5;Utenze e canoni;4;Energia elettrica;29-01-2019;
104;4;0;"30,33";"1.091,46";ENEL ENERGIA S.P.A.;7134285639;SALDO Fatt.n. 004812345324  del 12/12/2018 ILLUMINAZIONE PUBBLICA: NOVEMBRE 2018;29-01-2019;600;0;121;1;Spese correnti;3;Acquisto di beni e servizi;2;Acquisto di servizi;5;Utenze e canoni;4;Energia elettrica;29-01-2019;
104;5;0;"105,35";"1.091,46";ENEL ENERGIA S.P.A.;7134285639;SALDO Fatt.n. 004812233698  del 05/12/2018 ENERGIA ELETTRICA: NOVEMBRE 2018;29-01-2019;600;0;121;1;Spese correnti;3;Acquisto di beni e servizi;2;Acquisto di servizi;5;Utenze e canoni;4;Energia elettrica;29-01-2019;
104;6;0;"107,88";"1.091,46";ENEL ENERGIA S.P.A.;7134285639;SALDO Fatt.n. 004812345326  del 12/12/2018 ILLUMINAZIONE PUBBLICA: NOVEMBRE 2018;29-01-2019;600;0;121;1;Spese correnti;3;Acquisto di beni e servizi;2;Acquisto di servizi;5;Utenze e canoni;4;Energia elettrica;29-01-2019;
104;7;0;"114,44";"1.091,46";ENEL ENERGIA S.P.A.;7134285639;SALDO Fatt.n. 004812233688  del 05/12/2018 ENERGIA ELETTRICA: NOVEMBRE 2018;29-01-2019;600;0;121;1;Spese correnti;3;Acquisto di beni e servizi;2;Acquisto di servizi;5;Utenze e canoni;4;Energia elettrica;29-01-2019;
104;8;0;"156,30";"1.091,46";ENEL ENERGIA S.P.A.;7134285639;ACCONTO Fatt.n. 004812233683  del 05/12/2018 ILLUMINAZIONE IMPIANTI SPORTIVI: NOVEMBRE 2018;29-01-2019;600;0;121;1;Spese correnti;3;Acquisto di beni e servizi;2;Acquisto di servizi;5;Utenze e canoni;4;Energia elettrica;29-01-2019;
104;9;0;"258,21";"1.091,46";ENEL ENERGIA S.P.A.;7134285639;SALDO Fatt.n. 004812345323  del 12/12/2018 ILLUMINAZIONE PUBBLICA: NOVEMBRE 2018;29-01-2019;600;0;121;1;Spese correnti;3;Acquisto di beni e servizi;2;Acquisto di servizi;5;Utenze e canoni;4;Energia elettrica;29-01-2019;
104;10;0;"264,48";"1.091,46";ENEL ENERGIA S.P.A.;7134285639;SALDO Fatt.n. 004812233680  del 05/12/2018 EENRGIA ELETTRICA: NOVEMBRE 2018;29-01-2019;600;0;121;1;Spese correnti;3;Acquisto di beni e servizi;2;Acquisto di servizi;5;Utenze e canoni;4;Energia elettrica;29-01-2019;
105;1;0;"723,00";"723,00";ENEL ENERGIA S.P.A.;7134285639;SALDO Fatt.n. 004812233683  del 05/12/2018 ILLUMINAZIONE IMPIANTI SPORTIVI: NOVEMBRE 2018;29-01-2019;530;0;119;1;Spese correnti;3;Acquisto di beni e servizi;2;Acquisto di servizi;5;Utenze e canoni;4;Energia elettrica;29-01-2019;
106;1;0;"103,13";"530,58";ENEL ENERGIA S.P.A.;7134285639;SALDO Fatt.n. 004812390219  del 28/12/2018 ENERGIA ELETTRICA SCUOLE GENN 2014-GENN 2016;29-01-2019;252;0;316;1;Spese correnti;3;Acquisto di beni e servizi;2;Acquisto di servizi;5;Utenze e canoni;4;Energia elettrica;29-01-2019;
106;2;0;"427,45";"530,58";ENEL ENERGIA S.P.A.;7134285639;SALDO Fatt.n. 004812233668  del 05/12/2018 ENERGIA ELETTRICA: NOVEMBRE 2018;29-01-2019;252;0;316;1;Spese correnti;3;Acquisto di beni e servizi;2;Acquisto di servizi;5;Utenze e canoni;4;Energia elettrica;29-01-2019;
107;1;0;"573,83";"573,83";ENEL ENERGIA S.P.A.;7134285639;SALDO Fatt.n. 004812233693  del 05/12/2018 ENERGIA ELETTRICA MUNICIPIO: NOVEMBRE 2018;29-01-2019;34;0;112;1;Spese correnti;3;Acquisto di beni e servizi;2;Acquisto di servizi;5;Utenze e canoni;4;Energia elettrica;29-01-2019;
108;1;0;"62,77";"62,77";ENEL ENERGIA S.P.A.;7134285639;SALDO Fatt.n. 004812233691  del 05/12/2018 ENERGIA ELETTRICA: NOVEMBRE 2018;29-01-2019;252;0;115;1;Spese correnti;3;Acquisto di beni e servizi;2;Acquisto di servizi;5;Utenze e canoni;4;Energia elettrica;29-01-2019;
109;1;0;"261,26";"261,26";ENEL ENERGIA S.P.A.;7134285639;SALDO Fatt.n. 004812233674  del 05/12/2018 ENERGIA ELETTRICA VILLA RUBELLI: NOVEMBRE 2018;29-01-2019;310;0;117;1;Spese correnti;3;Acquisto di beni e servizi;2;Acquisto di servizi;5;Utenze e canoni;4;Energia elettrica;29-01-2019;
110;1;0;"500,00";"500,00";A.S. DI ANDREATTA GIUSEPPE & C. S.R.L.;ZF826155CF;ACCONTO Fatt.n. PA-0129  del 30/11/2018 MANUTENZIONE IMP. ELETTRICI UFFICI COMUNALI;29-01-2019;235;1;107;1;Spese correnti;3;Acquisto di beni e servizi;2;Acquisto di servizi;9;Manutenzione ordinaria e riparazioni;8;Manutenzione ordinaria e riparazioni di beni immobili;29-01-2019;
111;1;0;"200,00";"200,00";A.S. DI ANDREATTA GIUSEPPE & C. S.R.L.;ZF826155CF;ACCONTO Fatt.n. PA-0129  del 30/11/2018 MANUTENZIONE IMP. ELETTRICI UFFICI COMUNALI;29-01-2019;255;0;106;1;Spese correnti;3;Acquisto di beni e servizi;2;Acquisto di servizi;9;Manutenzione ordinaria e riparazioni;8;Manutenzione ordinaria e riparazioni di beni immobili;29-01-2019;
112;1;0;"97,95";"97,95";A.S. DI ANDREATTA GIUSEPPE & C. S.R.L.;ZF826155CF;ACCONTO Fatt.n. PA-0129  del 30/11/2018 MANUTENZIONE IMP. ELETTRICI UFFICI COMUNALI;29-01-2019;561;4;103;1;Spese correnti;3;Acquisto di beni e servizi;2;Acquisto di servizi;9;Manutenzione ordinaria e riparazioni;8;Manutenzione ordinaria e riparazioni di beni immobili;29-01-2019;
114;1;0;"417,10";"417,10";A.S. DI ANDREATTA GIUSEPPE & C. S.R.L.;ZF826155CF;ACCONTO Fatt.n. PA-0129  del 30/11/2018 MANUTENZIONE IMP. ELETTRICI UFFICI COMUNALI;29-01-2019;744;1;474;2;Spese in conto capitale;2;Investimenti fissi lordi e acquisto di terreni;1;Beni materiali;9;Beni immobili;19;Fabbricati ad uso strumentale;29-01-2019;
115;1;0;"200,00";"200,00";A.S. DI ANDREATTA GIUSEPPE & C. S.R.L.;ZF826155CF;ACCONTO Fatt.n. PA-0129  del 30/11/2018 MANUTENZIONE IMP. ELETTRICI UFFICI COMUNALI;29-01-2019;252;1;108;1;Spese correnti;3;Acquisto di beni e servizi;2;Acquisto di servizi;9;Manutenzione ordinaria e riparazioni;8;Manutenzione ordinaria e riparazioni di beni immobili;29-01-2019;
116;1;0;"650,60";"650,60";A.S. DI ANDREATTA GIUSEPPE & C. S.R.L.;ZF826155CF;SALDO Fatt.n. PA-0129  del 30/11/2018 MANUTENZIONE IMP. ELETTRICI UFFICI COMUNALI;29-01-2019;601;0;109;1;Spese correnti;3;Acquisto di beni e servizi;2;Acquisto di servizi;15;Contratti di servizio pubblico;15;Contratti di servizio per l'illuminazione pubblica;29-01-2019;
117;1;0;"280,60";"280,60";SPAZIO VERDE DI BORDIGNON HENRY;Z981E23E88;SALDO Fatt.n. 1E  del 02/01/2019 PRESTAZIONI ESEGUITE PER RIMOZIONE PROCESSIONARIA;29-01-2019;510;3;144;1;Spese correnti;3;Acquisto di beni e servizi;2;Acquisto di servizi;9;Manutenzione ordinaria e riparazioni;12;Manutenzione ordinaria e riparazioni di terreni e beni materiali non prodotti;29-01-2019;
118;1;0;"31,01";"83,01";KUWAIT PETROLEUM ITALIA S.P.A.;Z4C22448DC;SALDO Fatt.n. PJ00642878  del 31/12/2018 CARBURANTE AUTOMEZZI VIABILITA' - DICEMBRE 2018;29-01-2019;179;0;67;1;Spese correnti;3;Acquisto di beni e servizi;1;Acquisto di beni;2;Altri beni di consumo;2;"Carburanti, combustibili e lubrificanti";29-01-2019;
118;2;0;"52,00";"83,01";KUWAIT PETROLEUM ITALIA S.P.A.;Z4C22448DC;SALDO Fatt.n. PJ00642880  del 31/12/2018 CARBURANTE AUTOMEZZI VIGILI - DICEMBRE 2018;29-01-2019;179;0;67;1;Spese correnti;3;Acquisto di beni e servizi;1;Acquisto di beni;2;Altri beni di consumo;2;"Carburanti, combustibili e lubrificanti";29-01-2019;
119;1;0;"159,90";"159,90";KUWAIT PETROLEUM ITALIA S.P.A.;Z4C22448DC;SALDO Fatt.n. PJ00642879  del 31/12/2018 CARBURANTE AUTOMEZZO ASS. DOMICILIARE - DICEMBRE 2018;29-01-2019;47;0;66;1;Spese correnti;3;Acquisto di beni e servizi;1;Acquisto di beni;2;Altri beni di consumo;2;"Carburanti, combustibili e lubrificanti";29-01-2019;
120;1;0;"1.312,28";"1.312,28";ENEL ENERGIA S.P.A.;7134285639;SALDO Fatt.n. 004812233699  del 05/12/2018 ENERGIA ELETTRICA SCUOLE: NOVEMBRE 2018;29-01-2019;252;0;316;1;Spese correnti;3;Acquisto di beni e servizi;2;Acquisto di servizi;5;Utenze e canoni;4;Energia elettrica;29-01-2019;
121;1;0;"1.860,62";"1.860,62";OPERE PIE D'ONIGO; ;SALDO Fatt.n. 417/2  del 31/12/2018 SPESE PER PERSONA BISOGNOSA B.P. - DICEMBRE 2018;29-01-2019;560;0;15;1;Spese correnti;3;Acquisto di beni e servizi;2;Acquisto di servizi;15;Contratti di servizio pubblico;8;Contratti di servizio di assistenza sociale residenziale e semiresidenziale;29-01-2019;
123;1;0;"12.410,71";"12.410,71";Mobilità di Marca S.P.A.;7168087C82;ACCONTO Fatt.n. 000313  del 31/12/2018 SERVIZIO DI TRASPORTO SCOLASTICO: DICEMBRE 2018;29-01-2019;275;1;301;1;Spese correnti;3;Acquisto di beni e servizi;2;Acquisto di servizi;15;Contratti di servizio pubblico;2;Contratti di servizio di trasporto scolastico;29-01-2019;
124;1;0;"1.777,66";"1.777,66";CASA DI RIPOSO 'AITA'; ;SALDO Fatt.n. 191/B  del 31/12/2018 SPESE PER PERSONA BISOGNOSA L.V. - DICEMBRE 2018;29-01-2019;560;0;18;1;Spese correnti;3;Acquisto di beni e servizi;2;Acquisto di servizi;15;Contratti di servizio pubblico;8;Contratti di servizio di assistenza sociale residenziale e semiresidenziale;29-01-2019;
125;1;0;"140,00";"140,00";SONDA COOPERATIVA SOCIALE ONLUS; ;ACCONTO Fatt.n. 26/PA/2019  del 09/01/2019 PROGETTO DI EMANCIPAZIONE SOCIALE.;29-01-2019;560;0;297;1;Spese correnti;3;Acquisto di beni e servizi;2;Acquisto di servizi;15;Contratti di servizio pubblico;8;Contratti di servizio di assistenza sociale residenziale e semiresidenziale;29-01-2019;
126;1;0;"70,00";"70,00";SONDA COOPERATIVA SOCIALE ONLUS; ;SALDO Fatt.n. 26/PA/2019  del 09/01/2019 PROGETTO DI EMANCIPAZIONE SOCIALE.;29-01-2019;560;0;297;1;Spese correnti;3;Acquisto di beni e servizi;2;Acquisto di servizi;15;Contratti di servizio pubblico;8;Contratti di servizio di assistenza sociale residenziale e semiresidenziale;29-01-2019;
127;1;0;"1.215,24";"1.215,24";CASA DI RIPOSO 'AITA'; ;SALDO Fatt.n. 199/B  del 31/12/2018 SERVIZIO DI COORDINAMENTO "LA ROGGIA"- DICEMBRE 2018;29-01-2019;561;5;340;1;Spese correnti;3;Acquisto di beni e servizi;2;Acquisto di servizi;16;Servizi amministrativi;999;Altre spese per servizi amministrativi;29-01-2019;
128;1;0;"1.823,24";"1.823,24";CASA DI RIPOSO 'AITA'; ;SALDO Fatt.n. 198/B  del 31/12/2018 SERVIZIO DI ASSITENZA DOMICILIARE - DICEMBRE 2018;29-01-2019;562;1;341;1;Spese correnti;3;Acquisto di beni e servizi;2;Acquisto di servizi;15;Contratti di servizio pubblico;9;Contratti di servizio di assistenza sociale domiciliare;29-01-2019;
129;1;0;"585,60";"585,60";HALLEY VENETO SRL;ZE12528DDD;SALDO Fatt.n. 1/190050  del 10/01/2019 AGGIORNAMENTO SITO WEB;29-01-2019;39;0;410;1;Spese correnti;3;Acquisto di beni e servizi;2;Acquisto di servizi;19;Servizi informatici e di telecomunicazioni;1;Gestione e manutenzione applicazioni;29-01-2019;
130;1;0;"515,55";"515,55";UNA CASA PER L'UOMO - SOCIETA' COOPERATIVA SOCIALE;ZA32468D08;SALDO Fatt.n. 000128-2018-PA  del 31/12/2018 PROGETTO IN FAVORE DI PERSONE DISAGIATE;29-01-2019;559;0;334;1;Spese correnti;3;Acquisto di beni e servizi;2;Acquisto di servizi;99;Altri servizi;999;Altri servizi diversi n.a.c.;29-01-2019;
132;1;0;"142,48";"381,44";GREEN TELECOMUNICAZIONI S.P.A.;Z1822467F2;SALDO Fatt.n. E2105  del 12/01/2019 Traffico Telefonico Periodo: dicembre 2018;29-01-2019;34;0;90;1;Spese correnti;3;Acquisto di beni e servizi;2;Acquisto di servizi;5;Utenze e canoni;1;Telefonia fissa;29-01-2019;
132;2;0;"238,96";"381,44";GREEN TELECOMUNICAZIONI S.P.A.;Z1822467F2;SALDO Fatt.n. E1371  del 12/01/2019 Traffico Telefonico Periodo: dicembre 2018;29-01-2019;34;0;90;1;Spese correnti;3;Acquisto di beni e servizi;2;Acquisto di servizi;5;Utenze e canoni;1;Telefonia fissa;29-01-2019;
133;1;0;"175,68";"175,68";TRENTIN ASFALTI S.R.L.;Z9222EF7A0;"SALDO Fatt.n. 22EL  del 31/12/2018 MANUTENZIONE STRADE, ASFALTO A FREDDO";29-01-2019;591;0;152;1;Spese correnti;3;Acquisto di beni e servizi;1;Acquisto di beni;2;Altri beni di consumo;999;Altri beni e materiali di consumo n.a.c.;29-01-2019;
134;1;0;"956,76";"956,76";MENEGHIN MAURIZIO;Z24263188D;SALDO Fatt.n. 3E  del 18/12/2018 LAVORI URGENTI PER RIFACIMENTO SCARICHI CIMITERO;29-01-2019;898;3;533;2;Spese in conto capitale;2;Investimenti fissi lordi e acquisto di terreni;1;Beni materiali;9;Beni immobili;15;Cimiteri;29-01-2019;
135;1;0;"2.667,40";"2.667,40";EDIL MUNAROLO DI MUNAROLO IVAN & C. S.N.C.;Z102644FDA;ACCONTO Fatt.n. 3A  del 11/01/2019 LAVORI DI SISTEMAZIONE SENTIERO "VALLE DELLE RU";29-01-2019;591;1;516;1;Spese correnti;3;Acquisto di beni e servizi;2;Acquisto di servizi;9;Manutenzione ordinaria e riparazioni;12;Manutenzione ordinaria e riparazioni di terreni e beni materiali non prodotti;29-01-2019;
136;1;0;"3.243,72";"3.243,72";EDIL MUNAROLO DI MUNAROLO IVAN & C. S.N.C.;Z102644FDA;SALDO Fatt.n. 3A  del 11/01/2019 LAVORI DI SISTEMAZIONE SENTIERO "VALLE DELLE RU";29-01-2019;593;0;515;1;Spese correnti;3;Acquisto di beni e servizi;2;Acquisto di servizi;9;Manutenzione ordinaria e riparazioni;12;Manutenzione ordinaria e riparazioni di terreni e beni materiali non prodotti;29-01-2019;
137;1;0;"8.143,20";"8.143,20";EDIL MUNAROLO DI MUNAROLO IVAN & C. S.N.C.;Z65264485E;SALDO Fatt.n. 1A  del 11/01/2019 LAVORI SU TRATTO DI MARCIAPIEDE VILLA RUBELLI;29-01-2019;593;0;511;1;Spese correnti;3;Acquisto di beni e servizi;2;Acquisto di servizi;9;Manutenzione ordinaria e riparazioni;11;Manutenzione ordinaria e riparazioni di altri beni materiali;29-01-2019;
138;1;0;"1.335,00";"1.335,00";OMESSO NOMINATIVO NEL RISPETTO DELLA NORMATIVA SULLA PROTEZIONE DATI PERSONALI; ;CONTRIBUTO ALL' ASSOCIAZIONE AMICI DEI POMPIERI DI ASOLO PER LA GESTIONE DEL DISTACCAMENTO VOLONTARIO DEI VIGILI DEL FUOCO - ANNO 2018.;29-01-2019;334;0;619;1;Spese correnti;4;Trasferimenti correnti;1;Trasferimenti correnti a Amministrazioni Pubbliche;4;Trasferimenti correnti a organismi interni e/o unità locali della amministrazione;1;Trasferimenti correnti a organismi interni e/o unità locali della amministrazione;29-01-2019;
139;1;0;"6.050,00";"6.050,00";EDIL MUNAROLO DI MUNAROLO IVAN & C. S.N.C.;Z602608433;SALDO Fatt.n. 2A  del 11/01/2019 LAVORI DI ASFALTATURA STRADE COMUNALI;29-01-2019;1007;0;492;2;Spese in conto capitale;2;Investimenti fissi lordi e acquisto di terreni;1;Beni materiali;9;Beni immobili;12;Infrastrutture stradali;29-01-2019;
140;1;0;"1.038,84";"1.038,84";CENTRO CONTABILE SRL;Z06269557E;ACCONTO Fatt.n. 10002  del 17/01/2019 NOLEGGIO COPIATRICI MESE DI GENNAIO 2019;29-01-2019;34;0;8;1;Spese correnti;3;Acquisto di beni e servizi;2;Acquisto di servizi;5;Utenze e canoni;999;Utenze e canoni per altri servizi n.a.c.;29-01-2019;
141;1;0;"322,52";"322,52";CENTRO CONTABILE SRL;Z06269557E;ACCONTO Fatt.n. 10002  del 17/01/2019 NOLEGGIO COPIATRICI MESE DI GENNAIO 2019;29-01-2019;235;0;9;1;Spese correnti;3;Acquisto di beni e servizi;2;Acquisto di servizi;5;Utenze e canoni;999;Utenze e canoni per altri servizi n.a.c.;29-01-2019;
142;1;0;"468,64";"468,64";CENTRO CONTABILE SRL;Z06269557E;SALDO Fatt.n. 10002  del 17/01/2019 NOLEGGIO COPIATRICI MESE DI GENNAIO 2019;29-01-2019;252;0;10;1;Spese correnti;3;Acquisto di beni e servizi;2;Acquisto di servizi;5;Utenze e canoni;999;Utenze e canoni per altri servizi n.a.c.;29-01-2019;
143;1;0;"1.149,32";"1.149,32";CENTRO CONTABILE SRL;Z7F26A4BD9;ACCONTO Fatt.n. 10003  del 17/01/2019 CONTRATTO DI LOCAZIONE FOTOCOPIATORI ANNO 2018;29-01-2019;34;0;15;1;Spese correnti;3;Acquisto di beni e servizi;2;Acquisto di servizi;5;Utenze e canoni;999;Utenze e canoni per altri servizi n.a.c.;29-01-2019;
144;1;0;"230,00";"230,00";A.N.U.T.E.L. - ASSOCIAZ. NAZ. UFF. TRIBUTI ENTI LOCALI; ;IMPEGNO E LIQUIDAZIONE QUOTA ASSOCIATIVA A.N.U.T.E.L. ANNO 2019.;29-01-2019;51;1;35;1;Spese correnti;3;Acquisto di beni e servizi;2;Acquisto di servizi;99;Altri servizi;3;Quote di associazioni;29-01-2019;
145;1;0;"553,43";"553,43";CENTRO CONTABILE SRL;Z7F26A4BD9;SALDO Fatt.n. 10003  del 17/01/2019 CONTRATTO DI LOCAZIONE FOTOCOPIATORI ANNO 2018;29-01-2019;252;0;16;1;Spese correnti;3;Acquisto di beni e servizi;2;Acquisto di servizi;5;Utenze e canoni;999;Utenze e canoni per altri servizi n.a.c.;29-01-2019;
146;1;0;"7.500,00";"7.500,00";ASSIDUE S.R.L.;ZDD2671BF1;IMPEGNO DI SPESA E LIQUIDAZIONE PER IL RINNOVO DELLA POLIZZA ASSICURATIVA RCTO CON LA COMPAGNIA UNIPOL SAI ASSICURAZIONI TRAMITE LA SOCIETA' ASSIDUE SRL DI TREVISO.;29-01-2019;35;0;542;1;Spese correnti;10;Altre spese correnti;4;Premi di assicurazione;1;Premi di assicurazione contro i danni;3;Premi di assicurazione per responsabilità civile verso terzi;29-01-2019;
147;1;0;"2.193,83";"2.193,83";CENTRO CONTABILE SRL;ZB0223C5F5;ACCONTO Fatt.n. 10057  del 25/07/2018 CANONE NOLEGGIO FOTOCOPIATORI;29-01-2019;235;0;59;1;Spese correnti;3;Acquisto di beni e servizi;2;Acquisto di servizi;5;Utenze e canoni;999;Utenze e canoni per altri servizi n.a.c.;29-01-2019;
148;1;0;"91,50";"91,50";CENTRO CONTABILE SRL;ZB0223C5F5;SALDO Fatt.n. 10057  del 25/07/2018 CANONE NOLEGGIO FOTOCOPIATORI;29-01-2019;252;0;60;1;Spese correnti;3;Acquisto di beni e servizi;2;Acquisto di servizi;5;Utenze e canoni;999;Utenze e canoni per altri servizi n.a.c.;29-01-2019;
153;1;0;"6.200,00";"6.200,00";F.C.D. UNION EZZELINA; ;IMPEGNO DI SPESA E LIQUIDAZIONE CONTRIBUTO ALLA F.C.D.  UNION EZZELINA  PER LA GESTIONE DEGLI IMPIANTI SPORTIVI COMUNALI (STADIO) DI VIA VIVALDI - SECONDO SEMESTRE 2018.;29-01-2019;533;0;330;1;Spese correnti;4;Trasferimenti correnti;1;Trasferimenti correnti a Amministrazioni Pubbliche;4;Trasferimenti correnti a organismi interni e/o unità locali della amministrazione;1;Trasferimenti correnti a organismi interni e/o unità locali della amministrazione;29-01-2019;
154;1;0;"2.500,00";"2.500,00";ATTIVITA' MOTORIE LA TORRE; ;IMPEGNO DI SPESA E LIQUIDAZIONE CONTRIBUTO ALL'ASSOCIAZIONE SPORTIVA " ATTIVITA' MOTORIE LA TORRE" PER LA GESTIONE DELLA PALESTRA COMUNALE DEL CAPOLUOGO CON ANNESSI IMPIANTI SPORTIVI E PARCO GIOCHI - SECONDO SEMESTRE 2018.;29-01-2019;533;0;293;1;Spese correnti;4;Trasferimenti correnti;1;Trasferimenti correnti a Amministrazioni Pubbliche;4;Trasferimenti correnti a organismi interni e/o unità locali della amministrazione;1;Trasferimenti correnti a organismi interni e/o unità locali della amministrazione;29-01-2019;
155;1;0;"1.170,00";"1.170,00";OMESSO NOMINATIVO NEL RISPETTO DELLA NORMATIVA SULLA PROTEZIONE DATI PERSONALI; ;IMPEGNO DI SPESA E LIQUIDAZIONE CONTRIBUTO ALL' A.S. "EZZELINA VOLLEY CARINATESE" DI SAN ZENONE DEGLI EZZELINI PER IL SERVIZIO DI SORVEGLIANZA E PULIZIA DEI LOCALI DELLA PALESTRA DI CA' RAINATI;29-01-2019;533;0;605;1;Spese correnti;4;Trasferimenti correnti;1;Trasferimenti correnti a Amministrazioni Pubbliche;4;Trasferimenti correnti a organismi interni e/o unità locali della amministrazione;1;Trasferimenti correnti a organismi interni e/o unità locali della amministrazione;29-01-2019;
156;1;0;"8.830,00";"8.830,00";OMESSO NOMINATIVO NEL RISPETTO DELLA NORMATIVA SULLA PROTEZIONE DATI PERSONALI; ;RETTIFICA DETERMINA N. 418 DEL 21.12.2018 "IMPEGNO DI SPESA E LIQUIDAZIONE CONTRIBUTO ALL'A.S. EZZELINA VOLLEY CARINATESE DI SAN ZENONE DEGLI EZZELINI PER IL SERVIZIO DI SORVEGLIANZA E PULIZIA DEI LOCALI DELLA PALESTRA DI CA' RAINATI-SALDO ANNO 2018;29-01-2019;533;0;637;1;Spese correnti;4;Trasferimenti correnti;1;Trasferimenti correnti a Amministrazioni Pubbliche;4;Trasferimenti correnti a organismi interni e/o unità locali della amministrazione;1;Trasferimenti correnti a organismi interni e/o unità locali della amministrazione;29-01-2019;
157;1;0;"660,00";"660,00";A.N.U.S.C.A.; ;IMPEGNO E LIQUIDAZIONE QUOTA ASSOCIATIVA A.N.U.S.C.A. ANNO 2019.;30-01-2019;51;1;14;1;Spese correnti;3;Acquisto di beni e servizi;2;Acquisto di servizi;99;Altri servizi;3;Quote di associazioni;30-01-2019;
158;1;0;"295,50";"295,50";OMESSO NOMINATIVO NEL RISPETTO DELLA NORMATIVA SULLA PROTEZIONE DATI PERSONALI; ;FATT. PASTI CASA DI RIPOSO AITA N. 2162/A DEL 31/12/2018.;30-01-2019;576;0;460;1;Spese correnti;4;Trasferimenti correnti;2;Trasferimenti correnti a Famiglie;2;Interventi assistenziali;999;Altri assegni e sussidi assistenziali;30-01-2019;
159;1;0;"106,50";"106,50";OMESSO NOMINATIVO NEL RISPETTO DELLA NORMATIVA SULLA PROTEZIONE DATI PERSONALI; ;FATT. PASTI A DOMICILIO CASA DI RIPOSO AITA N. 2158/A DEL 31/12/2018.;30-01-2019;576;0;412;1;Spese correnti;4;Trasferimenti correnti;2;Trasferimenti correnti a Famiglie;2;Interventi assistenziali;999;Altri assegni e sussidi assistenziali;30-01-2019;
160;1;0;"3.592,85";"3.592,85";BIM PIAVE NUOVE ENERGIE S.R.L.; ;LIQUIDAZIONE COSTI PER ADESIONE AL SERVIZIO UNIPASS ANNO 2018 AL CONSORZIO B.I.M. PIAVE DI TREVISO.;30-01-2019;51;1;629;1;Spese correnti;3;Acquisto di beni e servizi;2;Acquisto di servizi;99;Altri servizi;3;Quote di associazioni;30-01-2019;
161;1;0;"30.000,00";"30.000,00";OMESSO NOMINATIVO NEL RISPETTO DELLA NORMATIVA SULLA PROTEZIONE DATI PERSONALI; ;PROGETTO DI MESSA IN SICUREZZA DELLA SCUOLA D'INFANZIA PARITARIA "SAN GIUSEPPE". LIQUIDAZIONE TERZA RATA DEL CONTRIBUTO STRAORDINARIO ALLA PARROCCHIA DI SAN ZENONE VESCOVO E MARTIRE DI SAN ZENONE DEGLI EZZELINI.;30-01-2019;740;1;37;2;Spese in conto capitale;3;Contributi agli investimenti;4;Contributi agli investimenti a Istituzioni Sociali Private;1;Contributi agli investimenti a Istituzioni Sociali Private;1;Contributi agli investimenti a Istituzioni Sociali Private;30-01-2019;
163;1;0;"4.635,00";"4.635,00";OMESSO NOMINATIVO NEL RISPETTO DELLA NORMATIVA SULLA PROTEZIONE DATI PERSONALI; ;LIQUIDAZIONE A SALDO CONTRIBUTO AL GRUPPO COMUNALE DI PROTEZIONE CIVILE DI SAN ZENONE DEGLI EZZELINI - ANNO 2018 -;30-01-2019;382;1;217;1;Spese correnti;4;Trasferimenti correnti;1;Trasferimenti correnti a Amministrazioni Pubbliche;4;Trasferimenti correnti a organismi interni e/o unità locali della amministrazione;1;Trasferimenti correnti a organismi interni e/o unità locali della amministrazione;30-01-2019;
164;1;0;"1.000,00";"1.000,00";OMESSO NOMINATIVO NEL RISPETTO DELLA NORMATIVA SULLA PROTEZIONE DATI PERSONALI; ;ERGAZIONE CONTRIBUTO ALLA ASSOCIAZIONE PRO LOCO SAN ZENONE DEGLI EZZELINI A SOSTEGNO DEGLI EVENTI DEL CARTELLONE 2018 "EPOCHE".;30-01-2019;334;0;615;1;Spese correnti;4;Trasferimenti correnti;1;Trasferimenti correnti a Amministrazioni Pubbliche;4;Trasferimenti correnti a organismi interni e/o unità locali della amministrazione;1;Trasferimenti correnti a organismi interni e/o unità locali della amministrazione;30-01-2019;
165;1;0;"1.683,00";"1.683,00";ASSOCIAZIONE VOLONTARIATO A.V.A.B.; ;LIQUIDAZIONE SPESA PER IL SERVIZIO DI CONSEGNA PASTI A DOMICILIO - Acconto PRIMO SEMESTRE 2018.;30-01-2019;574;0;160;1;Spese correnti;4;Trasferimenti correnti;1;Trasferimenti correnti a Amministrazioni Pubbliche;4;Trasferimenti correnti a organismi interni e/o unità locali della amministrazione;1;Trasferimenti correnti a organismi interni e/o unità locali della amministrazione;30-01-2019;
166;1;0;"44,88";"44,88";ASSOCIAZIONE VOLONTARIATO A.V.A.B.; ;IMPEGNO DI SPESA A FAVORE DELL'ASSOCIAZIONE INTERPARROCHIALE VOLONTARI ASSISTENZA AMMALATI BISOGNOSI (A.V.A.B.) DI SAN ZENONE DEGLI EZZELINI PER IL SERVIZIO DI CONSEGNA PASTI A DOMICILIO: LIQUIDAZIONE a saldo SECONDO SEMESTRE 2018.;30-01-2019;574;0;160;1;Spese correnti;4;Trasferimenti correnti;1;Trasferimenti correnti a Amministrazioni Pubbliche;4;Trasferimenti correnti a organismi interni e/o unità locali della amministrazione;1;Trasferimenti correnti a organismi interni e/o unità locali della amministrazione;30-01-2019;
167;1;0;"900,00";"1.800,00";BRUN LUIGINO;Z931DEF8D8;LIQUIDAZIONE QUOTA 2018 PER COMODATO DI UTILIZZO IMMOBILE DA DESTINARE AD ARCHIVIO COMUNALE. CIG: Z931DEF8D8;31-01-2019;516;0;151;1;Spese correnti;3;Acquisto di beni e servizi;2;Acquisto di servizi;7;Utilizzo di beni di terzi;1;Locazione di beni immobili;31-01-2019;
167;2;0;"900,00";"1.800,00";RINALDO BRUNO;Z931DEF8D8;LIQUIDAZIONE QUOTA 2018 PER COMODATO DI UTILIZZO IMMOBILE DA DESTINARE AD ARCHIVIO COMUNALE. CIG: Z931DEF8D8;31-01-2019;516;0;151;1;Spese correnti;3;Acquisto di beni e servizi;2;Acquisto di servizi;7;Utilizzo di beni di terzi;1;Locazione di beni immobili;31-01-2019;
168;1;0;"350,00";"350,00";OMESSO NOMINATIVO NEL RISPETTO DELLA NORMATIVA SULLA PROTEZIONE DATI PERSONALI; ;IMPEGNO E LIQUIDAZIONE CONTRIBUTO FINANZIARIO PER ORGANIZZAZIONE DELLA FESTA DELLA TERZA ETA' - EDIZIONE 2018.;31-01-2019;334;0;617;1;Spese correnti;4;Trasferimenti correnti;1;Trasferimenti correnti a Amministrazioni Pubbliche;4;Trasferimenti correnti a organismi interni e/o unità locali della amministrazione;1;Trasferimenti correnti a organismi interni e/o unità locali della amministrazione;31-01-2019;
169;1;0;"220,00";"220,00";INTESA SANPAOLO GROUP SERVICES;Z291CE3241;GIRO CONTABILE AL CAP. 2482 ENTRATA PER IVA SPLIT ISTITUZIONALE - su Fatt.n. V6001114  del 13/11/2018 COMPETENZE SERVIZI CASSA/TESORERIA ANNO 2018 - VEDI REV. N. 84 DEL 31/01/2019.;31-01-2019;46;0;461;1;Spese correnti;3;Acquisto di beni e servizi;2;Acquisto di servizi;17;Servizi finanziari;2;Oneri per servizio di tesoreria;31-01-2019;
170;1;0;"16,50";"16,50";INTESA SANPAOLO GROUP SERVICES;Z2F24B19F0;GIRO CONTABILE AL CAP. 2482 ENTRATA PER IVA SPLIT ISTITUZIONALE su Fatt.n. V6001115  del 13/11/2018 COMPENSO OPI FULL/SIOPE PLUS  ANNO 2018 - VEDI REV. N. 85 DEL 31/01/2019.;31-01-2019;34;2;365;1;Spese correnti;3;Acquisto di beni e servizi;2;Acquisto di servizi;13;Servizi ausiliari per il funzionamento dell'ente;999;Altri servizi ausiliari n.a.c.;31-01-2019;
174;1;0;"514,16";"514,16";AS.COM SERVIZI DEL MANDAMENTO S.R.L.; ;SALDO Fatt.n. 00011/02  del 07/01/2019 LOCAZIONE CENTRO PER L'IMPIEGO;05-02-2019;516;0;22;1;Spese correnti;3;Acquisto di beni e servizi;2;Acquisto di servizi;7;Utilizzo di beni di terzi;1;Locazione di beni immobili;05-02-2019;
175;1;0;"1.616,23";"1.616,23";FASAN ANNA;ZD2207DCA4;ACCONTO Fatt.n. FATTPA 4_18  del 29/12/2018 ESUMAZIONI SALME CIMITERI COMUNALI;05-02-2019;413;1;513;1;Spese correnti;3;Acquisto di beni e servizi;2;Acquisto di servizi;9;Manutenzione ordinaria e riparazioni;8;Manutenzione ordinaria e riparazioni di beni immobili;05-02-2019;
176;1;0;"2.060,00";"2.060,00";FASAN ANNA;ZD2207DCA4;SALDO Fatt.n. FATTPA 4_18  del 29/12/2018 ESUMAZIONI SALME CIMITERI COMUNALI;05-02-2019;898;0;512;2;Spese in conto capitale;2;Investimenti fissi lordi e acquisto di terreni;1;Beni materiali;9;Beni immobili;15;Cimiteri;05-02-2019;
177;1;0;"976,00";"976,00";KAPPADUE SNC DI FORNER E. & FAVERO L.;ZD62622B36;SALDO Fatt.n. 29  del 19/12/2018 MATERIALE PROMOZIONALE PER EVENTI CULTURALI;05-02-2019;42;0;507;1;Spese correnti;3;Acquisto di beni e servizi;2;Acquisto di servizi;2;"Organizzazione eventi, pubblicita` e servizi per trasferta";5;Organizzazione e partecipazione a manifestazioni e convegni;05-02-2019;
178;1;0;"87,84";"87,84";PULISECCO LA PERLA di MARTINELLO MARIA;Z392680340;SALDO Fatt.n. 6/08  del 04/12/2018 PULIZIA COPERTE;05-02-2019;42;0;552;1;Spese correnti;3;Acquisto di beni e servizi;2;Acquisto di servizi;2;"Organizzazione eventi, pubblicita` e servizi per trasferta";999;"Altre spese per relazioni pubbliche, convegni e mostre, pubblicita` n.a.c";05-02-2019;
179;1;0;"234,85";"234,85";NEULIFT SERVICE TRIVENETO SRL;ZC7269A3FC;SALDO Fatt.n. 100004  del 22/01/2019 UTENZE E CANONI SCUOLA PRIMARIA;05-02-2019;235;0;11;1;Spese correnti;3;Acquisto di beni e servizi;2;Acquisto di servizi;5;Utenze e canoni;999;Utenze e canoni per altri servizi n.a.c.;05-02-2019;
180;1;0;"22,35";"22,35";E.N.P.A. ENTE NAZIONALE PROTEZIONE ANIMALI ONLUS;ZA6224846A;SALDO Fatt.n. 145/PA  del 21/01/2019 SPESE PER MANTENIMENTO CANI RANDAGI;05-02-2019;180;0;385;1;Spese correnti;3;Acquisto di beni e servizi;2;Acquisto di servizi;15;Contratti di servizio pubblico;11;Contratti di servizio per la lotta al randagismo;05-02-2019;
182;1;0;"123,33";"123,33";LA FONTESE DI GIANNI BROLESE & C. S.A.S.;Z9D25E1C3D;SALDO Fatt.n. 9/F  del 31/01/2019 FORNITURA MATERIALE DI CANCELLERIA;05-02-2019;37;0;459;1;Spese correnti;3;Acquisto di beni e servizi;1;Acquisto di beni;2;Altri beni di consumo;1;"Carta, cancelleria e stampati";05-02-2019;
183;1;0;"2.918,24";"2.918,24";STUDIO LEGALE AVVOCATI BORELLA SARTORATO E ASSOCIATI; ;SALDO Fatt.n. PA6/2019  del 01/02/2019 SALDO COMPETENZE LEGALI;05-02-2019;49;0;1095;1;Spese correnti;3;Acquisto di beni e servizi;2;Acquisto di servizi;99;Altri servizi;2;Altre spese legali;05-02-2019;
186;1;0;"15.000,00";"15.000,00";AZIENDA U.L.S.S. N.2  MARCA TREVIGIANA; ;"TUTELA SOCIALE  MINORILE, ONERI PER LE FUNZIONI DELEGATE. IMPEGNO E LIQUIDAZIONE SECONDO E TERZO QUADRIMESTRE  A FAVORE DELL'AZIENDA U.L.S.S. N. 2 MARCA TREVIGIANA (EX ULSS8).";06-02-2019;566;1;635;1;Spese correnti;3;Acquisto di beni e servizi;2;Acquisto di servizi;15;Contratti di servizio pubblico;8;Contratti di servizio di assistenza sociale residenziale e semiresidenziale;06-02-2019;
188;1;0;"610,00";"610,00";ASSOCIAZIONE COMUNI MARCA TREVIGIANA; ;IMPEGNO DI SPESA PER QUOTA ASSOCIATIVA ANNO 2018.;06-02-2019;51;1;642;1;Spese correnti;3;Acquisto di beni e servizi;2;Acquisto di servizi;99;Altri servizi;3;Quote di associazioni;06-02-2019;
189;1;0;"610,00";"610,00";ASSOCIAZIONE COMUNI MARCA TREVIGIANA; ;IMPEGNO DI SPESA E LIQUIDAZIONE QUOTA ASSOCIATIVA ANNO 2019.;06-02-2019;51;1;50;1;Spese correnti;3;Acquisto di beni e servizi;2;Acquisto di servizi;99;Altri servizi;3;Quote di associazioni;06-02-2019;
190;1;0;"95,46";"95,46";CALLEGARO F. DI CALLEGARO & C. SAS; ;RIMBORSO A DITTA FORNITRICE DI TESTI SCOLASTICI PER LA SCUOLA PRIMARIA A.S. 2018/2019.;06-02-2019;239;0;634;1;Spese correnti;3;Acquisto di beni e servizi;1;Acquisto di beni;1;"Giornali, riviste e pubblicazioni";2;Pubblicazioni;06-02-2019;
191;1;0;"271,20";"271,20";OMESSO NOMINATIVO NEL RISPETTO DELLA NORMATIVA SULLA PROTEZIONE DATI PERSONALI; ;IMPEGNO DI SPESA PER DEVOLUZIONE SOMMA RELATIVA A "GETTONI DI PRESENZA DI ALCUNI CONSIGLIERI COMUNALI ANNO 2018"  ALLA SCUOLA MATERNA SAN GIUSEPPE DI SAN ZENONE DEGLI EZZELINI.;14-02-2019;51;1;644;1;Spese correnti;3;Acquisto di beni e servizi;2;Acquisto di servizi;99;Altri servizi;3;Quote di associazioni;14-02-2019;
193;1;0;"7.750,00";"7.750,00";OMESSO NOMINATIVO NEL RISPETTO DELLA NORMATIVA SULLA PROTEZIONE DATI PERSONALI; ;ACCERTAMENTO E LIQUIDAZIONE CONTRIBUTO REGIONALE A FAVORE DELLE FAMIGLIE CON PARTI TRIGEMELLARI E DELLE FAMIGLIE CON NUMERO DI FIGLI PARI O SUPERIORE A QUATTRO - ANNO 2018.;15-02-2019;502;0;616;1;Spese correnti;4;Trasferimenti correnti;2;Trasferimenti correnti a Famiglie;2;Interventi assistenziali;999;Altri assegni e sussidi assistenziali;15-02-2019;
196;1;0;"37,03";"37,03";PERSONALE DIPENDENTE - SEDE; ;STIPENDI MESE DI: FEBBRAIO 19;18-02-2019;20;0;29;1;Spese correnti;3;Acquisto di beni e servizi;2;Acquisto di servizi;2;"Organizzazione eventi, pubblicita` e servizi per trasferta";1;Rimborso per viaggio e trasloco;18-02-2019;
225;1;0;"5.333,71";"5.333,71";AMMINISTRATORI COMUNALI; ;STIPENDI MESE DI: FEBBRAIO 19;18-02-2019;2;0;6;1;Spese correnti;3;Acquisto di beni e servizi;2;Acquisto di servizi;1;Organi e incarichi istituzionali dell'amministrazione;1;Organi istituzionali dell'amministrazione - Indennità;18-02-2019;
226;1;0;"515,28";"515,28";AMMINISTRATORI COMUNALI; ;STIPENDI MESE DI: FEBBRAIO 19;18-02-2019;2;0;643;1;Spese correnti;3;Acquisto di beni e servizi;2;Acquisto di servizi;1;Organi e incarichi istituzionali dell'amministrazione;1;Organi istituzionali dell'amministrazione - Indennità;18-02-2019;
230;1;0;"10.000,00";"10.000,00";PARROCCHIA DI SAN ZENONE VESCOVO E MARTIRE; ;LIQUIDAZIONE CONTRIBUTO STRAORDINARIO ALLA PARROCCHIA DI SAN ZENONE VESCOVO E MARTIRE DI SAN ZENONE DEGLI EZZELINI PER I LAVORI DI MESSA IN SICUREZZA DELLA SCUOLA DELL'INFANZIA PARITARIA "SAN GIUSEPPE";20-02-2019;221;0;632;1;Spese correnti;4;Trasferimenti correnti;4;Trasferimenti correnti a Istituzioni Sociali Private;1;Trasferimenti correnti a Istituzioni Sociali Private;1;Trasferimenti correnti a Istituzioni Sociali Private;20-02-2019;
231;1;0;"154.716,18";"154.716,18";AGENZIA DELLE ENTRATE- RISCOSS.-ROVIGO (FATTURA C.S.M.);6867174B3F;"CODICE IDENTIFICATIVO FASCICOLO: 99/2018/14400 (Acconto Fatt. n. 11/PA  del 01/08/18 C.S.M. Acciaio per lavori di ristrutturazione, adeguamento sismico plesso scolastico capoluogo - certif. pagamento n. 4 del 28/06/2018).";20-02-2019;775;0;614;2;Spese in conto capitale;2;Investimenti fissi lordi e acquisto di terreni;1;Beni materiali;9;Beni immobili;3;Fabbricati ad uso scolastico;20-02-2019;
232;1;0;"12.263,82";"12.263,82";AGENZIA DELLE ENTRATE- RISCOSS.-ROVIGO (FATTURA C.S.M.);6867174B3F;"CODICE IDENTIFICATIVO FASCICOLO: 99/2018/14400 (Acconto Fatt. n. 11/PA  del 01/08/18 C.S.M. Acciaio per lavori di ristrutturazione, adeguamento sismico plesso scolastico capoluogo - certif. pagamento n. 4 del 28/06/2018).";20-02-2019;775;2;546;2;Spese in conto capitale;2;Investimenti fissi lordi e acquisto di terreni;1;Beni materiali;9;Beni immobili;3;Fabbricati ad uso scolastico;20-02-2019;
233;1;0;"3.500,00";"3.500,00";OMESSO NOMINATIVO NEL RISPETTO DELLA NORMATIVA SULLA PROTEZIONE DATI PERSONALI; ;LIQUIDAZIONE CONTRIBUTO INTEGRATIVO ALL'ORGANIZZAZIONE DI VOLONTARIATO PROTEZIONE CIVILE DI SAN ZENONE DEGLI EZZELINI - ANNO 2018.;22-02-2019;382;1;592;1;Spese correnti;4;Trasferimenti correnti;1;Trasferimenti correnti a Amministrazioni Pubbliche;4;Trasferimenti correnti a organismi interni e/o unità locali della amministrazione;1;Trasferimenti correnti a organismi interni e/o unità locali della amministrazione;22-02-2019;
234;1;0;"7.150,35";"7.150,35";TEC.SE. SRL;Z6926242C7;SALDO Fatt.n. 35  del 30/01/2019 LAVORI DI SEGNALETICA ORIZZONTALE;25-02-2019;1007;0;493;2;Spese in conto capitale;2;Investimenti fissi lordi e acquisto di terreni;1;Beni materiali;9;Beni immobili;12;Infrastrutture stradali;25-02-2019;
235;1;0;"316,65";"316,65";POSTE ITALIANE SPA - PROVENTI POLO LOGISTICO;Z012195FE1;SALDO Fatt.n. 8719000151  del 15/01/2019 SMA FT ANTICIPATA NAZ. - DICEMBRE  2018;25-02-2019;34;3;16;1;Spese correnti;3;Acquisto di beni e servizi;2;Acquisto di servizi;16;Servizi amministrativi;2;Spese postali;25-02-2019;
236;1;0;"242,00";"242,00";POSTE ITALIANE SPA - PROVENTI POLO LOGISTICO;Z6F2648DBC;SALDO Fatt.n. 8719004370  del 18/01/2019 SERVIZIO DI POSTA PICK UP - GENNAIO 2019;25-02-2019;34;3;540;1;Spese correnti;3;Acquisto di beni e servizi;2;Acquisto di servizi;16;Servizi amministrativi;2;Spese postali;25-02-2019;
237;1;0;"436,15";"436,15";ENEL ENERGIA S.P.A.;7134285639;ACCONTO Fatt.n. 003001266437  del 10/01/2019 ENERGIA ELETTRICA MUNICIPIO - DICEMBRE 2018;25-02-2019;34;0;112;1;Spese correnti;3;Acquisto di beni e servizi;2;Acquisto di servizi;5;Utenze e canoni;4;Energia elettrica;25-02-2019;
238;1;0;"93,18";"93,18";ENEL ENERGIA S.P.A.;7134285639;SALDO Fatt.n. 003001266423  del 10/01/2019 ENERGIA ELETTRICA MAGAZZINO: DICEMBRE 2018;25-02-2019;71;0;113;1;Spese correnti;3;Acquisto di beni e servizi;2;Acquisto di servizi;5;Utenze e canoni;4;Energia elettrica;25-02-2019;
239;1;0;"664,86";"664,86";ENEL ENERGIA S.P.A.;7134285639;SALDO Fatt.n. 003001266445  del 10/01/2019 ENERGIA ELETTRICA CENTRO POLIVALENTE: DICEMBRE 2018;25-02-2019;561;2;317;1;Spese correnti;3;Acquisto di beni e servizi;2;Acquisto di servizi;5;Utenze e canoni;4;Energia elettrica;25-02-2019;
240;1;0;"424,17";"1.868,03";ENEL ENERGIA S.P.A.;7134285639;SALDO Fatt.n. 003001266412  del 10/01/2019 ENERGIA ELETTRICA SCUOLA PRIMARIA: DICEMBRE 2018;25-02-2019;235;0;596;1;Spese correnti;3;Acquisto di beni e servizi;2;Acquisto di servizi;5;Utenze e canoni;4;Energia elettrica;25-02-2019;
240;2;0;"1.443,86";"1.868,03";ENEL ENERGIA S.P.A.;7134285639;SALDO Fatt.n. 003001266442  del 10/01/2019 ENERGIA ELETTRICA SCUOLE: DICEMBRE 2018;25-02-2019;235;0;596;1;Spese correnti;3;Acquisto di beni e servizi;2;Acquisto di servizi;5;Utenze e canoni;4;Energia elettrica;25-02-2019;
241;1;0;"98,32";"700,23";ENEL ENERGIA S.P.A.;7134285639;SALDO Fatt.n. 003001266446  del 10/01/2019 ENERGIA ELETTRICA CENTRO CULTURALE: DICEMBRE 2018;25-02-2019;311;0;118;1;Spese correnti;3;Acquisto di beni e servizi;2;Acquisto di servizi;5;Utenze e canoni;4;Energia elettrica;25-02-2019;
241;2;0;"165,71";"700,23";ENEL ENERGIA S.P.A.;7134285639;SALDO Fatt.n. 003001266443  del 10/01/2019 ENERGIA ELETTRICA: DICEMBRE 2018;25-02-2019;311;0;118;1;Spese correnti;3;Acquisto di beni e servizi;2;Acquisto di servizi;5;Utenze e canoni;4;Energia elettrica;25-02-2019;
241;3;0;"436,20";"700,23";ENEL ENERGIA S.P.A.;7134285639;SALDO Fatt.n. 003001266419  del 10/01/2019 ENERGIA ELETTRICA: DICEMBRE 2018;25-02-2019;311;0;118;1;Spese correnti;3;Acquisto di beni e servizi;2;Acquisto di servizi;5;Utenze e canoni;4;Energia elettrica;25-02-2019;
242;1;0;"50,53";"3.242,32";ENEL ENERGIA S.P.A.;7134285639;SALDO Fatt.n. 003001266420  del 10/01/2019 ENERGIA ELETTRICA: DICEMBRE 2018;25-02-2019;600;0;121;1;Spese correnti;3;Acquisto di beni e servizi;2;Acquisto di servizi;5;Utenze e canoni;4;Energia elettrica;25-02-2019;
242;2;0;"81,74";"3.242,32";ENEL ENERGIA S.P.A.;7134285639;SALDO Fatt.n. 003001266426  del 10/01/2019 ENERGIA ELETTRICA: DICEMBRE 2018;25-02-2019;600;0;121;1;Spese correnti;3;Acquisto di beni e servizi;2;Acquisto di servizi;5;Utenze e canoni;4;Energia elettrica;25-02-2019;
242;3;0;"90,01";"3.242,32";ENEL ENERGIA S.P.A.;7134285639;SALDO Fatt.n. 003001266425  del 10/01/2019 ENERGIA ELETTRICA  DICEMBRE 2018;25-02-2019;600;0;121;1;Spese correnti;3;Acquisto di beni e servizi;2;Acquisto di servizi;5;Utenze e canoni;4;Energia elettrica;25-02-2019;
242;4;0;"104,92";"3.242,32";ENEL ENERGIA S.P.A.;7134285639;SALDO Fatt.n. 003001266437  del 10/01/2019 ENERGIA ELETTRICA MUNICIPIO - DICEMBRE 2018;25-02-2019;600;0;121;1;Spese correnti;3;Acquisto di beni e servizi;2;Acquisto di servizi;5;Utenze e canoni;4;Energia elettrica;25-02-2019;
242;5;0;"115,01";"3.242,32";ENEL ENERGIA S.P.A.;7134285639;SALDO Fatt.n. 003001266441  del 10/01/2019 ENERGIA ELETRICA: DICEMBRE 2018;25-02-2019;600;0;121;1;Spese correnti;3;Acquisto di beni e servizi;2;Acquisto di servizi;5;Utenze e canoni;4;Energia elettrica;25-02-2019;
242;6;0;"238,51";"3.242,32";ENEL ENERGIA S.P.A.;7134285639;SALDO Fatt.n. 003001266428  del 10/01/2019 ENERGIA ELETTRICA: DICEMBRE 2018;25-02-2019;600;0;121;1;Spese correnti;3;Acquisto di beni e servizi;2;Acquisto di servizi;5;Utenze e canoni;4;Energia elettrica;25-02-2019;
242;7;0;"251,81";"3.242,32";ENEL ENERGIA S.P.A.;7134285639;SALDO Fatt.n. 003001266430  del 10/01/2019 ENERGIA ELETTRICA: DICEMBRE 2018;25-02-2019;600;0;121;1;Spese correnti;3;Acquisto di beni e servizi;2;Acquisto di servizi;5;Utenze e canoni;4;Energia elettrica;25-02-2019;
242;8;0;"279,43";"3.242,32";ENEL ENERGIA S.P.A.;7134285639;SALDO Fatt.n. 003001266424  del 10/01/2019 ENERGIA ELETTRICA: DICEMBRE 2018;25-02-2019;600;0;121;1;Spese correnti;3;Acquisto di beni e servizi;2;Acquisto di servizi;5;Utenze e canoni;4;Energia elettrica;25-02-2019;
242;9;0;"282,70";"3.242,32";ENEL ENERGIA S.P.A.;7134285639;SALDO Fatt.n. 003001266450  del 10/01/2019 ENERGIA ELETTRICA DICEMBRE 2018;25-02-2019;600;0;121;1;Spese correnti;3;Acquisto di beni e servizi;2;Acquisto di servizi;5;Utenze e canoni;4;Energia elettrica;25-02-2019;
242;10;0;"315,58";"3.242,32";ENEL ENERGIA S.P.A.;7134285639;SALDO Fatt.n. 003001266436  del 10/01/2019 ENERGIA ELETTRICA DICEMBRE 2018;25-02-2019;600;0;121;1;Spese correnti;3;Acquisto di beni e servizi;2;Acquisto di servizi;5;Utenze e canoni;4;Energia elettrica;25-02-2019;
242;11;0;"462,11";"3.242,32";ENEL ENERGIA S.P.A.;7134285639;SALDO Fatt.n. 003001266410  del 10/01/2019 ENERGIA ELETTRICA: DICEMBRE 2018;25-02-2019;600;0;121;1;Spese correnti;3;Acquisto di beni e servizi;2;Acquisto di servizi;5;Utenze e canoni;4;Energia elettrica;25-02-2019;
242;12;0;"969,97";"3.242,32";ENEL ENERGIA S.P.A.;7134285639;SALDO Fatt.n. 003001266416  del 10/01/2019 ENERGIA ELETTRICA DICEMBRE 2018;25-02-2019;600;0;121;1;Spese correnti;3;Acquisto di beni e servizi;2;Acquisto di servizi;5;Utenze e canoni;4;Energia elettrica;25-02-2019;
243;1;0;"179,60";"4.031,19";ENEL ENERGIA S.P.A.;7134285639;SALDO Fatt.n. 003001266406  del 10/01/2019 ENERGIA ELETTRICA: DICEMBRE 2018;25-02-2019;600;0;121;1;Spese correnti;3;Acquisto di beni e servizi;2;Acquisto di servizi;5;Utenze e canoni;4;Energia elettrica;25-02-2019;
243;2;0;"6,84";"4.031,19";ENEL ENERGIA S.P.A.;7134285639;SALDO Fatt.n. 003001266448  del 10/01/2019 ENERGIA ELETTRICA: DICEMBRE 2018;25-02-2019;600;0;121;1;Spese correnti;3;Acquisto di beni e servizi;2;Acquisto di servizi;5;Utenze e canoni;4;Energia elettrica;25-02-2019;
243;3;0;"32,78";"4.031,19";ENEL ENERGIA S.P.A.;7134285639;SALDO Fatt.n. 003001266433  del 10/01/2019 ENERGIA ELETTRICA: DICEMBRE 2018;25-02-2019;600;0;121;1;Spese correnti;3;Acquisto di beni e servizi;2;Acquisto di servizi;5;Utenze e canoni;4;Energia elettrica;25-02-2019;
243;4;0;"58,55";"4.031,19";ENEL ENERGIA S.P.A.;7134285639;SALDO Fatt.n. 003001266431  del 10/01/2019 ENERGIA ELETTRICA: DICEMBRE 2018;25-02-2019;600;0;121;1;Spese correnti;3;Acquisto di beni e servizi;2;Acquisto di servizi;5;Utenze e canoni;4;Energia elettrica;25-02-2019;
243;5;0;"61,89";"4.031,19";ENEL ENERGIA S.P.A.;7134285639;SALDO Fatt.n. 003001266417  del 10/01/2019 ENERGIA ELETTRICA: DICEMBRE 2018;25-02-2019;600;0;121;1;Spese correnti;3;Acquisto di beni e servizi;2;Acquisto di servizi;5;Utenze e canoni;4;Energia elettrica;25-02-2019;
243;6;0;"317,27";"4.031,19";ENEL ENERGIA S.P.A.;7134285639;SALDO Fatt.n. 003001266429  del 10/01/2019 ENERGIA ELETTRICA DICEMBRE 2018;25-02-2019;600;0;121;1;Spese correnti;3;Acquisto di beni e servizi;2;Acquisto di servizi;5;Utenze e canoni;4;Energia elettrica;25-02-2019;
243;7;0;"463,54";"4.031,19";ENEL ENERGIA S.P.A.;7134285639;SALDO Fatt.n. 003001266418  del 10/01/2019 ENERGIA ELETTRICA VILLA RUBELLI: DICEMBRE 2018;25-02-2019;600;0;121;1;Spese correnti;3;Acquisto di beni e servizi;2;Acquisto di servizi;5;Utenze e canoni;4;Energia elettrica;25-02-2019;
243;8;0;"682,83";"4.031,19";ENEL ENERGIA S.P.A.;7134285639;SALDO Fatt.n. 003001266422  del 10/01/2019 ENERGIA ELETTRICA: DICEMBRE 2018;25-02-2019;600;0;121;1;Spese correnti;3;Acquisto di beni e servizi;2;Acquisto di servizi;5;Utenze e canoni;4;Energia elettrica;25-02-2019;
243;9;0;"738,34";"4.031,19";ENEL ENERGIA S.P.A.;7134285639;SALDO Fatt.n. 003001266411  del 10/01/2019 ENERGIA ELETTRICA: DICEMBRE 2018;25-02-2019;600;0;121;1;Spese correnti;3;Acquisto di beni e servizi;2;Acquisto di servizi;5;Utenze e canoni;4;Energia elettrica;25-02-2019;
243;10;0;"1.489,55";"4.031,19";ENEL ENERGIA S.P.A.;7134285639;SALDO Fatt.n. 003001266409  del 10/01/2019 ENERGIA ELETTRICA: DICEMBRE 2018;25-02-2019;600;0;121;1;Spese correnti;3;Acquisto di beni e servizi;2;Acquisto di servizi;5;Utenze e canoni;4;Energia elettrica;25-02-2019;
244;1;0;"60,17";"1.999,48";ENEL ENERGIA S.P.A.;7134285639;SALDO Fatt.n. 003001266407  del 10/01/2019 ENERGIA ELETTRICA CIMITERO: DICEMBRE 2018;25-02-2019;530;0;599;1;Spese correnti;3;Acquisto di beni e servizi;2;Acquisto di servizi;5;Utenze e canoni;4;Energia elettrica;25-02-2019;
244;2;0;"66,59";"1.999,48";ENEL ENERGIA S.P.A.;7134285639;SALDO Fatt.n. 003001266435  del 10/01/2019 ENERGIA ELETTRICA  CIMITERO: DICEMBRE 2018;25-02-2019;530;0;599;1;Spese correnti;3;Acquisto di beni e servizi;2;Acquisto di servizi;5;Utenze e canoni;4;Energia elettrica;25-02-2019;
244;3;0;"101,09";"1.999,48";ENEL ENERGIA S.P.A.;7134285639;SALDO Fatt.n. 003001266432  del 10/01/2019 ENERGIA ELETTRICA CIMITERO: DICEMBRE 2018;25-02-2019;530;0;599;1;Spese correnti;3;Acquisto di beni e servizi;2;Acquisto di servizi;5;Utenze e canoni;4;Energia elettrica;25-02-2019;
244;4;0;"189,56";"1.999,48";ENEL ENERGIA S.P.A.;7134285639;SALDO Fatt.n. 003001266438  del 10/01/2019 ENERGIA ELETTRICA IMP. SPORTIVI: DICEMBRE 2018;25-02-2019;530;0;599;1;Spese correnti;3;Acquisto di beni e servizi;2;Acquisto di servizi;5;Utenze e canoni;4;Energia elettrica;25-02-2019;
244;5;0;"345,69";"1.999,48";ENEL ENERGIA S.P.A.;7134285639;SALDO Fatt.n. 003001266440  del 10/01/2019 ENERGIA ELETTRICA CIMITERO: DICEMBRE 2018;25-02-2019;530;0;599;1;Spese correnti;3;Acquisto di beni e servizi;2;Acquisto di servizi;5;Utenze e canoni;4;Energia elettrica;25-02-2019;
244;6;0;"1.236,38";"1.999,48";ENEL ENERGIA S.P.A.;7134285639;SALDO Fatt.n. 003001266427  del 10/01/2019 ENERGIA ELETTRICA IMP. SPORTIVI: DICEMBRE 2018;25-02-2019;530;0;599;1;Spese correnti;3;Acquisto di beni e servizi;2;Acquisto di servizi;5;Utenze e canoni;4;Energia elettrica;25-02-2019;
245;1;0;"57,41";"1.815,78";ENEL ENERGIA S.P.A.;7134285639;SALDO Fatt.n. 003001266421  del 10/01/2019 ENERGIA ELETTRICA: DICEMBRE 2018;25-02-2019;600;0;121;1;Spese correnti;3;Acquisto di beni e servizi;2;Acquisto di servizi;5;Utenze e canoni;4;Energia elettrica;25-02-2019;
245;2;0;"74,85";"1.815,78";ENEL ENERGIA S.P.A.;7134285639;SALDO Fatt.n. 003001266414  del 10/01/2019 ENERGIA ELETTRICA: DICEMBRE 2018;25-02-2019;600;0;121;1;Spese correnti;3;Acquisto di beni e servizi;2;Acquisto di servizi;5;Utenze e canoni;4;Energia elettrica;25-02-2019;
245;3;0;"75,88";"1.815,78";ENEL ENERGIA S.P.A.;7134285639;SALDO Fatt.n. 003001266413  del 10/01/2019 ENERGIA ELETTRICA: DICEMBRE 2018;25-02-2019;600;0;121;1;Spese correnti;3;Acquisto di beni e servizi;2;Acquisto di servizi;5;Utenze e canoni;4;Energia elettrica;25-02-2019;
245;4;0;"205,00";"1.815,78";ENEL ENERGIA S.P.A.;7134285639;SALDO Fatt.n. 003001266434  del 10/01/2019 ENERGIA ELETTRICA: DICEMBRE 2018;25-02-2019;600;0;121;1;Spese correnti;3;Acquisto di beni e servizi;2;Acquisto di servizi;5;Utenze e canoni;4;Energia elettrica;25-02-2019;
245;5;0;"252,63";"1.815,78";ENEL ENERGIA S.P.A.;7134285639;SALDO Fatt.n. 003001266408  del 10/01/2019 ENERGIA ELETTRICA: DICEMBRE 2018;25-02-2019;600;0;121;1;Spese correnti;3;Acquisto di beni e servizi;2;Acquisto di servizi;5;Utenze e canoni;4;Energia elettrica;25-02-2019;
245;6;0;"350,46";"1.815,78";ENEL ENERGIA S.P.A.;7134285639;SALDO Fatt.n. 003001266439  del 10/01/2019 ENERGIA ELETTRICA: DICEMBRE 2018;25-02-2019;600;0;121;1;Spese correnti;3;Acquisto di beni e servizi;2;Acquisto di servizi;5;Utenze e canoni;4;Energia elettrica;25-02-2019;
245;7;0;"377,27";"1.815,78";ENEL ENERGIA S.P.A.;7134285639;SALDO Fatt.n. 003001266449  del 10/01/2019 ENERGIA ELETTRICA: DICEMBRE 2018;25-02-2019;600;0;121;1;Spese correnti;3;Acquisto di beni e servizi;2;Acquisto di servizi;5;Utenze e canoni;4;Energia elettrica;25-02-2019;
245;8;0;"422,28";"1.815,78";ENEL ENERGIA S.P.A.;7134285639;SALDO Fatt.n. 003001266444  del 10/01/2019 ENERGIA ELETTRICA: DICEMBRE 2018;25-02-2019;600;0;121;1;Spese correnti;3;Acquisto di beni e servizi;2;Acquisto di servizi;5;Utenze e canoni;4;Energia elettrica;25-02-2019;
246;1;0;"421,20";"421,20";SOCIETA' SERVIZI SOCIO CULTURALE Coop. Soc. Onlus;ZCB1CCA0C9;ACCONTO Fatt.n. 48 PAB  del 31/01/2019 SERVIZI BIBLIOTECARI - DICEMBRE 2018;25-02-2019;302;1;326;1;Spese correnti;3;Acquisto di beni e servizi;2;Acquisto di servizi;16;Servizi amministrativi;999;Altre spese per servizi amministrativi;25-02-2019;
247;1;0;"976,00";"976,00";VERDE IDEA DI BOTTER MICHELE;Z6F2662F6A;SALDO Fatt.n. 1A  del 31/01/2019 FORNITURA DI ALCUNE PIANTE PER PARCO DI VIA VIVALDI;25-02-2019;530;1;535;1;Spese correnti;3;Acquisto di beni e servizi;2;Acquisto di servizi;9;Manutenzione ordinaria e riparazioni;12;Manutenzione ordinaria e riparazioni di terreni e beni materiali non prodotti;25-02-2019;
248;1;0;"5.182,10";"5.182,10";TERMOIDRAULICA SERRAGLIO DI SERRAGLIO SIMONE;Z842623C54;SALDO Fatt.n. 4  del 31/01/2019 LAVORI DI COMPLETAMENTO IMPIANTO TERMICO;25-02-2019;745;0;478;2;Spese in conto capitale;2;Investimenti fissi lordi e acquisto di terreni;1;Beni materiali;9;Beni immobili;999;Beni immobili n.a.c.;25-02-2019;
249;1;0;"18.080,00";"18.080,00";METAVERSO S.N.C.;Z68239E945;SALDO Fatt.n. 6  del 05/02/2019 INTERVENTI ALLA TORRE;25-02-2019;785;0;496;2;Spese in conto capitale;2;Investimenti fissi lordi e acquisto di terreni;1;Beni materiali;10;"Beni immobili di valore culturale, storico ed artistico";8;"Musei, teatri e biblioteche di valore culturale, storico ed artistico";25-02-2019;
250;1;0;"4.242,96";"4.242,96";METAVERSO S.N.C.;Z68239E945;SALDO Fatt.n. 7  del 05/02/2019 INTERVENTI ALLA TORRE;25-02-2019;785;0;548;2;Spese in conto capitale;2;Investimenti fissi lordi e acquisto di terreni;1;Beni materiali;10;"Beni immobili di valore culturale, storico ed artistico";8;"Musei, teatri e biblioteche di valore culturale, storico ed artistico";25-02-2019;
251;1;0;"3.713,41";"3.713,41";TASCA COSTRUZIONI DI TASCA LORIS;ZB3269A76B;ACCONTO Fatt.n. 1/2019  del 04/02/2019 MANUTENZIONE STRAORDINARIA MUNIUCIPIO;25-02-2019;745;0;555;2;Spese in conto capitale;2;Investimenti fissi lordi e acquisto di terreni;1;Beni materiali;9;Beni immobili;19;Fabbricati ad uso strumentale;25-02-2019;
252;1;0;"64,42";"64,42";COMIN COSTRUZIONI GENERALI S.R.L.;Z4926474C9;SALDO Fatt.n. 2019060000007  del 31/01/2019 FORNITURA STABILIZZATO;25-02-2019;745;0;514;2;Spese in conto capitale;2;Investimenti fissi lordi e acquisto di terreni;1;Beni materiali;9;Beni immobili;999;Beni immobili n.a.c.;25-02-2019;
253;1;0;"210,00";"210,00";SONDA COOPERATIVA SOCIALE ONLUS; ;SALDO Fatt.n. 58/PA/2019  del 06/02/2019 SPESA PER PERSONA BISOGNOSA;25-02-2019;560;0;297;1;Spese correnti;3;Acquisto di beni e servizi;2;Acquisto di servizi;15;Contratti di servizio pubblico;8;Contratti di servizio di assistenza sociale residenziale e semiresidenziale;25-02-2019;
254;1;0;"20,00";"20,00";ASCO TLC S.P.A.;Z7622402CD;ACCONTO Fatt.n. 09001680  del 31/01/2019 UTENZE E CANONI;25-02-2019;235;0;518;1;Spese correnti;3;Acquisto di beni e servizi;2;Acquisto di servizi;5;Utenze e canoni;999;Utenze e canoni per altri servizi n.a.c.;25-02-2019;
255;1;0;"592,70";"592,70";OPERE PIE D'ONIGO; ;ACCONTO Fatt.n. 15/2  del 31/01/2019 SPESA PER PERSONA BISOGNOSA;25-02-2019;560;0;15;1;Spese correnti;3;Acquisto di beni e servizi;2;Acquisto di servizi;15;Contratti di servizio pubblico;8;Contratti di servizio di assistenza sociale residenziale e semiresidenziale;25-02-2019;
256;1;0;"1.276,60";"1.276,60";OPERE PIE D'ONIGO; ;SALDO Fatt.n. 15/2  del 31/01/2019 SPESA PER PERSONA BISOGNOSA;25-02-2019;560;0;32;1;Spese correnti;3;Acquisto di beni e servizi;2;Acquisto di servizi;15;Contratti di servizio pubblico;8;Contratti di servizio di assistenza sociale residenziale e semiresidenziale;25-02-2019;
257;1;0;"1.581,34";"1.581,34";CASA DI RIPOSO 'AITA'; ;ACCONTO Fatt.n. 37/B  del 31/01/2019 SPESE PER PERSONA BISOGNOSA;25-02-2019;560;0;18;1;Spese correnti;3;Acquisto di beni e servizi;2;Acquisto di servizi;15;Contratti di servizio pubblico;8;Contratti di servizio di assistenza sociale residenziale e semiresidenziale;25-02-2019;
258;1;0;"117,66";"117,66";CASA DI RIPOSO 'AITA'; ;SALDO Fatt.n. 37/B  del 31/01/2019 SPESE PER PERSONA BISOGNOSA;25-02-2019;560;0;31;1;Spese correnti;3;Acquisto di beni e servizi;2;Acquisto di servizi;15;Contratti di servizio pubblico;8;Contratti di servizio di assistenza sociale residenziale e semiresidenziale;25-02-2019;
259;1;0;"1.708,00";"1.708,00";ORMET S.R.L.;Z8C264EFC1;SALDO Fatt.n. 19EL/0006  del 31/01/2019 MODIFICA IMPIANTO VOSTRA GRU CON MONTAGGIO GRUPPO ELETTROFRIZIONE E COLLEGAMENTO ELETTRO-IDRAULICO;25-02-2019;589;1;521;1;Spese correnti;3;Acquisto di beni e servizi;2;Acquisto di servizi;9;Manutenzione ordinaria e riparazioni;1;"Manutenzione ordinaria e riparazioni di mezzi di trasporto ad uso civile, di sicurezza e ordine pubblico";25-02-2019;
260;1;0;"4.999,56";"4.999,56";TEC.SE. SRL;ZC926609E7;SALDO Fatt.n. 58  del 12/02/2019 SEGNALETICA STRADALE;25-02-2019;1030;0;562;2;Spese in conto capitale;2;Investimenti fissi lordi e acquisto di terreni;1;Beni materiali;9;Beni immobili;12;Infrastrutture stradali;25-02-2019;
263;1;0;"206,70";"206,70";UNA CASA PER L'UOMO - SOCIETA' COOPERATIVA SOCIALE;ZA32468D08;ACCONTO Fatt.n. FE/0000030  del 31/01/2019 ACC.ABITATIVA PER PERSONE DISAGIATE;25-02-2019;559;0;334;1;Spese correnti;3;Acquisto di beni e servizi;2;Acquisto di servizi;99;Altri servizi;999;Altri servizi diversi n.a.c.;25-02-2019;
264;1;0;"308,85";"308,85";UNA CASA PER L'UOMO - SOCIETA' COOPERATIVA SOCIALE;ZA32468D08;SALDO Fatt.n. FE/0000030  del 31/01/2019 ACC.ABITATIVA PER PERSONE DISAGIATE;25-02-2019;559;0;334;1;Spese correnti;3;Acquisto di beni e servizi;2;Acquisto di servizi;99;Altri servizi;999;Altri servizi diversi n.a.c.;25-02-2019;
265;1;0;"299,00";"299,00";VIASANTI LINO S.N.C.;ZDC27012F3;SALDO Fatt.n. 34  del 07/02/2019 FORNITURA DECESPUGLIATORE;25-02-2019;589;0;60;1;Spese correnti;3;Acquisto di beni e servizi;1;Acquisto di beni;2;Altri beni di consumo;8;Strumenti tecnico-specialistici non sanitari;25-02-2019;
266;1;0;"1.103,80";"1.103,80";TASCA COSTRUZIONI DI TASCA LORIS;ZB3269A76B;SALDO Fatt.n. 1/2019  del 04/02/2019 MANUTENZIONE STRAORDINARIA MUNIUCIPIO;25-02-2019;744;1;554;2;Spese in conto capitale;2;Investimenti fissi lordi e acquisto di terreni;1;Beni materiali;9;Beni immobili;19;Fabbricati ad uso strumentale;25-02-2019;
267;1;0;"939,60";"939,60";SOCIETA' SERVIZI SOCIO CULTURALE Coop. Soc. Onlus;ZCB1CCA0C9;SALDO Fatt.n. 48 PAB  del 31/01/2019 SERVIZI BIBLIOTECARI - DICEMBRE 2018;25-02-2019;302;1;543;1;Spese correnti;3;Acquisto di beni e servizi;2;Acquisto di servizi;16;Servizi amministrativi;999;Altre spese per servizi amministrativi;25-02-2019;
268;1;0;"3.250,00";"3.250,00";ASSOCIAZIONE PRO LOCO SAN ZENONE DEGLI EZZELINI; ;LIQUIDAZIONE CONTRIBUTO STRAORDINARIO ALL'ASSOCIAZIONE PRO LOCO DI SAN ZENONE DEGLI EZZELINI PER REALIZZAZIONE PROGETTO DI CATALOGAZIONE E COLLOCAZIONE GESSI DELL'ARTISTA SANZENONESE F. REBESCO NELLE SALE DELLA BARCHESSA DI VILLA MARINI RUBELLI.;28-02-2019;334;0;633;1;Spese correnti;4;Trasferimenti correnti;1;Trasferimenti correnti a Amministrazioni Pubbliche;4;Trasferimenti correnti a organismi interni e/o unità locali della amministrazione;1;Trasferimenti correnti a organismi interni e/o unità locali della amministrazione;28-02-2019;
269;1;0;"2.000,00";"2.000,00";CORO MONTE GRAPPA; ;LIQUIDAZIONE CONTRIBUTO ECONOMICO ORDINARIO 2019.;01-03-2019;335;0;67;1;Spese correnti;4;Trasferimenti correnti;1;Trasferimenti correnti a Amministrazioni Pubbliche;4;Trasferimenti correnti a organismi interni e/o unità locali della amministrazione;1;Trasferimenti correnti a organismi interni e/o unità locali della amministrazione;01-03-2019;
270;1;0;"2.000,00";"2.000,00";BANDA ALPINA GIRASOLE PEDEMONTANA DEL GRAPPA; ;LIQUIDAZIONE CONTRIBUTO ECONOMICO ORDINARIO 2019.;01-03-2019;335;0;68;1;Spese correnti;4;Trasferimenti correnti;1;Trasferimenti correnti a Amministrazioni Pubbliche;4;Trasferimenti correnti a organismi interni e/o unità locali della amministrazione;1;Trasferimenti correnti a organismi interni e/o unità locali della amministrazione;01-03-2019;
271;1;0;"4,40";"4,40";ASCO TLC S.P.A.;Z7622402CD;SALDO Fatt.n. 09001680  del 31/01/2019 UTENZE E CANONI;01-03-2019;235;0;518;1;Spese correnti;3;Acquisto di beni e servizi;2;Acquisto di servizi;5;Utenze e canoni;999;Utenze e canoni per altri servizi n.a.c.;01-03-2019;
272;1;0;"1.217,80";"1.217,80";MINISTERO INFRASTR.-TESORER. PROV.LE DELLO STATO - ROMA; ;COLLEGAM. SERV.DI INFORM. CENTRO ELABORAZ. DATI DEL MINIST. INFRASTR. E TRASPORTI - ANNO 2019: "GESTIONE SERVIZIO DEPOSITI DEFINITIVI CONTO TERZI" - UTENZA S.I. DEL CED DELLA D.G. PER LA MOTOR.NE - DPR 634/94 - DEPOSITO DEF. APERTURA N.1335382.;01-03-2019;178;3;81;1;Spese correnti;3;Acquisto di beni e servizi;2;Acquisto di servizi;5;Utenze e canoni;3;Accesso a banche dati e a pubblicazioni on line;01-03-2019;
275;1;0;"211,32";"211,32";TESORERIA PROVINCIALE DELLO STATO; ;VERSAMENTO A SALDO I.V.A. A DEBITO GESTIONE COMMERCIALE (COD. 619E)- cod. 138E - cod. 618E - cod. 801E  - RIF. DIICHIARAZIONE ANNUALE I.V.A. PERIODO D'IMPOSTA 2018.;04-03-2019;660;0;0;1;Spese correnti;10;Altre spese correnti;3;Versamenti IVA a debito;1;Versamenti IVA a debito per le gestioni commerciali;1;Versamenti IVA a debito per le gestioni commerciali;04-03-2019;
276;1;0;"475,20";"475,20";FELTRIN S.R.L.;Z7E25EA6F4;ACCONTO Fatt.n. 40/E/2018  del 29/11/2018 FORNITURA DI CLORURO DI SODIO AD USO DISGELO STRADALE;05-03-2019;594;0;547;1;Spese correnti;3;Acquisto di beni e servizi;2;Acquisto di servizi;9;Manutenzione ordinaria e riparazioni;8;Manutenzione ordinaria e riparazioni di beni immobili;05-03-2019;
277;1;0;"710,64";"710,64";FELTRIN S.R.L.;Z7E25EA6F4;SALDO Fatt.n. 40/E/2018  del 29/11/2018 FORNITURA DI CLORURO DI SODIO AD USO DISGELO STRADALE;05-03-2019;594;0;548;1;Spese correnti;3;Acquisto di beni e servizi;2;Acquisto di servizi;9;Manutenzione ordinaria e riparazioni;8;Manutenzione ordinaria e riparazioni di beni immobili;05-03-2019;
278;1;0;"73,20";"73,20";GEREMIA WALTER;Z11216E6E3;ACCONTO Fatt.n. 2/50  del 06/12/2018;05-03-2019;594;0;546;1;Spese correnti;3;Acquisto di beni e servizi;2;Acquisto di servizi;9;Manutenzione ordinaria e riparazioni;8;Manutenzione ordinaria e riparazioni di beni immobili;05-03-2019;
279;1;0;"57,34";"57,34";GEREMIA WALTER;Z11216E6E3;SALDO Fatt.n. 2/50  del 06/12/2018;05-03-2019;594;0;548;1;Spese correnti;3;Acquisto di beni e servizi;2;Acquisto di servizi;9;Manutenzione ordinaria e riparazioni;8;Manutenzione ordinaria e riparazioni di beni immobili;05-03-2019;
280;1;0;"120,51";"120,51";OMESSO NOMINATIVO NEL RISPETTO DELLA NORMATIVA SULLA PROTEZIONE DATI PERSONALI; ;ACCONTO SU FATT. SEV. ELETTRICO ENEL BIMESTRE GENNAIO-FEBBRAIO 2019.;05-03-2019;576;0;412;1;Spese correnti;4;Trasferimenti correnti;2;Trasferimenti correnti a Famiglie;2;Interventi assistenziali;999;Altri assegni e sussidi assistenziali;05-03-2019;
281;1;0;"241,90";"241,90";OMESSO NOMINATIVO NEL RISPETTO DELLA NORMATIVA SULLA PROTEZIONE DATI PERSONALI; ;"FATT. CASA RIPOSO AITA PASTI GENNAIO 2019, FATT. ALTO TREVIGIANO SERVIZI OTT.-DIC. 2018 E SALDO FATTURA SERV. ELETTR. NAZIONALE GENN.-FEBBR. 2019.";05-03-2019;576;0;110;1;Spese correnti;4;Trasferimenti correnti;2;Trasferimenti correnti a Famiglie;2;Interventi assistenziali;999;Altri assegni e sussidi assistenziali;05-03-2019;
282;1;0;"124,50";"124,50";OMESSO NOMINATIVO NEL RISPETTO DELLA NORMATIVA SULLA PROTEZIONE DATI PERSONALI; ;ACCONTO FATTURA CASA RISPOSO AITA N. 28/B DEL 31/01/2019.;05-03-2019;576;0;460;1;Spese correnti;4;Trasferimenti correnti;2;Trasferimenti correnti a Famiglie;2;Interventi assistenziali;999;Altri assegni e sussidi assistenziali;05-03-2019;
283;1;0;"192,00";"192,00";OMESSO NOMINATIVO NEL RISPETTO DELLA NORMATIVA SULLA PROTEZIONE DATI PERSONALI; ;SALDO FATTURA CASA RISPOSO AITA N. 28/B DEL 31/01/2019 PER PASTI GENNAIO 2019.;05-03-2019;576;0;460;1;Spese correnti;4;Trasferimenti correnti;2;Trasferimenti correnti a Famiglie;2;Interventi assistenziali;999;Altri assegni e sussidi assistenziali;05-03-2019;
284;1;0;"1.009,34";"1.009,34";RIGATO INFISSI S.R.L.;Z4D21E0806;ACCONTO Fatt.n. 25/P  del 16/01/2019 POSA IN OPERA DI FRANGISOLE PRESSO SCUOLE;06-03-2019;234;0;581;1;Spese correnti;3;Acquisto di beni e servizi;1;Acquisto di beni;2;Altri beni di consumo;999;Altri beni e materiali di consumo n.a.c.;06-03-2019;
285;1;0;"1.482,60";"1.482,60";RIGATO INFISSI S.R.L.;Z4D21E0806;ACCONTO Fatt.n. 25/P  del 16/01/2019 POSA IN OPERA DI FRANGISOLE PRESSO SCUOLE;06-03-2019;235;1;582;1;Spese correnti;3;Acquisto di beni e servizi;2;Acquisto di servizi;9;Manutenzione ordinaria e riparazioni;11;Manutenzione ordinaria e riparazioni di altri beni materiali;06-03-2019;
286;1;0;"2.743,80";"2.743,80";RIGATO INFISSI S.R.L.;Z4D21E0806;ACCONTO Fatt.n. 25/P  del 16/01/2019 POSA IN OPERA DI FRANGISOLE PRESSO SCUOLE;06-03-2019;253;0;583;1;Spese correnti;3;Acquisto di beni e servizi;2;Acquisto di servizi;9;Manutenzione ordinaria e riparazioni;11;Manutenzione ordinaria e riparazioni di altri beni materiali;06-03-2019;
287;1;0;"5.685,76";"5.685,76";RIGATO INFISSI S.R.L.;Z4D21E0806;ACCONTO Fatt.n. 25/P  del 16/01/2019 POSA IN OPERA DI FRANGISOLE PRESSO SCUOLE;06-03-2019;236;0;584;1;Spese correnti;3;Acquisto di beni e servizi;2;Acquisto di servizi;9;Manutenzione ordinaria e riparazioni;11;Manutenzione ordinaria e riparazioni di altri beni materiali;06-03-2019;
288;1;0;"1.700,00";"1.700,00";RIGATO INFISSI S.R.L.;Z4D21E0806;SALDO Fatt.n. 25/P  del 16/01/2019 POSA IN OPERA DI FRANGISOLE PRESSO SCUOLE;06-03-2019;251;0;585;1;Spese correnti;3;Acquisto di beni e servizi;1;Acquisto di beni;2;Altri beni di consumo;999;Altri beni e materiali di consumo n.a.c.;06-03-2019;
289;1;0;"42,84";"42,84";KUWAIT PETROLEUM ITALIA S.P.A.;Z4E197F01F;ACCONTO Fatt.n. PJ00749095  del 31/01/2019 CARBURANTE AUTO VIGILI -DICEMBRE 2018;06-03-2019;179;0;67;1;Spese correnti;3;Acquisto di beni e servizi;1;Acquisto di beni;2;Altri beni di consumo;2;"Carburanti, combustibili e lubrificanti";06-03-2019;
290;1;0;"21.062,08";"21.062,08";COLPO NICOLO' & C. SNC;Z0121805C6;SALDO Fatt.n. 5  del 12/02/2019 LAVORI DI TINTEGGIATURA ESTERNA MUNICIPIO;06-03-2019;744;1;554;2;Spese in conto capitale;2;Investimenti fissi lordi e acquisto di terreni;1;Beni materiali;9;Beni immobili;19;Fabbricati ad uso strumentale;06-03-2019;
291;1;0;"7.513,38";"7.513,38";INFOTEAM SRL;Z99239E9BB;SALDO Fatt.n. 00000000302  del 31/01/2019 INTERVENTI ALLA TORRE - MATERIALE HARDWARE;06-03-2019;785;0;549;2;Spese in conto capitale;2;Investimenti fissi lordi e acquisto di terreni;1;Beni materiali;10;"Beni immobili di valore culturale, storico ed artistico";8;"Musei, teatri e biblioteche di valore culturale, storico ed artistico";06-03-2019;
292;1;0;"459,94";"459,94";BIM PIAVE NUOVE ENERGIE S.R.L.; ;SALDO Fatt.n. 9000327  del 11/02/2019 Anno termico 2018/2019 - Impianti Comunali;06-03-2019;561;2;87;1;Spese correnti;3;Acquisto di beni e servizi;2;Acquisto di servizi;5;Utenze e canoni;6;Gas;06-03-2019;
293;1;0;"115,87";"654,05";BIM PIAVE NUOVE ENERGIE S.R.L.;Z0A2644955;ACCONTO Fatt.n. 9000330  del 11/02/2019 Anno termico 2018/2019 - acqua calda 01/07/2018-31/12/2018 - Villa Rubelli;06-03-2019;252;1;531;1;Spese correnti;3;Acquisto di beni e servizi;2;Acquisto di servizi;9;Manutenzione ordinaria e riparazioni;4;Manutenzione ordinaria e riparazioni di impianti e macchinari;06-03-2019;
293;2;0;"538,18";"654,05";BIM PIAVE NUOVE ENERGIE S.R.L.;Z0A2644955;ACCONTO Fatt.n. 9000329  del 11/02/2019 Anno termico 2018/2019 - acqua calda 01/07/2018-31/12/2018 - Ex Scuola Primaria Sopracastello;06-03-2019;252;1;531;1;Spese correnti;3;Acquisto di beni e servizi;2;Acquisto di servizi;9;Manutenzione ordinaria e riparazioni;4;Manutenzione ordinaria e riparazioni di impianti e macchinari;06-03-2019;
294;1;0;"429,44";"429,44";BIM PIAVE NUOVE ENERGIE S.R.L.;Z0A2644955;SALDO Fatt.n. 9000329  del 11/02/2019 Anno termico 2018/2019 - acqua calda 01/07/2018-31/12/2018 - Ex Scuola Primaria Sopracastello;06-03-2019;532;0;530;1;Spese correnti;3;Acquisto di beni e servizi;2;Acquisto di servizi;9;Manutenzione ordinaria e riparazioni;4;Manutenzione ordinaria e riparazioni di impianti e macchinari;06-03-2019;
295;1;0;"3.423,50";"3.423,50";BIM PIAVE NUOVE ENERGIE S.R.L.; ;SALDO Fatt.n. 9000330  del 11/02/2019 Anno termico 2018/2019 - acqua calda 01/07/2018-31/12/2018 - Villa Rubelli;06-03-2019;530;0;84;1;Spese correnti;3;Acquisto di beni e servizi;2;Acquisto di servizi;5;Utenze e canoni;6;Gas;06-03-2019;
296;1;0;"2.972,33";"2.972,33";BIM PIAVE NUOVE ENERGIE S.R.L.; ;SALDO Fatt.n. 9000334  del 11/02/2019 Anno termico 2018/2019 -acqua calda 01/07/2018-31/12/2018 - Scuola Primaria CÃ  Rainati 65.33;06-03-2019;252;0;319;1;Spese correnti;3;Acquisto di beni e servizi;2;Acquisto di servizi;5;Utenze e canoni;6;Gas;06-03-2019;
297;1;0;"2.774,23";"2.774,23";BIM PIAVE NUOVE ENERGIE S.R.L.; ;SALDO Fatt.n. 9000331  del 11/02/2019 Anno termico 2018/2019 - acqua calda 01/07/2018-31/12/2018 - Polivalente "La Roggia" 65.15;06-03-2019;561;2;320;1;Spese correnti;3;Acquisto di beni e servizi;2;Acquisto di servizi;5;Utenze e canoni;6;Gas;06-03-2019;
298;1;0;"85,00";"85,00";IL GONFALONE DI FAGGIONATO ROBERTO;Z622539A99;SALDO Fatt.n. FPA 83/19  del 13/02/2019 FORNITURA BANDIERE;06-03-2019;234;0;57;1;Spese correnti;3;Acquisto di beni e servizi;1;Acquisto di beni;2;Altri beni di consumo;5;Accessori per uffici e alloggi;06-03-2019;
299;1;0;"159,22";"521,26";GREEN TELECOMUNICAZIONI S.P.A.;Z1822467F2;SALDO Fatt.n. E2316  del 12/02/2019 Traffico Telefonico Periodo: gennaio 2019;06-03-2019;34;0;90;1;Spese correnti;3;Acquisto di beni e servizi;2;Acquisto di servizi;5;Utenze e canoni;1;Telefonia fissa;06-03-2019;
299;2;0;"362,04";"521,26";GREEN TELECOMUNICAZIONI S.P.A.;Z1822467F2;SALDO Fatt.n. E3708  del 12/02/2019 Traffico Telefonico Periodo: gennaio 2019;06-03-2019;34;0;90;1;Spese correnti;3;Acquisto di beni e servizi;2;Acquisto di servizi;5;Utenze e canoni;1;Telefonia fissa;06-03-2019;
300;1;0;"-2,06";"45,27";ALTO TREVIGIANO SERVIZI S.R.L.;ZB0223C5F5;SALDO Fatt.n. O2201900000308  del 04/02/2019 SERVIZIO IDRICO: OTTOBRE - DICEMBRE 2018;06-03-2019;591;2;79;1;Spese correnti;3;Acquisto di beni e servizi;2;Acquisto di servizi;5;Utenze e canoni;5;Acqua;06-03-2019;
300;2;0;"4,29";"45,27";ALTO TREVIGIANO SERVIZI S.R.L.;ZB0223C5F5;SALDO Fatt.n. O2201900000296  del 04/02/2019 SERVIZIO IDRICO: OTTOBRE -DICEMBRE 2018;06-03-2019;591;2;79;1;Spese correnti;3;Acquisto di beni e servizi;2;Acquisto di servizi;5;Utenze e canoni;5;Acqua;06-03-2019;
300;3;0;"5,32";"45,27";ALTO TREVIGIANO SERVIZI S.R.L.;ZB0223C5F5;SALDO Fatt.n. O2201900000297  del 04/02/2019 SERVIZIO IDRICO: OTTOBRE -NOVEMBRE 2018;06-03-2019;591;2;79;1;Spese correnti;3;Acquisto di beni e servizi;2;Acquisto di servizi;5;Utenze e canoni;5;Acqua;06-03-2019;
300;4;0;"5,45";"45,27";ALTO TREVIGIANO SERVIZI S.R.L.;ZB0223C5F5;SALDO Fatt.n. O2201900000305  del 04/02/2019 SERVIZIO IDRICO: OTTOBRE-DICEMBRE 2018;06-03-2019;591;2;79;1;Spese correnti;3;Acquisto di beni e servizi;2;Acquisto di servizi;5;Utenze e canoni;5;Acqua;06-03-2019;
300;5;0;"7,22";"45,27";ALTO TREVIGIANO SERVIZI S.R.L.;ZB0223C5F5;SALDO Fatt.n. O2201900000295  del 04/02/2019 SERVIZIO IDRICO: OTTOBRE-DICEMBRE 2018;06-03-2019;591;2;79;1;Spese correnti;3;Acquisto di beni e servizi;2;Acquisto di servizi;5;Utenze e canoni;5;Acqua;06-03-2019;
300;6;0;"25,05";"45,27";ALTO TREVIGIANO SERVIZI S.R.L.;ZB0223C5F5;SALDO Fatt.n. O2201900000314  del 04/02/2019 SERVIZIO IDRICO: OTT. DICEMBRE 2018;06-03-2019;591;2;79;1;Spese correnti;3;Acquisto di beni e servizi;2;Acquisto di servizi;5;Utenze e canoni;5;Acqua;06-03-2019;
301;1;0;"11,53";"231,60";ALTO TREVIGIANO SERVIZI S.R.L.;ZB0223C5F5;SALDO Fatt.n. O2201900000298  del 04/02/2019 SERVIZIO IDRICO: OTTOBRE -DICEMBRE 2018;06-03-2019;413;0;76;1;Spese correnti;3;Acquisto di beni e servizi;2;Acquisto di servizi;5;Utenze e canoni;5;Acqua;06-03-2019;
301;2;0;"14,72";"231,60";ALTO TREVIGIANO SERVIZI S.R.L.;ZB0223C5F5;SALDO Fatt.n. O2201900000318  del 04/02/2019 SERVIZIO IDRICO: OTTOBRE -DICEMBRE 2018;06-03-2019;413;0;76;1;Spese correnti;3;Acquisto di beni e servizi;2;Acquisto di servizi;5;Utenze e canoni;5;Acqua;06-03-2019;
301;3;0;"15,52";"231,60";ALTO TREVIGIANO SERVIZI S.R.L.;ZB0223C5F5;SALDO Fatt.n. O2201900000292  del 04/02/2019 SERVIZIO IDRICO: OTTOBRE-DICEMBRE 2018;06-03-2019;413;0;76;1;Spese correnti;3;Acquisto di beni e servizi;2;Acquisto di servizi;5;Utenze e canoni;5;Acqua;06-03-2019;
301;4;0;"22,98";"231,60";ALTO TREVIGIANO SERVIZI S.R.L.;ZB0223C5F5;SALDO Fatt.n. O2201900000310  del 04/02/2019 SERVIZIO IDRICO: OTTOBRE - DICEMBRE 2018;06-03-2019;413;0;76;1;Spese correnti;3;Acquisto di beni e servizi;2;Acquisto di servizi;5;Utenze e canoni;5;Acqua;06-03-2019;
301;5;0;"166,85";"231,60";ALTO TREVIGIANO SERVIZI S.R.L.;ZB0223C5F5;SALDO Fatt.n. O2201900000309  del 04/02/2019 SERVIZIO IDRICO: OTTOBRE - DICEMBRE 2018;06-03-2019;413;0;76;1;Spese correnti;3;Acquisto di beni e servizi;2;Acquisto di servizi;5;Utenze e canoni;5;Acqua;06-03-2019;
302;1;0;"245,49";"245,49";ALTO TREVIGIANO SERVIZI S.R.L.;ZB0223C5F5;SALDO Fatt.n. O2201900000294  del 04/02/2019 SERVIZIO IDRICO: OTTOBRE -DICEMBRE 2018;06-03-2019;235;0;71;1;Spese correnti;3;Acquisto di beni e servizi;2;Acquisto di servizi;5;Utenze e canoni;5;Acqua;06-03-2019;
303;1;0;"5,23";"1.779,25";ALTO TREVIGIANO SERVIZI S.R.L.;ZB0223C5F5;SALDO Fatt.n. O2201900000307  del 04/02/2019 SERVIZIO IDRICO: OTTOBRE - DICEMBRE 2018;06-03-2019;252;0;78;1;Spese correnti;3;Acquisto di beni e servizi;2;Acquisto di servizi;5;Utenze e canoni;5;Acqua;06-03-2019;
303;2;0;"24,20";"1.779,25";ALTO TREVIGIANO SERVIZI S.R.L.;ZB0223C5F5;SALDO Fatt.n. O2201900000302  del 04/02/2019 SERVIZIO IDRICO: OTTOBRE - DICEMBRE 2018;06-03-2019;252;0;78;1;Spese correnti;3;Acquisto di beni e servizi;2;Acquisto di servizi;5;Utenze e canoni;5;Acqua;06-03-2019;
303;3;0;"74,83";"1.779,25";ALTO TREVIGIANO SERVIZI S.R.L.;ZB0223C5F5;SALDO Fatt.n. O2201900000299  del 04/02/2019 SERVIZIO IDRICO: OTTOBRE-DICEMBRE 2018;06-03-2019;252;0;78;1;Spese correnti;3;Acquisto di beni e servizi;2;Acquisto di servizi;5;Utenze e canoni;5;Acqua;06-03-2019;
303;4;0;"104,82";"1.779,25";ALTO TREVIGIANO SERVIZI S.R.L.;ZB0223C5F5;SALDO Fatt.n. O2201900000315  del 04/02/2019 SERVIZIO IDRICO: OTTOBRE-DICEMBRE 2018;06-03-2019;252;0;78;1;Spese correnti;3;Acquisto di beni e servizi;2;Acquisto di servizi;5;Utenze e canoni;5;Acqua;06-03-2019;
303;5;0;"104,82";"1.779,25";ALTO TREVIGIANO SERVIZI S.R.L.;ZB0223C5F5;SALDO Fatt.n. O2201900000313  del 04/02/2019 SERVIZIO IDRICO: OTTOBRE - DICEMBRE 2018;06-03-2019;252;0;78;1;Spese correnti;3;Acquisto di beni e servizi;2;Acquisto di servizi;5;Utenze e canoni;5;Acqua;06-03-2019;
303;6;0;"340,71";"1.779,25";ALTO TREVIGIANO SERVIZI S.R.L.;ZB0223C5F5;SALDO Fatt.n. O2201900000316  del 04/02/2019 SERVIZIO IDRICO: OTTOBRE-DICEMBRE 2018;06-03-2019;252;0;78;1;Spese correnti;3;Acquisto di beni e servizi;2;Acquisto di servizi;5;Utenze e canoni;5;Acqua;06-03-2019;
303;7;0;"1.124,64";"1.779,25";ALTO TREVIGIANO SERVIZI S.R.L.;ZB0223C5F5;SALDO Fatt.n. O2201900000312  del 04/02/2019 SERVIZIO IDRICO: OTTOBRE - DICEMBRE 2018;06-03-2019;252;0;78;1;Spese correnti;3;Acquisto di beni e servizi;2;Acquisto di servizi;5;Utenze e canoni;5;Acqua;06-03-2019;
304;1;0;"4,00";"1.345,01";ALTO TREVIGIANO SERVIZI S.R.L.;ZB0223C5F5;SALDO Fatt.n. O2201900000300  del 04/02/2019 SERVIZIO IDRICO: OTTOBRE - DICEMBRE 2018;06-03-2019;34;0;70;1;Spese correnti;3;Acquisto di beni e servizi;2;Acquisto di servizi;5;Utenze e canoni;5;Acqua;06-03-2019;
304;2;0;"21,04";"1.345,01";ALTO TREVIGIANO SERVIZI S.R.L.;ZB0223C5F5;SALDO Fatt.n. O2201900000311  del 04/02/2019 SERVIZIO IDRICO: OTTOBRE-DICEMBRE 2018;06-03-2019;34;0;70;1;Spese correnti;3;Acquisto di beni e servizi;2;Acquisto di servizi;5;Utenze e canoni;5;Acqua;06-03-2019;
304;3;0;"34,94";"1.345,01";ALTO TREVIGIANO SERVIZI S.R.L.;ZB0223C5F5;SALDO Fatt.n. O2201900000293  del 04/02/2019 SERVIZIO IDRICO: OTTOBRE - DICEMBRE 2018;06-03-2019;34;0;70;1;Spese correnti;3;Acquisto di beni e servizi;2;Acquisto di servizi;5;Utenze e canoni;5;Acqua;06-03-2019;
304;4;0;"74,83";"1.345,01";ALTO TREVIGIANO SERVIZI S.R.L.;ZB0223C5F5;SALDO Fatt.n. O2201900000301  del 04/02/2019 SERVIZIO IDRICO: OTTOBRE - DICEMBRE 2018;06-03-2019;34;0;70;1;Spese correnti;3;Acquisto di beni e servizi;2;Acquisto di servizi;5;Utenze e canoni;5;Acqua;06-03-2019;
304;5;0;"210,51";"1.345,01";ALTO TREVIGIANO SERVIZI S.R.L.;ZB0223C5F5;SALDO Fatt.n. O2201900000303  del 04/02/2019 SERVIZIO IDRICO: OTTOBRE - DICEMBRE 2018;06-03-2019;34;0;70;1;Spese correnti;3;Acquisto di beni e servizi;2;Acquisto di servizi;5;Utenze e canoni;5;Acqua;06-03-2019;
304;6;0;"425,79";"1.345,01";ALTO TREVIGIANO SERVIZI S.R.L.;ZB0223C5F5;SALDO Fatt.n. O2201900000306  del 04/02/2019 SERVIZIO IDRICO: OTTOBRE-DICEMBRE 2018;06-03-2019;34;0;70;1;Spese correnti;3;Acquisto di beni e servizi;2;Acquisto di servizi;5;Utenze e canoni;5;Acqua;06-03-2019;
304;7;0;"573,90";"1.345,01";ALTO TREVIGIANO SERVIZI S.R.L.;ZB0223C5F5;SALDO Fatt.n. O2201900000317  del 04/02/2019 SERVIZIO IDRICO: OTTOBRE-DICEMBRE 2018;06-03-2019;34;0;70;1;Spese correnti;3;Acquisto di beni e servizi;2;Acquisto di servizi;5;Utenze e canoni;5;Acqua;06-03-2019;
305;1;0;"94,28";"724,76";ENEL ENERGIA S.P.A.;7134285639;SALDO Fatt.n. 003012762198  del 12/02/2019 ENERGIA ELETTRICA IP.: GENNAIO 2019;06-03-2019;71;0;113;1;Spese correnti;3;Acquisto di beni e servizi;2;Acquisto di servizi;5;Utenze e canoni;4;Energia elettrica;06-03-2019;
305;2;0;"630,48";"724,76";ENEL ENERGIA S.P.A.;7134285639;SALDO Fatt.n. 003012762206  del 12/02/2019 ENERGIA ELETTRICA LA ROGGIA : GENNAIO 2019;06-03-2019;71;0;113;1;Spese correnti;3;Acquisto di beni e servizi;2;Acquisto di servizi;5;Utenze e canoni;4;Energia elettrica;06-03-2019;
306;1;0;"900,00";"900,00";ENEL ENERGIA S.P.A.;7134285639;ACCONTO Fatt.n. 003012762171  del 12/02/2019 ENERGIA ELETTRICA IP: GENNAIO 2019;06-03-2019;34;0;598;1;Spese correnti;3;Acquisto di beni e servizi;2;Acquisto di servizi;5;Utenze e canoni;4;Energia elettrica;06-03-2019;
307;1;0;"93,56";"571,85";ENEL ENERGIA S.P.A.;7134285639;SALDO Fatt.n. 003012762171  del 12/02/2019 ENERGIA ELETTRICA IP: GENNAIO 2019;06-03-2019;561;2;317;1;Spese correnti;3;Acquisto di beni e servizi;2;Acquisto di servizi;5;Utenze e canoni;4;Energia elettrica;06-03-2019;
307;2;0;"171,57";"571,85";ENEL ENERGIA S.P.A.;7134285639;SALDO Fatt.n. 003012762204  del 12/02/2019 ENERGIA ELETTRICA: GENNAIO 2019;06-03-2019;561;2;317;1;Spese correnti;3;Acquisto di beni e servizi;2;Acquisto di servizi;5;Utenze e canoni;4;Energia elettrica;06-03-2019;
307;3;0;"76,68";"571,85";ENEL ENERGIA S.P.A.;7134285639;SALDO Fatt.n. 003012762161  del 12/02/2019 ENERGIA ELETTRICA IMP. SPORTIVI: GENNAIO 2019;06-03-2019;561;2;317;1;Spese correnti;3;Acquisto di beni e servizi;2;Acquisto di servizi;5;Utenze e canoni;4;Energia elettrica;06-03-2019;
307;4;0;"113,55";"571,85";ENEL ENERGIA S.P.A.;7134285639;SALDO Fatt.n. 003012762207  del 12/02/2019 ENERGIA ELETTRICA MAG. COM.LE: GENNAIO 2019;06-03-2019;561;2;317;1;Spese correnti;3;Acquisto di beni e servizi;2;Acquisto di servizi;5;Utenze e canoni;4;Energia elettrica;06-03-2019;
307;5;0;"116,49";"571,85";ENEL ENERGIA S.P.A.;7134285639;SALDO Fatt.n. 003012762178  del 12/02/2019 ENERGIA ELETTRICA MAG. COM.LE : GENNAIO 2019;06-03-2019;561;2;317;1;Spese correnti;3;Acquisto di beni e servizi;2;Acquisto di servizi;5;Utenze e canoni;4;Energia elettrica;06-03-2019;
308;1;0;"218,40";"976,84";ENEL ENERGIA S.P.A.;7134285639;SALDO Fatt.n. 003012762195  del 12/02/2019 ENERGIA ELETTRICA IMP. SPORTIVI: GENNAIO 2019;06-03-2019;530;0;599;1;Spese correnti;3;Acquisto di beni e servizi;2;Acquisto di servizi;5;Utenze e canoni;4;Energia elettrica;06-03-2019;
308;2;0;"758,44";"976,84";ENEL ENERGIA S.P.A.;7134285639;SALDO Fatt.n. 003012762165  del 12/02/2019 ENERGIA ELETTRICA IP: GENNAIO 2019;06-03-2019;530;0;599;1;Spese correnti;3;Acquisto di beni e servizi;2;Acquisto di servizi;5;Utenze e canoni;4;Energia elettrica;06-03-2019;
309;1;0;"106,38";"795,58";ENEL ENERGIA S.P.A.;7134285639;SALDO Fatt.n. 003012762188  del 12/02/2019 ENERGIA ELETTRICA IP: GENNAIO 2019;06-03-2019;252;0;597;1;Spese correnti;3;Acquisto di beni e servizi;2;Acquisto di servizi;5;Utenze e canoni;4;Energia elettrica;06-03-2019;
309;2;0;"689,20";"795,58";ENEL ENERGIA S.P.A.;7134285639;SALDO Fatt.n. 003012762177  del 12/02/2019 ENERGIA ELETTRICA IP: GENNAIO 2019;06-03-2019;252;0;597;1;Spese correnti;3;Acquisto di beni e servizi;2;Acquisto di servizi;5;Utenze e canoni;4;Energia elettrica;06-03-2019;
310;1;0;"1.708,00";"1.708,00";CLIMASERVICE S.R.L.;ZBE242E519;SALDO Fatt.n. FPA 1/19  del 19/02/2019 FORNITURA CLIMATIZZATORE PER UFFICIO COMUNALE;06-03-2019;37;0;613;1;Spese correnti;3;Acquisto di beni e servizi;1;Acquisto di beni;2;Altri beni di consumo;999;Altri beni e materiali di consumo n.a.c.;06-03-2019;
311;1;0;"1.445,00";"1.445,00";NOIGROUP Coop. Soc. a R.L.;Z5F268727B;SALDO Fatt.n. 106  del 01/02/2019 SERVIZIO GESTIONE BIBLIOTECA;06-03-2019;302;1;553;1;Spese correnti;3;Acquisto di beni e servizi;2;Acquisto di servizi;16;Servizi amministrativi;999;Altre spese per servizi amministrativi;06-03-2019;
312;1;0;"2.471,09";"2.471,09";CASA DI RIPOSO 'AITA'; ;SALDO Fatt.n. 49/B  del 21/02/2019 SERVIZIO DI ASSISTENZA DOMICILIARE - GENNAIO 2019;06-03-2019;562;1;341;1;Spese correnti;3;Acquisto di beni e servizi;2;Acquisto di servizi;15;Contratti di servizio pubblico;9;Contratti di servizio di assistenza sociale domiciliare;06-03-2019;
313;1;0;"205,07";"205,07";MAZZAROLO S.R.L.;ZE12628184;SALDO Fatt.n. 2019_3_2  del 15/02/2019 RIPARAZIONE AUTOCARRO COMUNALE;06-03-2019;590;1;494;1;Spese correnti;3;Acquisto di beni e servizi;2;Acquisto di servizi;9;Manutenzione ordinaria e riparazioni;1;"Manutenzione ordinaria e riparazioni di mezzi di trasporto ad uso civile, di sicurezza e ordine pubblico";06-03-2019;
314;1;0;"85,17";"85,17";MAZZAROLO S.R.L.;Z5A216F6A4;SALDO Fatt.n. 2019_3_1  del 15/02/2019 MANUTENZIONE ORDINARIA AUTOMEZZI VIABILITA';06-03-2019;590;1;559;1;Spese correnti;3;Acquisto di beni e servizi;2;Acquisto di servizi;9;Manutenzione ordinaria e riparazioni;1;"Manutenzione ordinaria e riparazioni di mezzi di trasporto ad uso civile, di sicurezza e ordine pubblico";06-03-2019;
315;1;0;"248,11";"248,11";MAZZAROLO S.R.L.;Z4F24B333B;SALDO Fatt.n. 2019_3_18  del 22/02/2019 MANUTENZIONE ORDINARIA AUTOMEZZI VIABILITA';06-03-2019;590;1;603;1;Spese correnti;3;Acquisto di beni e servizi;2;Acquisto di servizi;9;Manutenzione ordinaria e riparazioni;1;"Manutenzione ordinaria e riparazioni di mezzi di trasporto ad uso civile, di sicurezza e ordine pubblico";06-03-2019;
316;1;0;"988,20";"988,20";F.S. FERRO ORNAMENTALE DI STRADIOTTO ENDY;Z4C263188C;SALDO Fatt.n. 4  del 22/02/2019 FORNITURA ELEMENTI DI CARPENTERIA METALLICA;06-03-2019;745;0;499;2;Spese in conto capitale;2;Investimenti fissi lordi e acquisto di terreni;1;Beni materiali;9;Beni immobili;19;Fabbricati ad uso strumentale;06-03-2019;
317;1;0;"106,50";"106,50";EGAF EDIZIONI SRL;ZF6271BE94;SALDO Fatt.n. 2019-V-VE2-760  del 26/02/2019 FORNITURA PRONTUARI CDS PER UFFICIO VIGILI;06-03-2019;37;0;75;1;Spese correnti;3;Acquisto di beni e servizi;1;Acquisto di beni;2;Altri beni di consumo;1;"Carta, cancelleria e stampati";06-03-2019;
318;1;0;"78,69";"78,69";STARDATE S.A.S.;Z22273AA80;SALDO Fatt.n. 58/E  del 26/02/2019 FORNITURA DI TRE SWITCH PER UFFICI COMUNAI;06-03-2019;33;0;83;1;Spese correnti;3;Acquisto di beni e servizi;1;Acquisto di beni;2;Altri beni di consumo;6;Materiale informatico;06-03-2019;
319;1;0;"1.220,00";"1.220,00";ACCATRE S.R.L.;ZAA1A39217;SALDO Fatt.n. 190073/1  del 27/02/2019 SISTEMI INFORMATICI;06-03-2019;39;0;240;1;Spese correnti;3;Acquisto di beni e servizi;2;Acquisto di servizi;19;Servizi informatici e di telecomunicazioni;1;Gestione e manutenzione applicazioni;06-03-2019;
320;1;0;"5.612,00";"5.612,00";HALLEY VENETO SRL;Z0826B1CF8;ACCONTO Fatt.n. 1/190233  del 20/02/2019 MANUTENZIONE E AGGIORNAMENTO SERVIZI INFORMATICI;06-03-2019;39;0;19;1;Spese correnti;3;Acquisto di beni e servizi;2;Acquisto di servizi;19;Servizi informatici e di telecomunicazioni;1;Gestione e manutenzione applicazioni;06-03-2019;
321;1;0;"15.189,00";"15.189,00";HALLEY VENETO SRL;Z0826B1CF8;SALDO Fatt.n. 1/190233  del 20/02/2019 MANUTENZIONE E AGGIORNAMENTO SERVIZI INFORMATICI;06-03-2019;39;0;18;1;Spese correnti;3;Acquisto di beni e servizi;2;Acquisto di servizi;19;Servizi informatici e di telecomunicazioni;1;Gestione e manutenzione applicazioni;06-03-2019;
322;1;0;"62.812,04";"62.812,04";FAGGION ANTONIO S.R.L.;76351125BD;SALDO Fatt.n. 15  del 22/02/2019 ANTICIPAZIONE LAVORI MIGLIORAMENTO ANTISISMICO PLESSO SCOLASTICO;06-03-2019;775;3;472;2;Spese in conto capitale;2;Investimenti fissi lordi e acquisto di terreni;1;Beni materiali;9;Beni immobili;3;Fabbricati ad uso scolastico;06-03-2019;
323;1;0;"12.410,72";"12.410,72";Mobilità di Marca S.P.A.;7168087C82;SALDO Fatt.n. 000102  del 26/02/2019 SERVIZIO DI TRASPORTO SCOLASTICO -GENNAIO 2019;06-03-2019;275;1;301;1;Spese correnti;3;Acquisto di beni e servizi;2;Acquisto di servizi;15;Contratti di servizio pubblico;2;Contratti di servizio di trasporto scolastico;06-03-2019;
324;1;0;"26,21";"353,32";TELECOM ITALIA S.P.A.;ZB722530A8;SALDO Fatt.n. 8E00076224  del 06/02/2019 TRAFFICO TELEFONICO: DICEMBRE 2018 - GENNAIO 2019;06-03-2019;34;0;95;1;Spese correnti;3;Acquisto di beni e servizi;2;Acquisto di servizi;5;Utenze e canoni;1;Telefonia fissa;06-03-2019;
324;2;0;"26,21";"353,32";TELECOM ITALIA S.P.A.;ZB722530A8;SALDO Fatt.n. 8E00074570  del 06/02/2019 TRAFFICO TELEFONICO: DICEMBRE 2018-GENNAIO 2019;06-03-2019;34;0;95;1;Spese correnti;3;Acquisto di beni e servizi;2;Acquisto di servizi;5;Utenze e canoni;1;Telefonia fissa;06-03-2019;
324;3;0;"26,21";"353,32";TELECOM ITALIA S.P.A.;ZB722530A8;SALDO Fatt.n. 8E00073111  del 06/02/2019 TRAFFICO TELEFONICO: DICEMBRE 2018- GENNAIO 2019;06-03-2019;34;0;95;1;Spese correnti;3;Acquisto di beni e servizi;2;Acquisto di servizi;5;Utenze e canoni;1;Telefonia fissa;06-03-2019;
324;4;0;"26,21";"353,32";TELECOM ITALIA S.P.A.;ZB722530A8;SALDO Fatt.n. 8E00076466  del 06/02/2019 TRAFFICO TELEFONICO: DICEMBRE 2018 - GENNAIO 2019;06-03-2019;34;0;95;1;Spese correnti;3;Acquisto di beni e servizi;2;Acquisto di servizi;5;Utenze e canoni;1;Telefonia fissa;06-03-2019;
324;5;0;"26,21";"353,32";TELECOM ITALIA S.P.A.;ZB722530A8;SALDO Fatt.n. 8E00075805  del 06/02/2019 TRAFFICO TELEFONICO: DICEMBRE  2018 - GENNAIO 2019;06-03-2019;34;0;95;1;Spese correnti;3;Acquisto di beni e servizi;2;Acquisto di servizi;5;Utenze e canoni;1;Telefonia fissa;06-03-2019;
324;6;0;"26,50";"353,32";TELECOM ITALIA S.P.A.;ZB722530A8;SALDO Fatt.n. 8E00075191  del 06/02/2019 TRAFFICO TELEFPONICO: DICEMBRE 2018 - GENNAIO 2019;06-03-2019;34;0;95;1;Spese correnti;3;Acquisto di beni e servizi;2;Acquisto di servizi;5;Utenze e canoni;1;Telefonia fissa;06-03-2019;
324;7;0;"38,48";"353,32";TELECOM ITALIA S.P.A.;ZB722530A8;SALDO Fatt.n. 8E00076190  del 06/02/2019 TRAFFICO TELEFONICO: DICEMBRE 2018- GENNAIO 2019;06-03-2019;34;0;95;1;Spese correnti;3;Acquisto di beni e servizi;2;Acquisto di servizi;5;Utenze e canoni;1;Telefonia fissa;06-03-2019;
324;8;0;"52,43";"353,32";TELECOM ITALIA S.P.A.;ZB722530A8;SALDO Fatt.n. 8E00074814  del 06/02/2019 TRAFFICO TELEFONICO- DICEMBRE 2018-GENNAIO 2019;06-03-2019;34;0;95;1;Spese correnti;3;Acquisto di beni e servizi;2;Acquisto di servizi;5;Utenze e canoni;1;Telefonia fissa;06-03-2019;
324;9;0;"52,43";"353,32";TELECOM ITALIA S.P.A.;ZB722530A8;SALDO Fatt.n. 8E00076239  del 06/02/2019 TRAFFICO TELEFONICO: DICEMBRE 2018-GENNAIO 2019;06-03-2019;34;0;95;1;Spese correnti;3;Acquisto di beni e servizi;2;Acquisto di servizi;5;Utenze e canoni;1;Telefonia fissa;06-03-2019;
324;10;0;"52,43";"353,32";TELECOM ITALIA S.P.A.;ZB722530A8;SALDO Fatt.n. 8E00076223  del 06/02/2019 TRAFFICO TELEFONICO: DICEMBRE 2018 - GENNAIO 2019;06-03-2019;34;0;95;1;Spese correnti;3;Acquisto di beni e servizi;2;Acquisto di servizi;5;Utenze e canoni;1;Telefonia fissa;06-03-2019;
325;1;0;"31,11";"31,11";TELECOM ITALIA S.P.A.;ZB722530A8;SALDO Fatt.n. 8E00076112  del 06/02/2019 TRAFFICO TELEFONICO: DICEMBRFE 2018-GENNAIO 2019;06-03-2019;310;0;98;1;Spese correnti;3;Acquisto di beni e servizi;2;Acquisto di servizi;5;Utenze e canoni;1;Telefonia fissa;06-03-2019;
326;1;0;"26,89";"186,92";TELECOM ITALIA S.P.A.;ZB722530A8;SALDO Fatt.n. 8E00075708  del 06/02/2019 TRAFFICO TELEFONICO: DICEMBRE 2018 - GENNAIO 2019;06-03-2019;235;0;96;1;Spese correnti;3;Acquisto di beni e servizi;2;Acquisto di servizi;5;Utenze e canoni;1;Telefonia fissa;06-03-2019;
326;2;0;"70,92";"186,92";TELECOM ITALIA S.P.A.;ZB722530A8;SALDO Fatt.n. 8E00077379  del 06/02/2019 TRAFFICO TELEFONICO: DICEMBRE 2018-GENNAIO 2019;06-03-2019;235;0;96;1;Spese correnti;3;Acquisto di beni e servizi;2;Acquisto di servizi;5;Utenze e canoni;1;Telefonia fissa;06-03-2019;
326;3;0;"89,11";"186,92";TELECOM ITALIA S.P.A.;ZB722530A8;SALDO Fatt.n. 8E00075842  del 06/02/2019 TRAFFICO TELEFONICO: DICEMBRE 2018- GENNAIO 2019;06-03-2019;235;0;96;1;Spese correnti;3;Acquisto di beni e servizi;2;Acquisto di servizi;5;Utenze e canoni;1;Telefonia fissa;06-03-2019;
327;1;0;"31,60";"31,60";LA FONTESE DI GIANNI BROLESE & C. S.A.S.;ZF0271BCF6;SALDO Fatt.n. 68/V  del 30/01/2019 MATERIALE DI CANCELLERIA PER UFFICIO POLIZIA LOCALE;06-03-2019;37;0;70;1;Spese correnti;3;Acquisto di beni e servizi;1;Acquisto di beni;2;Altri beni di consumo;1;"Carta, cancelleria e stampati";06-03-2019;
328;1;0;"152,00";"152,00";CENTRO STUDI AMMINISTRATIVI ALTA PADOVANA S.A.S.;ZD426C8BBE;SALDO Fatt.n. 11  del 04/02/2019 CONSULENZE;06-03-2019;52;0;34;1;Spese correnti;3;Acquisto di beni e servizi;2;Acquisto di servizi;4;Acquisto di servizi per formazione e addestramento del personale dell'ente;999;Acquisto di servizi per altre spese per formazione e addestramento n.a.c.;06-03-2019;
329;1;0;"488,00";"488,00";ACCATRE S.R.L.;ZCB257D4E7;SALDO Fatt.n. 190072/1  del 27/02/2019 SERVIZIO ATTIVAZIONE DRIVER CONSERVZIONE EFFETT. NEL 2018;06-03-2019;39;2;429;1;Spese correnti;3;Acquisto di beni e servizi;2;Acquisto di servizi;19;Servizi informatici e di telecomunicazioni;1;Gestione e manutenzione applicazioni;06-03-2019;
330;1;0;"82,55";"82,55";PEDERIVA ITALO;ZB721DC678;ACCONTO Fatt.n. 1/PA  del 19/02/2019 NOLEGGIO PIATTAFORMA PER ADDOBBO ALBERO DI NATALE 2018;06-03-2019;561;3;595;1;Spese correnti;3;Acquisto di beni e servizi;2;Acquisto di servizi;13;Servizi ausiliari per il funzionamento dell'ente;999;Altri servizi ausiliari n.a.c.;06-03-2019;
331;1;0;"219,40";"219,40";PEDERIVA ITALO;ZB721DC678;SALDO Fatt.n. 1/PA  del 19/02/2019 NOLEGGIO PIATTAFORMA PER ADDOBBO ALBERO DI NATALE 2018;06-03-2019;510;3;594;1;Spese correnti;3;Acquisto di beni e servizi;2;Acquisto di servizi;9;Manutenzione ordinaria e riparazioni;11;Manutenzione ordinaria e riparazioni di altri beni materiali;06-03-2019;
332;1;0;"268,40";"268,40";PEDERIVA ITALO;Z0E2737125;SALDO Fatt.n. 2/PA  del 20/02/2019 NOLEGGIO PIATTAFORMA PER ADDOBBO ALBERO DI NATALE 2019;06-03-2019;510;3;84;1;Spese correnti;3;Acquisto di beni e servizi;2;Acquisto di servizi;9;Manutenzione ordinaria e riparazioni;4;Manutenzione ordinaria e riparazioni di impianti e macchinari;06-03-2019;
333;1;0;"793,00";"793,00";CENTRO STUDI AMMINISTRATIVI DELLA M.T.; ;SALDO Fatt.n. 27/2019  del 28/02/2019 ESPLETAMENTO PRATICHE DI PENSIONE;06-03-2019;34;2;138;1;Spese correnti;3;Acquisto di beni e servizi;2;Acquisto di servizi;13;Servizi ausiliari per il funzionamento dell'ente;999;Altri servizi ausiliari n.a.c.;06-03-2019;
334;1;0;"1.688,40";"1.688,40";OPERE PIE D'ONIGO; ;SALDO Fatt.n. 49/2  del 28/02/2019 SPESA RETTA PER ANZIANI;06-03-2019;560;0;32;1;Spese correnti;3;Acquisto di beni e servizi;2;Acquisto di servizi;15;Contratti di servizio pubblico;8;Contratti di servizio di assistenza sociale residenziale e semiresidenziale;06-03-2019;
335;1;0;"4.949,77";"4.949,77";CASA DI RIPOSO 'AITA'; ;ACCONTO Fatt.n. 76/C  del 31/01/2019 FORNITURA PASTI MENSA SCUOLE - GENNAIO 2019;06-03-2019;274;1;54;1;Spese correnti;3;Acquisto di beni e servizi;2;Acquisto di servizi;15;Contratti di servizio pubblico;6;Contratti di servizio per le mense scolastiche;06-03-2019;
336;1;0;"1.764,85";"1.764,85";CASA DI RIPOSO 'AITA'; ;SALDO Fatt.n. 76/C  del 31/01/2019 FORNITURA PASTI MENSA SCUOLE - GENNAIO 2019;06-03-2019;274;1;54;1;Spese correnti;3;Acquisto di beni e servizi;2;Acquisto di servizi;15;Contratti di servizio pubblico;6;Contratti di servizio per le mense scolastiche;06-03-2019;
337;1;0;"694,45";"694,45";KONE SPA;Z65272A039;SALDO Fatt.n. 0094000074  del 28/02/2019 SERVIZIO MANUTENZIONE ASCENSORE SCUOLA MEDIA;06-03-2019;252;1;99;1;Spese correnti;3;Acquisto di beni e servizi;2;Acquisto di servizi;9;Manutenzione ordinaria e riparazioni;4;Manutenzione ordinaria e riparazioni di impianti e macchinari;06-03-2019;
338;1;0;"105,64";"112,80";KUWAIT PETROLEUM ITALIA S.P.A.;Z4E197F01F;SALDO Fatt.n. PJ00749093  del 31/01/2019 CARBURANTE AUTO OPERAIO - DICEMBRE 2018;06-03-2019;590;0;69;1;Spese correnti;3;Acquisto di beni e servizi;1;Acquisto di beni;2;Altri beni di consumo;2;"Carburanti, combustibili e lubrificanti";06-03-2019;
338;2;0;"7,16";"112,80";KUWAIT PETROLEUM ITALIA S.P.A.;Z4E197F01F;SALDO Fatt.n. PJ00749095  del 31/01/2019 CARBURANTE AUTO VIGILI -DICEMBRE 2018;06-03-2019;590;0;69;1;Spese correnti;3;Acquisto di beni e servizi;1;Acquisto di beni;2;Altri beni di consumo;2;"Carburanti, combustibili e lubrificanti";06-03-2019;
340;1;0;"213,09";"213,09";ALTO TREVIGIANO SERVIZI S.R.L.;ZB0223C5F5;SALDO Fatt.n. O2201900000304  del 04/02/2019 SERVIZIO IDRICO: OTTOBRE - DICEMBRE 2018;06-03-2019;34;0;70;1;Spese correnti;3;Acquisto di beni e servizi;2;Acquisto di servizi;5;Utenze e canoni;5;Acqua;06-03-2019;
341;1;0;"1.250,00";"1.250,00";MODOLO ALEX; ;"IMPEGNO DI SPESA PER CONCERTO DI FINE ANNO 2018. LIQUIDAZIONE SPESA, COME DA NOTA DEL 14/01/2019.";12-03-2019;42;0;545;1;Spese correnti;3;Acquisto di beni e servizi;2;Acquisto di servizi;2;"Organizzazione eventi, pubblicita` e servizi per trasferta";5;Organizzazione e partecipazione a manifestazioni e convegni;12-03-2019;
342;1;0;"30.943,50";"30.943,50";A.T.E.R. - AZIENDA TERRIT. EDILIZIA RESIDENZIALE; ;"SALDO Fatt.n. G21/2018  del 27/03/2018 cod.contr.: 26947; cod.UI: 13238;Indirizzo:Via CAOZOCCO - 31020 San Zenone Degli Ezzelini TV;perio.fatt.:Mensile CANONI ALLOGGI ANNO 2018";13-03-2019;561;0;627;1;Spese correnti;3;Acquisto di beni e servizi;2;Acquisto di servizi;7;Utilizzo di beni di terzi;1;Locazione di beni immobili;13-03-2019;
343;1;0;"5.153,77";"5.153,77";COMUNE DI ASOLO; ;SPORTELLO IMMIGRATI - LIQUIDAZIONE QUOTA ANNO 2018.;13-03-2019;575;1;99;1;Spese correnti;4;Trasferimenti correnti;1;Trasferimenti correnti a Amministrazioni Pubbliche;2;Trasferimenti correnti a Amministrazioni Locali;3;Trasferimenti correnti a Comuni;13-03-2019;
346;1;0;"291,84";"291,84";PERSONALE DIPENDENTE - SEDE; ;IMPEGNO DI SPESA PER RIMBORSO SPESE E ACCESSI AL SEGRETARIO COMUNALE DR. ORSO PAOLO PER L'ANNO 2019.;13-03-2019;20;0;29;1;Spese correnti;3;Acquisto di beni e servizi;2;Acquisto di servizi;2;"Organizzazione eventi, pubblicita` e servizi per trasferta";1;Rimborso per viaggio e trasloco;13-03-2019;
347;1;0;"21,16";"21,16";PERSONALE DIPENDENTE - SEDE; ;STIPENDI MESE DI: MARZO 19;13-03-2019;20;0;29;1;Spese correnti;3;Acquisto di beni e servizi;2;Acquisto di servizi;2;"Organizzazione eventi, pubblicita` e servizi per trasferta";1;Rimborso per viaggio e trasloco;13-03-2019;
375;1;0;"5.333,71";"5.333,71";AMMINISTRATORI COMUNALI; ;STIPENDI MESE DI: MARZO 19;13-03-2019;2;0;6;1;Spese correnti;3;Acquisto di beni e servizi;2;Acquisto di servizi;1;Organi e incarichi istituzionali dell'amministrazione;1;Organi istituzionali dell'amministrazione - Indennità;13-03-2019;
378;1;0;"35,34";"461,62";ENEL ENERGIA S.P.A.;7134285639;SALDO Fatt.n. 003012762170  del 12/02/2019 ENERGIA ELETTRICA CIMITERO: GENNAIO 2019;14-03-2019;413;0;115;1;Spese correnti;3;Acquisto di beni e servizi;2;Acquisto di servizi;5;Utenze e canoni;4;Energia elettrica;14-03-2019;
378;2;0;"72,35";"461,62";ENEL ENERGIA S.P.A.;7134285639;SALDO Fatt.n. 003012762192  del 12/02/2019 ENERGIA ELETTRICA - GENNAIO 2019;14-03-2019;413;0;115;1;Spese correnti;3;Acquisto di beni e servizi;2;Acquisto di servizi;5;Utenze e canoni;4;Energia elettrica;14-03-2019;
378;3;0;"353,93";"461,62";ENEL ENERGIA S.P.A.;7134285639;SALDO Fatt.n. 003012762200  del 12/02/2019 ENERGIA ELETTRICA CIMITERO: GENNAIO 2019;14-03-2019;413;0;115;1;Spese correnti;3;Acquisto di beni e servizi;2;Acquisto di servizi;5;Utenze e canoni;4;Energia elettrica;14-03-2019;
379;1;0;"381,29";"381,29";ENEL ENERGIA S.P.A.;7134285639;SALDO Fatt.n. 003012762173  del 12/02/2019 ENERGIA ELETTRICA VILLA RUBELLI: GENNAIO 2019;14-03-2019;310;0;116;1;Spese correnti;3;Acquisto di beni e servizi;2;Acquisto di servizi;5;Utenze e canoni;4;Energia elettrica;14-03-2019;
380;1;0;"2.358,25";"2.358,25";ENEL ENERGIA S.P.A.;7134285639;SALDO Fatt.n. 003012762202  del 12/02/2019 ENERGIA ELETTRICA SCUOLA PRIMARIA: GENNAIO 2019;14-03-2019;252;0;114;1;Spese correnti;3;Acquisto di beni e servizi;2;Acquisto di servizi;5;Utenze e canoni;4;Energia elettrica;14-03-2019;
381;1;0;"1.480,64";"1.480,64";ENEL ENERGIA S.P.A.;7134285639;SALDO Fatt.n. 003012762183  del 12/02/2019 ENERGIA ELETTRICA IMPIANTI SPORTIVI: GENNAIO 2019;14-03-2019;530;0;118;1;Spese correnti;3;Acquisto di beni e servizi;2;Acquisto di servizi;5;Utenze e canoni;4;Energia elettrica;14-03-2019;
382;1;0;"10,36";"10,36";ENEL ENERGIA S.P.A.;7134285639;SALDO Fatt.n. 003005815425  del 15/01/2019 ENERGIA ELETTRICA IP: GENNAIO 2019;14-03-2019;235;0;596;1;Spese correnti;3;Acquisto di beni e servizi;2;Acquisto di servizi;5;Utenze e canoni;4;Energia elettrica;14-03-2019;
383;1;0;"142,26";"622,00";ENEL ENERGIA S.P.A.;7134285639;SALDO Fatt.n. 003012762210  del 12/02/2019 ENERGIA ELETTRICA: GENNAIO 2019;14-03-2019;235;0;113;1;Spese correnti;3;Acquisto di beni e servizi;2;Acquisto di servizi;5;Utenze e canoni;4;Energia elettrica;14-03-2019;
383;2;0;"479,74";"622,00";ENEL ENERGIA S.P.A.;7134285639;SALDO Fatt.n. 003012762166  del 12/02/2019 ENERGIA ELETTRICA IP: GENNAIO 2019;14-03-2019;235;0;113;1;Spese correnti;3;Acquisto di beni e servizi;2;Acquisto di servizi;5;Utenze e canoni;4;Energia elettrica;14-03-2019;
384;1;0;"10,89";"2.892,10";ENEL ENERGIA S.P.A.;7134285639;SALDO Fatt.n. 003012762197  del 12/02/2019 ENERGIA ELETTRICA: GENNAIO 2019;14-03-2019;600;0;120;1;Spese correnti;3;Acquisto di beni e servizi;2;Acquisto di servizi;5;Utenze e canoni;4;Energia elettrica;14-03-2019;
384;2;0;"10,89";"2.892,10";ENEL ENERGIA S.P.A.;7134285639;SALDO Fatt.n. 003012762196  del 12/02/2019 ENERGIA ELETTRICA: GENNAIO 2019;14-03-2019;600;0;120;1;Spese correnti;3;Acquisto di beni e servizi;2;Acquisto di servizi;5;Utenze e canoni;4;Energia elettrica;14-03-2019;
384;3;0;"25,93";"2.892,10";ENEL ENERGIA S.P.A.;7134285639;SALDO Fatt.n. 003012762158  del 12/02/2019 ENERGIA ELETTRICA: GENNAIO 2019;14-03-2019;600;0;120;1;Spese correnti;3;Acquisto di beni e servizi;2;Acquisto di servizi;5;Utenze e canoni;4;Energia elettrica;14-03-2019;
384;4;0;"58,95";"2.892,10";ENEL ENERGIA S.P.A.;7134285639;SALDO Fatt.n. 003012762176  del 12/02/2019 ENERGIA ELETTRICA: GENNAIO 2019;14-03-2019;600;0;120;1;Spese correnti;3;Acquisto di beni e servizi;2;Acquisto di servizi;5;Utenze e canoni;4;Energia elettrica;14-03-2019;
384;5;0;"63,48";"2.892,10";ENEL ENERGIA S.P.A.;7134285639;SALDO Fatt.n. 003012762172  del 12/02/2019 ENERGIA ELETTRICA IP - GENNAIO 2019;14-03-2019;600;0;120;1;Spese correnti;3;Acquisto di beni e servizi;2;Acquisto di servizi;5;Utenze e canoni;4;Energia elettrica;14-03-2019;
384;6;0;"68,14";"2.892,10";ENEL ENERGIA S.P.A.;7134285639;SALDO Fatt.n. 003012762179  del 12/02/2019 ENERGIA ELETTRICA: GENNAIO 2019;14-03-2019;600;0;120;1;Spese correnti;3;Acquisto di beni e servizi;2;Acquisto di servizi;5;Utenze e canoni;4;Energia elettrica;14-03-2019;
384;7;0;"118,96";"2.892,10";ENEL ENERGIA S.P.A.;7134285639;SALDO Fatt.n. 003012762201  del 12/02/2019 ENERGIA ELETTRICA: GENNAIO 2019;14-03-2019;600;0;120;1;Spese correnti;3;Acquisto di beni e servizi;2;Acquisto di servizi;5;Utenze e canoni;4;Energia elettrica;14-03-2019;
384;8;0;"210,07";"2.892,10";ENEL ENERGIA S.P.A.;7134285639;SALDO Fatt.n. 003012762191  del 12/02/2019 ENERGIA  ELETTRICA - GENNAIO 2019;14-03-2019;600;0;120;1;Spese correnti;3;Acquisto di beni e servizi;2;Acquisto di servizi;5;Utenze e canoni;4;Energia elettrica;14-03-2019;
384;9;0;"242,57";"2.892,10";ENEL ENERGIA S.P.A.;7134285639;SALDO Fatt.n. 003012762184  del 12/02/2019 ENERGIA ELETTRICA: GENNAIO 2019;14-03-2019;600;0;120;1;Spese correnti;3;Acquisto di beni e servizi;2;Acquisto di servizi;5;Utenze e canoni;4;Energia elettrica;14-03-2019;
384;10;0;"290,65";"2.892,10";ENEL ENERGIA S.P.A.;7134285639;SALDO Fatt.n. 003012762214  del 12/02/2019 ENERGIA ELETTRICA: GENNAIO 2019;14-03-2019;600;0;120;1;Spese correnti;3;Acquisto di beni e servizi;2;Acquisto di servizi;5;Utenze e canoni;4;Energia elettrica;14-03-2019;
384;11;0;"324,93";"2.892,10";ENEL ENERGIA S.P.A.;7134285639;SALDO Fatt.n. 003012762193  del 12/02/2019 ENERGIA ELETTRICA: GENNAIO 2019;14-03-2019;600;0;120;1;Spese correnti;3;Acquisto di beni e servizi;2;Acquisto di servizi;5;Utenze e canoni;4;Energia elettrica;14-03-2019;
384;12;0;"1.466,64";"2.892,10";ENEL ENERGIA S.P.A.;7134285639;SALDO Fatt.n. 003012762163  del 12/02/2019 ENERGIA ELETTRICA: GENNAIO 2019;14-03-2019;600;0;120;1;Spese correnti;3;Acquisto di beni e servizi;2;Acquisto di servizi;5;Utenze e canoni;4;Energia elettrica;14-03-2019;
385;1;0;"443,04";"2.843,72";ENEL ENERGIA S.P.A.;7134285639;SALDO Fatt.n. 003012762174  del 12/02/2019 ENERGIA ELETTRICA: GENNAIO 2019;14-03-2019;600;0;120;1;Spese correnti;3;Acquisto di beni e servizi;2;Acquisto di servizi;5;Utenze e canoni;4;Energia elettrica;14-03-2019;
385;2;0;"32,40";"2.843,72";ENEL ENERGIA S.P.A.;7134285639;SALDO Fatt.n. 003012762169  del 12/02/2019 ENERGIA ELETTRICA: GENNAIO 2019;14-03-2019;600;0;120;1;Spese correnti;3;Acquisto di beni e servizi;2;Acquisto di servizi;5;Utenze e canoni;4;Energia elettrica;14-03-2019;
385;3;0;"34,18";"2.843,72";ENEL ENERGIA S.P.A.;7134285639;SALDO Fatt.n. 003012762203  del 12/02/2019 ENERGIA ELETTRICA: GENNAIO 2019;14-03-2019;600;0;120;1;Spese correnti;3;Acquisto di beni e servizi;2;Acquisto di servizi;5;Utenze e canoni;4;Energia elettrica;14-03-2019;
385;4;0;"37,45";"2.843,72";ENEL ENERGIA S.P.A.;7134285639;SALDO Fatt.n. 003012762211  del 12/02/2019 ENERGIA ELETTRICA: GENNAIO 2019;14-03-2019;600;0;120;1;Spese correnti;3;Acquisto di beni e servizi;2;Acquisto di servizi;5;Utenze e canoni;4;Energia elettrica;14-03-2019;
385;5;0;"52,34";"2.843,72";ENEL ENERGIA S.P.A.;7134285639;SALDO Fatt.n. 003012762175  del 12/02/2019 ENERGIA ELETTRICA: GENNAIO 2019;14-03-2019;600;0;120;1;Spese correnti;3;Acquisto di beni e servizi;2;Acquisto di servizi;5;Utenze e canoni;4;Energia elettrica;14-03-2019;
385;6;0;"78,15";"2.843,72";ENEL ENERGIA S.P.A.;7134285639;SALDO Fatt.n. 003012762167  del 12/02/2019 ENERGIA ELETTRICA: GENNAIO 2019;14-03-2019;600;0;120;1;Spese correnti;3;Acquisto di beni e servizi;2;Acquisto di servizi;5;Utenze e canoni;4;Energia elettrica;14-03-2019;
385;7;0;"88,46";"2.843,72";ENEL ENERGIA S.P.A.;7134285639;SALDO Fatt.n. 003012762181  del 12/02/2019 ENERGIA ELETTRICA- GENNAIO 2019;14-03-2019;600;0;120;1;Spese correnti;3;Acquisto di beni e servizi;2;Acquisto di servizi;5;Utenze e canoni;4;Energia elettrica;14-03-2019;
385;8;0;"122,31";"2.843,72";ENEL ENERGIA S.P.A.;7134285639;SALDO Fatt.n. 003012762189  del 12/02/2019 ENERGIA ELETTRICA: GENNAIO 2019;14-03-2019;600;0;120;1;Spese correnti;3;Acquisto di beni e servizi;2;Acquisto di servizi;5;Utenze e canoni;4;Energia elettrica;14-03-2019;
385;9;0;"217,54";"2.843,72";ENEL ENERGIA S.P.A.;7134285639;SALDO Fatt.n. 003012762186  del 12/02/2019 ENERGIA ELETTRICA: GENNAIO 2019;14-03-2019;600;0;120;1;Spese correnti;3;Acquisto di beni e servizi;2;Acquisto di servizi;5;Utenze e canoni;4;Energia elettrica;14-03-2019;
385;10;0;"255,19";"2.843,72";ENEL ENERGIA S.P.A.;7134285639;SALDO Fatt.n. 003012762162  del 12/02/2019 ENERGIA ELETTRICA: GENNAIO 2019;14-03-2019;600;0;120;1;Spese correnti;3;Acquisto di beni e servizi;2;Acquisto di servizi;5;Utenze e canoni;4;Energia elettrica;14-03-2019;
385;11;0;"277,04";"2.843,72";ENEL ENERGIA S.P.A.;7134285639;SALDO Fatt.n. 003012762159  del 12/02/2019 ENERGIA ELETTRICA: GENNAIO 2019;14-03-2019;600;0;120;1;Spese correnti;3;Acquisto di beni e servizi;2;Acquisto di servizi;5;Utenze e canoni;4;Energia elettrica;14-03-2019;
385;12;0;"479,72";"2.843,72";ENEL ENERGIA S.P.A.;7134285639;SALDO Fatt.n. 003012762164  del 12/02/2019 ENERGIA ELETTRICA: GENNAIO 2019;14-03-2019;600;0;120;1;Spese correnti;3;Acquisto di beni e servizi;2;Acquisto di servizi;5;Utenze e canoni;4;Energia elettrica;14-03-2019;
385;13;0;"725,90";"2.843,72";ENEL ENERGIA S.P.A.;7134285639;SALDO Fatt.n. 003012762208  del 12/02/2019 ENERGIA ELETTRICA: GENNAIO 2019;14-03-2019;600;0;120;1;Spese correnti;3;Acquisto di beni e servizi;2;Acquisto di servizi;5;Utenze e canoni;4;Energia elettrica;14-03-2019;
386;1;0;"10,36";"1.761,68";ENEL ENERGIA S.P.A.;7134285639;SALDO Fatt.n. 003005815424  del 15/01/2019 ENERGIA  ELETTRICA: GENNAIO 2019;14-03-2019;600;0;120;1;Spese correnti;3;Acquisto di beni e servizi;2;Acquisto di servizi;5;Utenze e canoni;4;Energia elettrica;14-03-2019;
386;2;0;"21,47";"1.761,68";ENEL ENERGIA S.P.A.;7134285639;SALDO Fatt.n. 003012762213  del 12/02/2019 ENERGIA ELETTRICA - GENNAIO 2019;14-03-2019;600;0;120;1;Spese correnti;3;Acquisto di beni e servizi;2;Acquisto di servizi;5;Utenze e canoni;4;Energia elettrica;14-03-2019;
386;3;0;"31,22";"1.761,68";ENEL ENERGIA S.P.A.;7134285639;SALDO Fatt.n. 003012762209  del 12/02/2019 ENERGIA ELETTRICA - GENNAIO 2019;14-03-2019;600;0;120;1;Spese correnti;3;Acquisto di beni e servizi;2;Acquisto di servizi;5;Utenze e canoni;4;Energia elettrica;14-03-2019;
386;4;0;"34,18";"1.761,68";ENEL ENERGIA S.P.A.;7134285639;SALDO Fatt.n. 003012762190  del 12/02/2019 ENERGIA ELETTRICA - GENNAIO 2019;14-03-2019;600;0;120;1;Spese correnti;3;Acquisto di beni e servizi;2;Acquisto di servizi;5;Utenze e canoni;4;Energia elettrica;14-03-2019;
386;5;0;"61,35";"1.761,68";ENEL ENERGIA S.P.A.;7134285639;SALDO Fatt.n. 003012762187  del 12/02/2019 ENERGIA ELETTRICA - GENNAIO 2019;14-03-2019;600;0;120;1;Spese correnti;3;Acquisto di beni e servizi;2;Acquisto di servizi;5;Utenze e canoni;4;Energia elettrica;14-03-2019;
386;6;0;"77,25";"1.761,68";ENEL ENERGIA S.P.A.;7134285639;SALDO Fatt.n. 003012762168  del 12/02/2019 ENERGIA ELETTRICA IP - GENNAIO 2019;14-03-2019;600;0;120;1;Spese correnti;3;Acquisto di beni e servizi;2;Acquisto di servizi;5;Utenze e canoni;4;Energia elettrica;14-03-2019;
386;7;0;"82,52";"1.761,68";ENEL ENERGIA S.P.A.;7134285639;SALDO Fatt.n. 003012762182  del 12/02/2019 ENERGIA ELETTRICA - GENNAIO 2019;14-03-2019;600;0;120;1;Spese correnti;3;Acquisto di beni e servizi;2;Acquisto di servizi;5;Utenze e canoni;4;Energia elettrica;14-03-2019;
386;8;0;"288,43";"1.761,68";ENEL ENERGIA S.P.A.;7134285639;SALDO Fatt.n. 003012762180  del 12/02/2019 ENERGIA ELETTRICA - GENNAIO 2019;14-03-2019;600;0;120;1;Spese correnti;3;Acquisto di beni e servizi;2;Acquisto di servizi;5;Utenze e canoni;4;Energia elettrica;14-03-2019;
386;9;0;"330,63";"1.761,68";ENEL ENERGIA S.P.A.;7134285639;SALDO Fatt.n. 003012762185  del 12/02/2019 ENERGIA ELETTRICA - GENNAIO 2019;14-03-2019;600;0;120;1;Spese correnti;3;Acquisto di beni e servizi;2;Acquisto di servizi;5;Utenze e canoni;4;Energia elettrica;14-03-2019;
386;10;0;"392,30";"1.761,68";ENEL ENERGIA S.P.A.;7134285639;SALDO Fatt.n. 003012762212  del 12/02/2019 ENERGIA ELETTRICA: GENNAIO 2019;14-03-2019;600;0;120;1;Spese correnti;3;Acquisto di beni e servizi;2;Acquisto di servizi;5;Utenze e canoni;4;Energia elettrica;14-03-2019;
386;11;0;"431,97";"1.761,68";ENEL ENERGIA S.P.A.;7134285639;SALDO Fatt.n. 003012762205  del 12/02/2019 ENERGIA ELETTRICA: GENNAIO 2019;14-03-2019;600;0;120;1;Spese correnti;3;Acquisto di beni e servizi;2;Acquisto di servizi;5;Utenze e canoni;4;Energia elettrica;14-03-2019;
387;1;0;"19,37";"1.589,90";ENEL ENERGIA S.P.A.;7134285639;SALDO Fatt.n. 003005815426  del 15/01/2019 ENERGIA ELETTRICA - GENNAIO 2019;14-03-2019;600;0;120;1;Spese correnti;3;Acquisto di beni e servizi;2;Acquisto di servizi;5;Utenze e canoni;4;Energia elettrica;14-03-2019;
387;2;0;"25,77";"1.589,90";ENEL ENERGIA S.P.A.;7134285639;SALDO Fatt.n. 003005815419  del 15/01/2019 ENERGIA ELETTRICA - GENNAIO 2019;14-03-2019;600;0;120;1;Spese correnti;3;Acquisto di beni e servizi;2;Acquisto di servizi;5;Utenze e canoni;4;Energia elettrica;14-03-2019;
387;3;0;"31,70";"1.589,90";ENEL ENERGIA S.P.A.;7134285639;SALDO Fatt.n. 003005815421  del 15/01/2019 ENERGIA ELETTRICA - GENNAIO 2019;14-03-2019;600;0;120;1;Spese correnti;3;Acquisto di beni e servizi;2;Acquisto di servizi;5;Utenze e canoni;4;Energia elettrica;14-03-2019;
387;4;0;"32,40";"1.589,90";ENEL ENERGIA S.P.A.;7134285639;SALDO Fatt.n. 003005815427  del 15/01/2019 ENERGIA ELETTRICA - GENNAIO 2019;14-03-2019;600;0;120;1;Spese correnti;3;Acquisto di beni e servizi;2;Acquisto di servizi;5;Utenze e canoni;4;Energia elettrica;14-03-2019;
387;5;0;"64,77";"1.589,90";ENEL ENERGIA S.P.A.;7134285639;SALDO Fatt.n. 003005815422  del 15/01/2019 ENERGIA ELETTRICA - GENNAIO 2019;14-03-2019;600;0;120;1;Spese correnti;3;Acquisto di beni e servizi;2;Acquisto di servizi;5;Utenze e canoni;4;Energia elettrica;14-03-2019;
387;6;0;"116,61";"1.589,90";ENEL ENERGIA S.P.A.;7134285639;SALDO Fatt.n. 003005815423  del 15/01/2019 ENERGIA ELETTRICA - GENNAIO 2019;14-03-2019;600;0;120;1;Spese correnti;3;Acquisto di beni e servizi;2;Acquisto di servizi;5;Utenze e canoni;4;Energia elettrica;14-03-2019;
387;7;0;"182,99";"1.589,90";ENEL ENERGIA S.P.A.;7134285639;SALDO Fatt.n. 003012762160  del 12/02/2019 ENERGIA ELETTRICA - GENNAIO 2019;14-03-2019;600;0;120;1;Spese correnti;3;Acquisto di beni e servizi;2;Acquisto di servizi;5;Utenze e canoni;4;Energia elettrica;14-03-2019;
387;8;0;"356,79";"1.589,90";ENEL ENERGIA S.P.A.;7134285639;SALDO Fatt.n. 003012762199  del 12/02/2019 ENERGIA ELETTRICA - GENNAIO 2019;14-03-2019;600;0;120;1;Spese correnti;3;Acquisto di beni e servizi;2;Acquisto di servizi;5;Utenze e canoni;4;Energia elettrica;14-03-2019;
387;9;0;"759,50";"1.589,90";ENEL ENERGIA S.P.A.;7134285639;SALDO Fatt.n. 003005815428  del 15/01/2019 ENERGIA ELETTRICA - GENNAIO 2019;14-03-2019;600;0;120;1;Spese correnti;3;Acquisto di beni e servizi;2;Acquisto di servizi;5;Utenze e canoni;4;Energia elettrica;14-03-2019;
388;1;0;"656,90";"656,90";ENEL ENERGIA S.P.A.;7134285639;SALDO Fatt.n. 003012762194  del 12/02/2019 ENERGIA ELETTRICA - GENNAIO 2019;14-03-2019;34;0;111;1;Spese correnti;3;Acquisto di beni e servizi;2;Acquisto di servizi;5;Utenze e canoni;4;Energia elettrica;14-03-2019;
389;1;0;"12.410,72";"12.410,72";Mobilità di Marca S.P.A.;7168087C82;SALDO Fatt.n. 000119  del 28/02/2019;20-03-2019;275;1;301;1;Spese correnti;3;Acquisto di beni e servizi;2;Acquisto di servizi;15;Contratti di servizio pubblico;2;Contratti di servizio di trasporto scolastico;20-03-2019;
390;1;0;"-5.400,01";"5.400,00";KIRIKU' SOCIETA' COOPERATIVA SOCIALE ONLUS;Z5F262CE40;SALDO Fatt.n. 32  del 01/03/2019 SERVIZI BIBLIOTECA;20-03-2019;559;0;502;1;Spese correnti;3;Acquisto di beni e servizi;2;Acquisto di servizi;99;Altri servizi;999;Altri servizi diversi n.a.c.;20-03-2019;
390;2;0;"5.400,00";"5.400,00";KIRIKU' SOCIETA' COOPERATIVA SOCIALE ONLUS;Z5F262CE40;SALDO Fatt.n. 33  del 01/03/2019 SERVIZIO BIBLIOTECA: APRILE-DICEMBRE 2018;20-03-2019;559;0;502;1;Spese correnti;3;Acquisto di beni e servizi;2;Acquisto di servizi;99;Altri servizi;999;Altri servizi diversi n.a.c.;20-03-2019;
390;3;0;"5.400,01";"5.400,00";KIRIKU' SOCIETA' COOPERATIVA SOCIALE ONLUS;Z5F262CE40;SALDO Fatt.n. 29  del 08/02/2019 SERVIZIO BIBLIOTECA: APRILE - DICEMBRE 2018;20-03-2019;559;0;502;1;Spese correnti;3;Acquisto di beni e servizi;2;Acquisto di servizi;99;Altri servizi;999;Altri servizi diversi n.a.c.;20-03-2019;
391;1;0;"1.340,55";"1.340,55";BIM PIAVE NUOVE ENERGIE S.R.L.;Z592732837;ACCONTO Fatt.n. 9000333  del 11/02/2019 Anno termico 2018/2019 -acqua calda 01/07/2018-31/12/2018 - Scuola Primaria Liedolo;20-03-2019;311;0;86;1;Spese correnti;3;Acquisto di beni e servizi;2;Acquisto di servizi;5;Utenze e canoni;6;Gas;20-03-2019;
392;1;0;"200,82";"200,82";BIM PIAVE NUOVE ENERGIE S.R.L.;Z592732837;SALDO Fatt.n. 9000333  del 11/02/2019 Anno termico 2018/2019 -acqua calda 01/07/2018-31/12/2018 - Scuola Primaria Liedolo;20-03-2019;561;2;320;1;Spese correnti;3;Acquisto di beni e servizi;2;Acquisto di servizi;5;Utenze e canoni;6;Gas;20-03-2019;
393;1;0;"1.015,26";"1.015,26";PICCIN CLAUDIO;ZDD1DD3820;ACCONTO Fatt.n. 32  del 17/01/2019 COMPENSO REVISORE DEI CONTI - OTT - DIC. 2018;20-03-2019;36;0;587;1;Spese correnti;3;Acquisto di beni e servizi;2;Acquisto di servizi;1;Organi e incarichi istituzionali dell'amministrazione;8;"Compensi agli organi istituzionali di revisione, di controllo ed altri incarichi istituzionali dell'amministrazione";20-03-2019;
394;1;0;"831,11";"831,11";PICCIN CLAUDIO;Z3B1D1A696;ACCONTO Fatt.n. 32  del 17/01/2019 COMPENSO REVISORE DEI CONTI - OTT - DIC. 2018;20-03-2019;36;0;391;1;Spese correnti;3;Acquisto di beni e servizi;2;Acquisto di servizi;1;Organi e incarichi istituzionali dell'amministrazione;8;"Compensi agli organi istituzionali di revisione, di controllo ed altri incarichi istituzionali dell'amministrazione";20-03-2019;
395;1;0;"71,47";"71,47";PICCIN CLAUDIO;Z3B1D1A696;SALDO Fatt.n. 32  del 17/01/2019 COMPENSO REVISORE DEI CONTI - OTT - DIC. 2018;20-03-2019;36;0;391;1;Spese correnti;3;Acquisto di beni e servizi;2;Acquisto di servizi;1;Organi e incarichi istituzionali dell'amministrazione;8;"Compensi agli organi istituzionali di revisione, di controllo ed altri incarichi istituzionali dell'amministrazione";20-03-2019;
396;1;0;"2.000,00";"2.000,00";O.D.V. PROTEZIONE CIVILE DI SAN ZENONE DEGLI EZZELINI; ;LIQUIDAZIONE DI UN PRIMO ACCONTO DEL CONTRIBUTO AL GRUPPO COMUNALE DI PROTEZIONE CIVILE DI SAN ZENONE DEGLI EZZELINI - ANNO 2019 -;20-03-2019;382;1;139;1;Spese correnti;4;Trasferimenti correnti;1;Trasferimenti correnti a Amministrazioni Pubbliche;4;Trasferimenti correnti a organismi interni e/o unità locali della amministrazione;1;Trasferimenti correnti a organismi interni e/o unità locali della amministrazione;20-03-2019;
397;1;0;"79,96";"79,96";CENTRO CONTABILE SRL;Z232725591;ACCONTO Fatt.n. 10022  del 28/02/2019 CONTRATTO NOLEGGIO FOTOCOPIATORE;20-03-2019;34;0;96;1;Spese correnti;3;Acquisto di beni e servizi;2;Acquisto di servizi;5;Utenze e canoni;999;Utenze e canoni per altri servizi n.a.c.;20-03-2019;
398;1;0;"164,72";"164,72";CENTRO CONTABILE SRL;Z232725591;ACCONTO Fatt.n. 10022  del 28/02/2019 CONTRATTO NOLEGGIO FOTOCOPIATORE;20-03-2019;252;0;97;1;Spese correnti;3;Acquisto di beni e servizi;2;Acquisto di servizi;5;Utenze e canoni;999;Utenze e canoni per altri servizi n.a.c.;20-03-2019;
399;1;0;"64,50";"64,50";CENTRO CONTABILE SRL;Z232725591;SALDO Fatt.n. 10022  del 28/02/2019 CONTRATTO NOLEGGIO FOTOCOPIATORE;20-03-2019;235;0;98;1;Spese correnti;3;Acquisto di beni e servizi;2;Acquisto di servizi;5;Utenze e canoni;999;Utenze e canoni per altri servizi n.a.c.;20-03-2019;
400;1;0;"2.200,00";"2.200,00";IDEA GIARDINO SNC;Z6F2662F6A;SALDO Fatt.n. 5  del 28/02/2019 FORNITURA  PIANTE;20-03-2019;850;0;580;2;Spese in conto capitale;2;Investimenti fissi lordi e acquisto di terreni;3;Beni immateriali;5;Incarichi professionali per la realizzazione di investimenti;1;Incarichi professionali per la realizzazione di investimenti;20-03-2019;
401;1;0;"1.512,00";"1.512,00";CASA DI RIPOSO 'AITA'; ;SALDO Fatt.n. 93/B  del 28/02/2019 SPESA PER PERSONA BISOGNOSA;20-03-2019;560;0;31;1;Spese correnti;3;Acquisto di beni e servizi;2;Acquisto di servizi;15;Contratti di servizio pubblico;8;Contratti di servizio di assistenza sociale residenziale e semiresidenziale;20-03-2019;
402;1;0;"126,51";"126,51";PAPER-INGROS;Z0626817D2;ACCONTO Fatt.n. 116  del 06/03/2019 FORNITURA DI SEDIE OPERATIVE PER UFFICI;20-03-2019;743;3;550;2;Spese in conto capitale;2;Investimenti fissi lordi e acquisto di terreni;1;Beni materiali;6;Macchine per ufficio;1;Macchine per ufficio;20-03-2019;
403;1;0;"100,41";"100,41";PAPER-INGROS;Z0626817D2;SALDO Fatt.n. 116  del 06/03/2019 FORNITURA DI SEDIE OPERATIVE PER UFFICI;20-03-2019;37;0;551;1;Spese correnti;3;Acquisto di beni e servizi;1;Acquisto di beni;2;Altri beni di consumo;5;Accessori per uffici e alloggi;20-03-2019;
404;1;0;"515,55";"515,55";UNA CASA PER L'UOMO - SOCIETA' COOPERATIVA SOCIALE;ZA32468D08;SALDO Fatt.n. FE/0000061  del 28/02/2019 PROGETTO DI ACCOGLIENZA ABITATIVA;20-03-2019;559;0;334;1;Spese correnti;3;Acquisto di beni e servizi;2;Acquisto di servizi;99;Altri servizi;999;Altri servizi diversi n.a.c.;20-03-2019;
405;1;0;"19,54";"19,54";ABACO S.P.A.;ZB919D1F1A;SALDO Fatt.n. 2019140000817  del 01/03/2019 RISCOSSIONE COATTIVA DEI TRIBUTI;20-03-2019;121;0;475;1;Spese correnti;3;Acquisto di beni e servizi;2;Acquisto di servizi;3;Aggi di riscossione;999;Altri aggi di riscossione n.a.c.;20-03-2019;
406;1;0;"210,00";"210,00";SONDA COOPERATIVA SOCIALE ONLUS; ;SALDO Fatt.n. 89/PA/2019  del 08/03/2019 PROGETTO DI INSERIMENTO IN FAMIGLIA;20-03-2019;560;0;297;1;Spese correnti;3;Acquisto di beni e servizi;2;Acquisto di servizi;15;Contratti di servizio pubblico;8;Contratti di servizio di assistenza sociale residenziale e semiresidenziale;20-03-2019;
407;1;0;"231,60";"5.272,01";A.S. DI ANDREATTA GIUSEPPE & C. S.R.L.;Z572272F19;SALDO Fatt.n. 0146  del 28/02/2019 MANUTENZIONE IMPIANTI ELETTRICI ED. COMUNALI;20-03-2019;601;0;529;1;Spese correnti;3;Acquisto di beni e servizi;2;Acquisto di servizi;15;Contratti di servizio pubblico;15;Contratti di servizio per l'illuminazione pubblica;20-03-2019;
407;2;0;"1.795,72";"5.272,01";A.S. DI ANDREATTA GIUSEPPE & C. S.R.L.;Z572272F19;SALDO Fatt.n. 0149  del 28/02/2019 MANUTENZIONE IMPIANTI ELETTRICI EDIFICI  COMUNALI;20-03-2019;601;0;529;1;Spese correnti;3;Acquisto di beni e servizi;2;Acquisto di servizi;15;Contratti di servizio pubblico;15;Contratti di servizio per l'illuminazione pubblica;20-03-2019;
407;3;0;"3.244,69";"5.272,01";A.S. DI ANDREATTA GIUSEPPE & C. S.R.L.;Z572272F19;SALDO Fatt.n. 0147  del 28/02/2019 MANUTENZIONE IMP. ELETTRICI ED. COMUNALI;20-03-2019;601;0;529;1;Spese correnti;3;Acquisto di beni e servizi;2;Acquisto di servizi;15;Contratti di servizio pubblico;15;Contratti di servizio per l'illuminazione pubblica;20-03-2019;
408;1;0;"102,47";"102,47";LA IDROFERRAMENTA SRL;Z192700D74;SALDO Fatt.n. 15/PA  del 28/02/2019 FORNITURA MATERIALE PER SCUOLA PRIMARIA;20-03-2019;235;1;59;1;Spese correnti;3;Acquisto di beni e servizi;2;Acquisto di servizi;9;Manutenzione ordinaria e riparazioni;8;Manutenzione ordinaria e riparazioni di beni immobili;20-03-2019;
409;1;0;"442,00";"442,00";ALBERTON FERRAMENTA E CASALINGHI SNC DI ALBERTON P.& C.;ZF024B19FE;ACCONTO Fatt.n. 1/PA  del 06/03/2019 FORNITURA MATERIALI DI FERRAMENTA;20-03-2019;589;1;608;1;Spese correnti;3;Acquisto di beni e servizi;2;Acquisto di servizi;9;Manutenzione ordinaria e riparazioni;11;Manutenzione ordinaria e riparazioni di altri beni materiali;20-03-2019;
410;1;0;"434,20";"434,20";ALBERTON FERRAMENTA E CASALINGHI SNC DI ALBERTON P.& C.;ZF024B19FE;SALDO Fatt.n. 1/PA  del 06/03/2019 FORNITURA MATERIALI DI FERRAMENTA;20-03-2019;591;0;607;1;Spese correnti;3;Acquisto di beni e servizi;1;Acquisto di beni;2;Altri beni di consumo;999;Altri beni e materiali di consumo n.a.c.;20-03-2019;
411;1;0;"1.440,00";"1.440,00";NOIGROUP Coop. Soc. a R.L.;Z5F268727B;SALDO Fatt.n. 183  del 28/02/2019 SERVIZIO GESTIONE DELLA BIBLIOTECA ATTIVITA' FEBBRAIO 2019;20-03-2019;302;1;553;1;Spese correnti;3;Acquisto di beni e servizi;2;Acquisto di servizi;16;Servizi amministrativi;999;Altre spese per servizi amministrativi;20-03-2019;
412;1;0;"6.483,34";"6.483,34";CASA DI RIPOSO 'AITA'; ;SALDO Fatt.n. 131/C  del 28/02/2019 FORNITURA PASTI MENSA SCUOLA PRIMARIA  - FEBBRAIO 2019;20-03-2019;274;1;54;1;Spese correnti;3;Acquisto di beni e servizi;2;Acquisto di servizi;15;Contratti di servizio pubblico;6;Contratti di servizio per le mense scolastiche;20-03-2019;
413;1;0;"124,31";"2.184,98";ENEL ENERGIA S.P.A.;7134285639;SALDO Fatt.n. 003014117080  del 07/03/2019 ENERGIA ELETTRICA SCUOLE - FEBBRAIO 2019;20-03-2019;235;0;113;1;Spese correnti;3;Acquisto di beni e servizi;2;Acquisto di servizi;5;Utenze e canoni;4;Energia elettrica;20-03-2019;
413;2;0;"430,03";"2.184,98";ENEL ENERGIA S.P.A.;7134285639;SALDO Fatt.n. 003014117043  del 07/03/2019 ENERGIA ELETTRICA SCUOLA PRIMARIA - FEBBRAIO 2019;20-03-2019;235;0;113;1;Spese correnti;3;Acquisto di beni e servizi;2;Acquisto di servizi;5;Utenze e canoni;4;Energia elettrica;20-03-2019;
413;3;0;"1.630,64";"2.184,98";ENEL ENERGIA S.P.A.;7134285639;SALDO Fatt.n. 003014117073  del 07/03/2019 ENERGIA ELETTRICA SCUOLE - FEBBRAIO 2019;20-03-2019;235;0;113;1;Spese correnti;3;Acquisto di beni e servizi;2;Acquisto di servizi;5;Utenze e canoni;4;Energia elettrica;20-03-2019;
414;1;0;"213,67";"1.198,49";ENEL ENERGIA S.P.A.;7134285639;SALDO Fatt.n. 003014117069  del 07/03/2019 ENERGIA ELETTRICA IMP. SPORTIVI - FEBBRAIO 2019;20-03-2019;530;0;118;1;Spese correnti;3;Acquisto di beni e servizi;2;Acquisto di servizi;5;Utenze e canoni;4;Energia elettrica;20-03-2019;
414;2;0;"984,82";"1.198,49";ENEL ENERGIA S.P.A.;7134285639;SALDO Fatt.n. 003014117058  del 07/03/2019 ENERGIA ELETTRICA IMP. SPORTIVI - FEBBRAIO 2019;20-03-2019;530;0;118;1;Spese correnti;3;Acquisto di beni e servizi;2;Acquisto di servizi;5;Utenze e canoni;4;Energia elettrica;20-03-2019;
415;1;0;"94,22";"94,22";ENEL ENERGIA S.P.A.;7134285639;SALDO Fatt.n. 003014117054  del 07/03/2019 ENERGIA ELETTRICA MAGAZZINO COM.LE- FEBBRAIO 2019;20-03-2019;71;0;112;1;Spese correnti;3;Acquisto di beni e servizi;2;Acquisto di servizi;5;Utenze e canoni;4;Energia elettrica;20-03-2019;
416;1;0;"188,83";"188,83";ENEL ENERGIA S.P.A.;7134285639;SALDO Fatt.n. 003014117049  del 07/03/2019 ENERGIA ELETTRICA VILLA RUBELLI - FEBBRAIO 2019;20-03-2019;310;0;116;1;Spese correnti;3;Acquisto di beni e servizi;2;Acquisto di servizi;5;Utenze e canoni;4;Energia elettrica;20-03-2019;
417;1;0;"103,03";"591,01";ENEL ENERGIA S.P.A.;7134285639;SALDO Fatt.n. 003014117077  del 07/03/2019 ENERGIA ELETTRICA CENTRO CULTURALE - FEBBRAIO 2019;20-03-2019;311;0;117;1;Spese correnti;3;Acquisto di beni e servizi;2;Acquisto di servizi;5;Utenze e canoni;4;Energia elettrica;20-03-2019;
417;2;0;"487,98";"591,01";ENEL ENERGIA S.P.A.;7134285639;SALDO Fatt.n. 003014117076  del 07/03/2019 ENERGIA ELETTRICA CENTRO POLIV. - FEBBRAIO 2019;20-03-2019;311;0;117;1;Spese correnti;3;Acquisto di beni e servizi;2;Acquisto di servizi;5;Utenze e canoni;4;Energia elettrica;20-03-2019;
418;1;0;"518,24";"518,24";ENEL ENERGIA S.P.A.;7134285639;SALDO Fatt.n. 003014117068  del 07/03/2019 ENERGIA ELETTRICA MUNICIPIO - FEBBRAIO 2019;20-03-2019;34;0;111;1;Spese correnti;3;Acquisto di beni e servizi;2;Acquisto di servizi;5;Utenze e canoni;4;Energia elettrica;20-03-2019;
419;1;0;"24,58";"3.296,96";ENEL ENERGIA S.P.A.;7134285639;SALDO Fatt.n. 003014117079  del 07/03/2019 ENERGIA ELETTRICA: FEBBRAIO 2019;20-03-2019;600;0;120;1;Spese correnti;3;Acquisto di beni e servizi;2;Acquisto di servizi;5;Utenze e canoni;4;Energia elettrica;20-03-2019;
419;2;0;"26,68";"3.296,96";ENEL ENERGIA S.P.A.;7134285639;SALDO Fatt.n. 003014117064  del 07/03/2019 ENERGIA ELETTRICA: FEBBRAIO 2019;20-03-2019;600;0;120;1;Spese correnti;3;Acquisto di beni e servizi;2;Acquisto di servizi;5;Utenze e canoni;4;Energia elettrica;20-03-2019;
419;3;0;"29,35";"3.296,96";ENEL ENERGIA S.P.A.;7134285639;SALDO Fatt.n. 003014117081  del 07/03/2019 ENERGIA ELETTRICA: FEBBRAIO 2019;20-03-2019;600;0;120;1;Spese correnti;3;Acquisto di beni e servizi;2;Acquisto di servizi;5;Utenze e canoni;4;Energia elettrica;20-03-2019;
419;4;0;"41,70";"3.296,96";ENEL ENERGIA S.P.A.;7134285639;SALDO Fatt.n. 003014117051  del 07/03/2019 ENERGIA ELETTRICA: FEBBRAIO 2019;20-03-2019;600;0;120;1;Spese correnti;3;Acquisto di beni e servizi;2;Acquisto di servizi;5;Utenze e canoni;4;Energia elettrica;20-03-2019;
419;5;0;"49,81";"3.296,96";ENEL ENERGIA S.P.A.;7134285639;SALDO Fatt.n. 003014117048  del 07/03/2019 ENERGIA ELETTRICA: FEBBRAIO 2019;20-03-2019;600;0;120;1;Spese correnti;3;Acquisto di beni e servizi;2;Acquisto di servizi;5;Utenze e canoni;4;Energia elettrica;20-03-2019;
419;6;0;"147,25";"3.296,96";ENEL ENERGIA S.P.A.;7134285639;SALDO Fatt.n. 003014117037  del 07/03/2019 ENERGIA ELETTRICA: FEBBRAIO 2019;20-03-2019;600;0;120;1;Spese correnti;3;Acquisto di beni e servizi;2;Acquisto di servizi;5;Utenze e canoni;4;Energia elettrica;20-03-2019;
419;7;0;"163,71";"3.296,96";ENEL ENERGIA S.P.A.;7134285639;SALDO Fatt.n. 003014117065  del 07/03/2019 ENERGIA ELETTRICA: FEBBRAIO 2019;20-03-2019;600;0;120;1;Spese correnti;3;Acquisto di beni e servizi;2;Acquisto di servizi;5;Utenze e canoni;4;Energia elettrica;20-03-2019;
419;8;0;"262,31";"3.296,96";ENEL ENERGIA S.P.A.;7134285639;SALDO Fatt.n. 003014117067  del 07/03/2019 ENERGIA ELETTRICA: FEBBRAIO 2019;20-03-2019;600;0;120;1;Spese correnti;3;Acquisto di beni e servizi;2;Acquisto di servizi;5;Utenze e canoni;4;Energia elettrica;20-03-2019;
419;9;0;"277,06";"3.296,96";ENEL ENERGIA S.P.A.;7134285639;SALDO Fatt.n. 003014117070  del 07/03/2019 ENERGIA ELETTRICA: FEBBRAIO 2019;20-03-2019;600;0;120;1;Spese correnti;3;Acquisto di beni e servizi;2;Acquisto di servizi;5;Utenze e canoni;4;Energia elettrica;20-03-2019;
419;10;0;"515,29";"3.296,96";ENEL ENERGIA S.P.A.;7134285639;SALDO Fatt.n. 003014117053  del 07/03/2019 ENERGIA ELETTRICA: FEBBRAIO 2019;20-03-2019;600;0;120;1;Spese correnti;3;Acquisto di beni e servizi;2;Acquisto di servizi;5;Utenze e canoni;4;Energia elettrica;20-03-2019;
419;11;0;"599,26";"3.296,96";ENEL ENERGIA S.P.A.;7134285639;SALDO Fatt.n. 003014117078  del 07/03/2019 ENERGIA ELETTRICA: FEBBRAIO 2019;20-03-2019;600;0;120;1;Spese correnti;3;Acquisto di beni e servizi;2;Acquisto di servizi;5;Utenze e canoni;4;Energia elettrica;20-03-2019;
419;12;0;"1.159,96";"3.296,96";ENEL ENERGIA S.P.A.;7134285639;SALDO Fatt.n. 003014117040  del 07/03/2019 ENERGIA ELETTRICA: FEBBRAIO 2019;20-03-2019;600;0;120;1;Spese correnti;3;Acquisto di beni e servizi;2;Acquisto di servizi;5;Utenze e canoni;4;Energia elettrica;20-03-2019;
420;1;0;"45,92";"4.453,49";ENEL ENERGIA S.P.A.;7134285639;SALDO Fatt.n. 003014117052  del 07/03/2019 ENERGIA ELETTRICA: FEBBRAIO 2019;20-03-2019;600;0;120;1;Spese correnti;3;Acquisto di beni e servizi;2;Acquisto di servizi;5;Utenze e canoni;4;Energia elettrica;20-03-2019;
420;2;0;"47,10";"4.453,49";ENEL ENERGIA S.P.A.;7134285639;SALDO Fatt.n. 003014117062  del 07/03/2019 ENERGIA ELETTRICA: FEBBRAIO 2019;20-03-2019;600;0;120;1;Spese correnti;3;Acquisto di beni e servizi;2;Acquisto di servizi;5;Utenze e canoni;4;Energia elettrica;20-03-2019;
420;3;0;"53,48";"4.453,49";ENEL ENERGIA S.P.A.;7134285639;SALDO Fatt.n. 003014117056  del 07/03/2019 ENERGIA ELETTRICA: FEBBRAIO 2019;20-03-2019;600;0;120;1;Spese correnti;3;Acquisto di beni e servizi;2;Acquisto di servizi;5;Utenze e canoni;4;Energia elettrica;20-03-2019;
420;4;0;"60,18";"4.453,49";ENEL ENERGIA S.P.A.;7134285639;SALDO Fatt.n. 003014117044  del 07/03/2019 ENERGIA ELETTRICA: FEBBRAIO 2019;20-03-2019;600;0;120;1;Spese correnti;3;Acquisto di beni e servizi;2;Acquisto di servizi;5;Utenze e canoni;4;Energia elettrica;20-03-2019;
420;5;0;"60,84";"4.453,49";ENEL ENERGIA S.P.A.;7134285639;SALDO Fatt.n. 003014117045  del 07/03/2019 ENERGIA ELETTRICA: FEBBRAIO 2019;20-03-2019;600;0;120;1;Spese correnti;3;Acquisto di beni e servizi;2;Acquisto di servizi;5;Utenze e canoni;4;Energia elettrica;20-03-2019;
420;6;0;"64,45";"4.453,49";ENEL ENERGIA S.P.A.;7134285639;SALDO Fatt.n. 003014117057  del 07/03/2019 ENERGIA ELETTRICA: FEBBRAIO 2019;20-03-2019;600;0;120;1;Spese correnti;3;Acquisto di beni e servizi;2;Acquisto di servizi;5;Utenze e canoni;4;Energia elettrica;20-03-2019;
420;7;0;"92,63";"4.453,49";ENEL ENERGIA S.P.A.;7134285639;SALDO Fatt.n. 003014117072  del 07/03/2019 ENERGIA ELETTRICA: FEBBRAIO 2019;20-03-2019;600;0;120;1;Spese correnti;3;Acquisto di beni e servizi;2;Acquisto di servizi;5;Utenze e canoni;4;Energia elettrica;20-03-2019;
420;8;0;"131,00";"4.453,49";ENEL ENERGIA S.P.A.;7134285639;SALDO Fatt.n. 003014117074  del 07/03/2019 ENERGIA ELETTRICA: FEBBRAIO 2019;20-03-2019;600;0;120;1;Spese correnti;3;Acquisto di beni e servizi;2;Acquisto di servizi;5;Utenze e canoni;4;Energia elettrica;20-03-2019;
420;9;0;"169,26";"4.453,49";ENEL ENERGIA S.P.A.;7134285639;SALDO Fatt.n. 003014117061  del 07/03/2019 ENERGIA ELETTRICA: FEBBRAIO 2019;20-03-2019;600;0;120;1;Spese correnti;3;Acquisto di beni e servizi;2;Acquisto di servizi;5;Utenze e canoni;4;Energia elettrica;20-03-2019;
420;10;0;"183,07";"4.453,49";ENEL ENERGIA S.P.A.;7134285639;SALDO Fatt.n. 003014117059  del 07/03/2019 ENERGIA ELETTRICA: FEBBRAIO 2019;20-03-2019;600;0;120;1;Spese correnti;3;Acquisto di beni e servizi;2;Acquisto di servizi;5;Utenze e canoni;4;Energia elettrica;20-03-2019;
420;11;0;"192,88";"4.453,49";ENEL ENERGIA S.P.A.;7134285639;SALDO Fatt.n. 003014117039  del 07/03/2019 ENERGIA ELETTRICA: FEBBRAIO 2019;20-03-2019;600;0;120;1;Spese correnti;3;Acquisto di beni e servizi;2;Acquisto di servizi;5;Utenze e canoni;4;Energia elettrica;20-03-2019;
420;12;0;"217,50";"4.453,49";ENEL ENERGIA S.P.A.;7134285639;SALDO Fatt.n. 003014117055  del 07/03/2019 ENERGIA ELETTRICA: FEBBRAIO 2019;20-03-2019;600;0;120;1;Spese correnti;3;Acquisto di beni e servizi;2;Acquisto di servizi;5;Utenze e canoni;4;Energia elettrica;20-03-2019;
420;13;0;"223,76";"4.453,49";ENEL ENERGIA S.P.A.;7134285639;SALDO Fatt.n. 003014117083  del 07/03/2019 ENERGIA ELETTRICA: FEBBRAIO 2019;20-03-2019;600;0;120;1;Spese correnti;3;Acquisto di beni e servizi;2;Acquisto di servizi;5;Utenze e canoni;4;Energia elettrica;20-03-2019;
420;14;0;"255,44";"4.453,49";ENEL ENERGIA S.P.A.;7134285639;SALDO Fatt.n. 003014117060  del 07/03/2019 ENERGIA ELETTRICA: FEBBRAIO 2019;20-03-2019;600;0;120;1;Spese correnti;3;Acquisto di beni e servizi;2;Acquisto di servizi;5;Utenze e canoni;4;Energia elettrica;20-03-2019;
420;15;0;"280,66";"4.453,49";ENEL ENERGIA S.P.A.;7134285639;SALDO Fatt.n. 003014117082  del 07/03/2019 ENERGIA ELETTRICA: FEBBRAIO 2019;20-03-2019;600;0;120;1;Spese correnti;3;Acquisto di beni e servizi;2;Acquisto di servizi;5;Utenze e canoni;4;Energia elettrica;20-03-2019;
420;16;0;"329,56";"4.453,49";ENEL ENERGIA S.P.A.;7134285639;SALDO Fatt.n. 003014117075  del 07/03/2019 ENERGIA ELETTRICA: FEBBRAIO 2019;20-03-2019;600;0;120;1;Spese correnti;3;Acquisto di beni e servizi;2;Acquisto di servizi;5;Utenze e canoni;4;Energia elettrica;20-03-2019;
420;17;0;"342,39";"4.453,49";ENEL ENERGIA S.P.A.;7134285639;SALDO Fatt.n. 003014117050  del 07/03/2019 ENERGIA ELETTRICA: FEBBRAIO 2019;20-03-2019;600;0;120;1;Spese correnti;3;Acquisto di beni e servizi;2;Acquisto di servizi;5;Utenze e canoni;4;Energia elettrica;20-03-2019;
420;18;0;"370,50";"4.453,49";ENEL ENERGIA S.P.A.;7134285639;SALDO Fatt.n. 003014117041  del 07/03/2019 ENERGIA ELETTRICA: FEBBRAIO 2019;20-03-2019;600;0;120;1;Spese correnti;3;Acquisto di beni e servizi;2;Acquisto di servizi;5;Utenze e canoni;4;Energia elettrica;20-03-2019;
420;19;0;"585,91";"4.453,49";ENEL ENERGIA S.P.A.;7134285639;SALDO Fatt.n. 003014117042  del 07/03/2019 ENERGIA ELETTRICA: FEBBRAIO 2019;20-03-2019;600;0;120;1;Spese correnti;3;Acquisto di beni e servizi;2;Acquisto di servizi;5;Utenze e canoni;4;Energia elettrica;20-03-2019;
420;20;0;"746,96";"4.453,49";ENEL ENERGIA S.P.A.;7134285639;SALDO Fatt.n. 003014117047  del 07/03/2019 ENERGIA ELETTRICA: FEBBRAIO 2019;20-03-2019;600;0;120;1;Spese correnti;3;Acquisto di beni e servizi;2;Acquisto di servizi;5;Utenze e canoni;4;Energia elettrica;20-03-2019;
421;1;0;"24,40";"1.000,00";ASCO TLC S.P.A.;ZCD271B191;SALDO Fatt.n. 09009278  del 28/02/2019 UTENZE E CANONI UFFICI COMUNALI;20-03-2019;34;0;77;1;Spese correnti;3;Acquisto di beni e servizi;2;Acquisto di servizi;5;Utenze e canoni;999;Utenze e canoni per altri servizi n.a.c.;20-03-2019;
421;2;0;"36,20";"1.000,00";ASCO TLC S.P.A.;ZCD271B191;ACCONTO Fatt.n. 09009281  del 28/02/2019 UTENZE E CANONI CENTRO POLIV. - GENN. FEBB. 2019;20-03-2019;34;0;77;1;Spese correnti;3;Acquisto di beni e servizi;2;Acquisto di servizi;5;Utenze e canoni;999;Utenze e canoni per altri servizi n.a.c.;20-03-2019;
421;3;0;"939,40";"1.000,00";ASCO TLC S.P.A.;ZCD271B191;SALDO Fatt.n. 09009280  del 28/02/2019 UTENZE E CANONI SCUOLE;20-03-2019;34;0;77;1;Spese correnti;3;Acquisto di beni e servizi;2;Acquisto di servizi;5;Utenze e canoni;999;Utenze e canoni per altri servizi n.a.c.;20-03-2019;
422;1;0;"317,60";"317,60";ASCO TLC S.P.A.;ZCD271B191;SALDO Fatt.n. 09009281  del 28/02/2019 UTENZE E CANONI CENTRO POLIV. - GENN. FEBB. 2019;20-03-2019;235;0;78;1;Spese correnti;3;Acquisto di beni e servizi;2;Acquisto di servizi;5;Utenze e canoni;999;Utenze e canoni per altri servizi n.a.c.;20-03-2019;
423;1;0;"610,00";"610,00";CONNECTIS S.R. L.;ZCD274EF0B;SALDO Fatt.n. 34/10  del 13/03/2019 ACQUISTO DEL SOFTWARE PER LA GESTIONE DELL'IMPOSTA DI SOGGIORNO;20-03-2019;341;0;109;1;Spese correnti;3;Acquisto di beni e servizi;2;Acquisto di servizi;19;Servizi informatici e di telecomunicazioni;2;Assistenza all'utente e formazione;20-03-2019;
424;1;0;"1.244,40";"1.244,40";STUDIO ASSOCIATO GREENPLAN ENGINEERING;Z260D5AEC0;SALDO Fatt.n. 11/2019  del 01/03/2019 PIANO DEGLI INTERVENTI PER LE ZONE AGRICOLE;21-03-2019;881;1;516;2;Spese in conto capitale;2;Investimenti fissi lordi e acquisto di terreni;3;Beni immateriali;5;Incarichi professionali per la realizzazione di investimenti;1;Incarichi professionali per la realizzazione di investimenti;21-03-2019;
425;1;0;"33,15";"526,90";ENEL ENERGIA S.P.A.;7134285639;SALDO Fatt.n. 003014117046  del 07/03/2019 ENERGIA ELETTRICA CIMITERO - FEBBRAIO 2019;21-03-2019;413;0;115;1;Spese correnti;3;Acquisto di beni e servizi;2;Acquisto di servizi;5;Utenze e canoni;4;Energia elettrica;21-03-2019;
425;2;0;"57,46";"526,90";ENEL ENERGIA S.P.A.;7134285639;SALDO Fatt.n. 003014117066  del 07/03/2019 ENERGIA ELETTRICA CIMITERO - FEBBRAIO 2019;21-03-2019;413;0;115;1;Spese correnti;3;Acquisto di beni e servizi;2;Acquisto di servizi;5;Utenze e canoni;4;Energia elettrica;21-03-2019;
425;3;0;"76,43";"526,90";ENEL ENERGIA S.P.A.;7134285639;SALDO Fatt.n. 003014117038  del 07/03/2019 ENERGIA ELETTRICA CIMITERO - FEBBRAIO 2019;21-03-2019;413;0;115;1;Spese correnti;3;Acquisto di beni e servizi;2;Acquisto di servizi;5;Utenze e canoni;4;Energia elettrica;21-03-2019;
425;4;0;"88,06";"526,90";ENEL ENERGIA S.P.A.;7134285639;SALDO Fatt.n. 003014117063  del 07/03/2019 ENERGIA ELETTRICA  CIMITERO - FEBBRAIO 2019;21-03-2019;413;0;115;1;Spese correnti;3;Acquisto di beni e servizi;2;Acquisto di servizi;5;Utenze e canoni;4;Energia elettrica;21-03-2019;
425;5;0;"271,80";"526,90";ENEL ENERGIA S.P.A.;7134285639;SALDO Fatt.n. 003014117071  del 07/03/2019 ENERGIA ELETTRICA CIMITERO - FEBBRAIO 2019;21-03-2019;413;0;115;1;Spese correnti;3;Acquisto di beni e servizi;2;Acquisto di servizi;5;Utenze e canoni;4;Energia elettrica;21-03-2019;
426;1;0;"1.010,16";"1.010,16";SERVIZI TREVISO SRL;ZB4242D1BC;SALDO Fatt.n. 2019/39/65  del 04/03/2019 ADEMPIMENTI PRATICHE PER PRESTAZIONI SOCIALI;21-03-2019;559;0;299;1;Spese correnti;3;Acquisto di beni e servizi;2;Acquisto di servizi;99;Altri servizi;999;Altri servizi diversi n.a.c.;21-03-2019;
427;1;0;"255,29";"255,29";CISL VENETO SERVIZI S.R.L.;ZB4242D1BC;SALDO Fatt.n. TVP/59  del 31/01/2019 ADEMPIMENTI PRATICHE PER PRESTAZIONI SOCIALI;21-03-2019;559;0;299;1;Spese correnti;3;Acquisto di beni e servizi;2;Acquisto di servizi;99;Altri servizi;999;Altri servizi diversi n.a.c.;21-03-2019;
428;1;0;"9,14";"640,15";ENEL ENERGIA S.P.A.;7134285639;SALDO Fatt.n. 003020022137  del 18/03/2019 ENERGIA ELETTRICA: FEBBRAIO 2019;21-03-2019;600;0;120;1;Spese correnti;3;Acquisto di beni e servizi;2;Acquisto di servizi;5;Utenze e canoni;4;Energia elettrica;21-03-2019;
428;2;0;"9,14";"640,15";ENEL ENERGIA S.P.A.;7134285639;SALDO Fatt.n. 003020022136  del 18/03/2019 ENERGIA ELETTRICA: FEBBRAIO 2019;21-03-2019;600;0;120;1;Spese correnti;3;Acquisto di beni e servizi;2;Acquisto di servizi;5;Utenze e canoni;4;Energia elettrica;21-03-2019;
428;3;0;"17,78";"640,15";ENEL ENERGIA S.P.A.;7134285639;SALDO Fatt.n. 003020022140  del 18/03/2019 ENERGIA  ELETTTRICA: FEBBRAIO 2019;21-03-2019;600;0;120;1;Spese correnti;3;Acquisto di beni e servizi;2;Acquisto di servizi;5;Utenze e canoni;4;Energia elettrica;21-03-2019;
428;4;0;"21,83";"640,15";ENEL ENERGIA S.P.A.;7134285639;SALDO Fatt.n. 003020022131  del 18/03/2019 ENERGIA ELETTRICA: FEBBRAIO 2019;21-03-2019;600;0;120;1;Spese correnti;3;Acquisto di beni e servizi;2;Acquisto di servizi;5;Utenze e canoni;4;Energia elettrica;21-03-2019;
428;5;0;"26,00";"640,15";ENEL ENERGIA S.P.A.;7134285639;SALDO Fatt.n. 003020022139  del 18/03/2019 ENERGIA ELETTRICA: FEBBRAIO 2019;21-03-2019;600;0;120;1;Spese correnti;3;Acquisto di beni e servizi;2;Acquisto di servizi;5;Utenze e canoni;4;Energia elettrica;21-03-2019;
428;6;0;"27,11";"640,15";ENEL ENERGIA S.P.A.;7134285639;SALDO Fatt.n. 003020022133  del 18/03/2019 ENERGIA ELETTRICA: FEBBRAIO 2019;21-03-2019;600;0;120;1;Spese correnti;3;Acquisto di beni e servizi;2;Acquisto di servizi;5;Utenze e canoni;4;Energia elettrica;21-03-2019;
428;7;0;"52,08";"640,15";ENEL ENERGIA S.P.A.;7134285639;SALDO Fatt.n. 003020022134  del 18/03/2019 ENERGIA ELETTRICA: FEBBRAIO 2019;21-03-2019;600;0;120;1;Spese correnti;3;Acquisto di beni e servizi;2;Acquisto di servizi;5;Utenze e canoni;4;Energia elettrica;21-03-2019;
428;8;0;"93,85";"640,15";ENEL ENERGIA S.P.A.;7134285639;SALDO Fatt.n. 003020022135  del 18/03/2019 ENERGIA ELETTRICA: FEBBRAIO 2019;21-03-2019;600;0;120;1;Spese correnti;3;Acquisto di beni e servizi;2;Acquisto di servizi;5;Utenze e canoni;4;Energia elettrica;21-03-2019;
428;9;0;"153,34";"640,15";ENEL ENERGIA S.P.A.;7134285639;SALDO Fatt.n. 003020022138  del 18/03/2019 ENERGIA ELETTRICA: FEBBRAIO 2019;21-03-2019;600;0;120;1;Spese correnti;3;Acquisto di beni e servizi;2;Acquisto di servizi;5;Utenze e canoni;4;Energia elettrica;21-03-2019;
428;10;0;"229,88";"640,15";ENEL ENERGIA S.P.A.;7134285639;SALDO Fatt.n. 003020022132  del 18/03/2019 ENERGIA ELETTRICA: FEBBRAIO 2019;21-03-2019;600;0;120;1;Spese correnti;3;Acquisto di beni e servizi;2;Acquisto di servizi;5;Utenze e canoni;4;Energia elettrica;21-03-2019;
429;1;0;"295,50";"295,50";OMESSO NOMINATIVO NEL RISPETTO DELLA NORMATIVA SULLA PROTEZIONE DATI PERSONALI; ;CONTRIBUTO ECONOMICO STRAORDINARIO: FATT. N. 78/B DEL 28/02/2019 CASA RIPOSO AITA.;22-03-2019;576;0;460;1;Spese correnti;4;Trasferimenti correnti;2;Trasferimenti correnti a Famiglie;2;Interventi assistenziali;999;Altri assegni e sussidi assistenziali;22-03-2019;
430;1;0;"106,50";"106,50";OMESSO NOMINATIVO NEL RISPETTO DELLA NORMATIVA SULLA PROTEZIONE DATI PERSONALI; ;IMPEGNO DI SPESA PER EROGAZIONE CONTRIBUTO ECONOMICO: SALDO FATT. N. 74/B DEL 28/02/19 CASA DI RIPOSO AITA.;22-03-2019;576;0;110;1;Spese correnti;4;Trasferimenti correnti;2;Trasferimenti correnti a Famiglie;2;Interventi assistenziali;999;Altri assegni e sussidi assistenziali;22-03-2019;
431;1;0;"761,12";"761,12";MINISTERO INFRASTR.-TESORER. PROV.LE DELLO STATO - ROMA; ;IMPEGNO DI SPESA PER COLLEGAMENTO AL SERVIZIO DI INFORMATICA DEL CENTRO ELABORAZIONE DATI DEL MINISTERO DELLE INFRASTRUTTURE E DEI TRASPORTI - ANNO 2019: LIQUIDAZIONE 9/12 (DA APRILE A DICEMBRE 2019).;26-03-2019;178;3;81;1;Spese correnti;3;Acquisto di beni e servizi;2;Acquisto di servizi;5;Utenze e canoni;3;Accesso a banche dati e a pubblicazioni on line;26-03-2019;
